{"text_format":"1","workbook":"xlsx","n_sheets":5,"sheets":["Cylinder Condition Report","Makcyl","Condition Monitoring Report","Cond. Monitoring Charts","Inspection throug Scavenge Port"],"not_rendered":{"charts":3,"images":5,"macros":1,"external_links":0,"defined_names":102,"comments":1,"pivot_tables":0},"unopened":[],"bounds":{"document_bytes":16777216,"sheet_cells":100000,"rows_first":2000,"rows_last":500,"rows_between":2000,"halvings":0,"cell_chars":16384,"cell_head_chars":4096},"cells_cut":0,"cells_raw":0,"read":"whole","date_system":"1900"}

{"sheet":"Cylinder Condition Report","index":0,"n_rows":53,"n_cols":27,"rows_kept":53,"cut":false,"hidden":false,"merged":[[5,10,5,11],[34,10,34,13],[30,8,30,9],[31,8,31,9],[0,0,0,15],[26,0,26,1],[26,2,26,15],[29,3,29,4],[2,12,2,13],[7,8,7,9],[28,1,28,2],[29,8,29,9],[50,2,51,15],[31,1,31,2],[29,1,29,2],[30,1,30,2],[28,3,28,4],[28,8,28,9],[42,6,42,7],[28,6,28,7],[50,0,51,1],[38,8,39,9],[41,6,41,7],[31,3,31,4],[42,2,42,3],[32,1,32,2],[32,8,32,9],[6,0,7,1],[7,14,7,15],[32,3,32,4],[28,10,28,11],[8,13,8,15],[30,3,30,4],[28,12,28,13]]}
["Cylinder Condition Report",null,null,null,null,null,null,null,null,null,null,null,null,null,null,null,null,null,null,null,null,null,null,null,null,null,"1.0.0.0"]
["Vessel:",null,null,null,null,"IMO no:",null,"Eng. builder:",null,null,"Eng. no.:",null,null,"Checked by:"]
["No. of cyl.:",null,null,"Eng. type:",null,null,null,null,"Eng. hrs:",null,"Date (yyyy-mm-dd):",null,null,null,"Unit no:"]
["Voyage info",null,null,null,null,null,null,null,"Normal engine load %:",null,null,null,"CW temp., °C:"]
["Min. feed rate, g/kWh:",null,null,null,"Lub. control:",null,null,null,"Lubricator:",null,null,null,"ACC factor:"]
["Cyl. oil type:",null,null,null,null,null,"Cyl. oil cons. (l/24 hrs):",null,null,null,"at load %",null,null,"Sulphur %:"]
["Scuffing conditions",null,"At time of scuffing: Ship position:",null,null,null,null,null,null,null,"Weather condition:",null,null,null,"Seawater temp. (°C):"]
[null,null,"Voyage schedule: Departure:",null,null,null,null,null,null,null,"Destination:"]
["Cylinder liner",null,null,null,null,null,null,null,"Liner hours:",null,null,"Drawing no.:"]
["Producer/Marking:",null,null,null,null,"JCW system:",null,null,null,null,"Liner material:"]
["Wear type:",null,null,null,null,"Lub. quill position:",null,null,null,null,"Liner type:"]
["Insulation pipe (Y/N):",null,null,null,"PC ring (Y/N):",null,null,"Liner reconditioned (Y/N):",null,null,null,null,"No. of Cooling Bores:"]
["Cyl. cover tightened (Y/N):",null,null,null,null,"Meas. tool (Y/N):",null,null,"Temp. btw. liner/tool (°C):",null,null,null,"Shims (mm):"]
["Measuring point",null,0,1,2,3,4,5,6,7,8,9,10,11,"A1 (Additional)","A2 (Additional)"]
["Depth (mm)"]
["Diameter","F-A"]
["(mm)","E-M"]
[]
[null,null,null,null,null,null," "]
[]
[null,null,null,null,null,null," "]
[]
[null,null,null,null,null,null," "]
["    E: Exhaust",null,"  M: Manoeuvre"]
["    A: Aft",null,"  F: Fore"]
[]
["Liner\nremarks"]
["Piston rings"]
[null,"Base \nmaterial",null,"Coating",null,"Coat. lower side","Profile",null,"Manufacturer",null,"Lock \ntype",null,"CL \ngrooves",null,"Broken","Ring type"]
["Ring 1"]
["Ring 2"]
["Ring 3"]
["Ring 4"]
[null,null,"Width of ring (mm)",null,null,null,null,"Free ring",null,null,"Ring grooves"]
[null,null,"A ","B","C","D","E","gap \"F\"",null,null,"Height, H (mm)"]
["Degrees",null,null,null,null,null,null,"(mm)",null,null,"F","E","A","M"]
["Ring 1"]
["Ring 2"]
["Ring 3",null,null,null,null,null,null,null,"F to be measured before dismantling"]
["Ring 4"]
["Hours since last overhaul:"]
["Piston",null,null,null,"Crown hours:",null,null,null,"Reason for examination"]
["Crown type:",null,null,null,"Piston skirt:",null,null,null,"Routine piston overhaul",null,null,null,"Test"]
["Top land:",null,"Height, mm:",null,"Diameter reduced (Y/N):",null,null,null,"Check of liner condition"]
["Max burning 1",null,"(mm)",null,null,null,null,null,"Liner            ",null,"Piston Crown",null,"Piston Rings  ",null,"Piston Skirt   "]
["Position 1",null,"(degrees)",null,null,null,null,null,"Cracks",null,"Burning",null,"Broken",null,"Leaking"]
["Max burning 2",null,"(mm)",null,null,null,null,null,"Scuffing",null,"Cracks",null,"Collapsed",null,"Scuffing"]
["Position 2",null,"(degrees)",null,null,null,null,null,"Leak",null,"Leaking",null,"Scuffing",null,"Piston Rod    "]
["Max burning 3",null,"(mm)",null,null,null,null,null,null,null,"High Groove",null,"Sticking",null,"Stuff. box"]
["Position 3",null,"(degrees)",null,null,null,null,null,null,null,"Wear"]
["Piston \nremarks"]
[]
[null,null,null,null,null,null,null,null,null,null,null,null,null,null,null,"Rel. 2014-09-22"]

{"sheet":"Makcyl","index":1,"n_rows":272,"n_cols":79,"rows_kept":272,"cut":false,"hidden":true,"merged":[]}
["Linermatr()","Cooltype()","RTYPE()","RTYPE1()","RTYPE2()","RTYPE3()","RTYPE4()","OILTYPE(Cylinder Condition Report)",null,"CTYPE",null,null,null,"File",null,"PrintCylCondReport",null,"AutoOpenCylcond()","AutoDeactivate","AutoOpenMeasPoints","PrintMeasuringPoints",null,"AutoOpenPistonCrown","PrintPreviewPistonCrown()","AutoOpenMeasPointsHighTopland","AutoOpenMeasPointsOrosPiston",null,null,null,null,null,null,null,null,"EngineType","EngineBuilder",null,null,null,null,null,null,null,null,null,null,null,null,null,null,null,null,null,null,"CL nominal+min dimension (top, unit 1)","CL nominal+min dimension (top, unit 2)","CL nominal+min dimension (top, unit 3)","CL nominal+min dimension (top, unit 4)","CL nominal+min dimension (top, unit 5)","CL nominal+min dimension (top, unit 6)","CL nominal+min dimension (top, unit 7)","CL nominal+min dimension (top, unit 8)","CL nominal+min dimension (top, unit 9)","CL nominal+min dimension (top, unit 10)","CL nominal+min dimension (top, unit 11)","CL nominal+min dimension (top, unit 12)",null,"DiaBoxRingCoating1to6"]
[{"$f":"ECHO(FALSE)","v":true},{"$f":"ECHO(FALSE)","v":true},{"$f":"ECHO(FALSE)","v":false},{"$f":"ECHO(FALSE)","v":true},{"$f":"ECHO(FALSE)","v":true},{"$f":"ECHO(FALSE)","v":true},{"$f":"ECHO(FALSE)","v":false},{"$f":"ECHO(FALSE)","v":true},null,"Bore Cooled",null,"OpenMeas()",null,"File",null,"Print",null,{"$f":"ECHO(FALSE)","v":true},{"$f":"ECHO(FALSE)","v":true},{"$f":"ECHO(FALSE)","v":true},"Print",null,{"$f":"ECHO(FALSE)","v":true},{"$f":"ECHO(FALSE)","v":true},{"$f":"ECHO(FALSE)","v":true},{"$f":"ECHO(FALSE)","v":true},"Base Material",null,null,null,866,212,"Base Material",null,"G40ME-B9.2","<UNKN>     (UNKNOWN)","EngineBuilder(Cylinder Condition Report)",null,null,null,480,244,"Engine Builder",null,null,null,null,null,null,424,314,null,null,null,{"$f":"ECHO(FALSE)","v":true},{"$f":"ECHO(FALSE)","v":true},{"$f":"ECHO(FALSE)","v":true},{"$f":"ECHO(FALSE)","v":true},{"$f":"ECHO(FALSE)","v":true},{"$f":"ECHO(FALSE)","v":true},{"$f":"ECHO(FALSE)","v":true},{"$f":"ECHO(FALSE)","v":true},{"$f":"ECHO(FALSE)","v":true},{"$f":"ECHO(FALSE)","v":true},{"$f":"ECHO(FALSE)","v":true},{"$f":"ECHO(FALSE)","v":true},null,null,null,null,1798,212,"Ring Coating Cylinder 1 to 6"]
[{"$f":"DIALOG.BOX(LINMAT)","v":3},{"$f":"DIALOG.BOX(coolt)","v":3},{"$f":"DIALOG.BOX(pipe)","v":3},{"$f":"DIALOG.BOX(pipe)","v":3},{"$f":"DIALOG.BOX(pipe)","v":false},{"$f":"DIALOG.BOX(pipe)","v":false},{"$f":"DIALOG.BOX(pipe)","v":3},{"$f":"DIALOG.BOX(oil)","v":false},null,"Pipe Machined",null,{"$f":"ECHO(FALSE)","v":true},null,"Open...","Open","Print Cylinder Condition Report","Print_CylCond",{"$f":"ERROR(FALSE)","v":true},{"$f":"ERROR(FALSE)","v":true},{"$f":"ERROR(FALSE)","v":true},"Print Measuring Points 2x2 RINGS","Print_Meas",{"$f":"ERROR(FALSE)","v":true},{"$f":"SELECT(!$A$1:$O$58)","v":true},{"$f":"ERROR(FALSE)","v":true},{"$f":"ERROR(FALSE)","v":true},{"$f":"ECHO(FALSE)","v":true},6,10,28,205,18,null,"CV1: RVK-C","G40ME-B9.3","ACECNV     (ACEC N.V)",{"$f":"ECHO(FALSE)","v":true},6,10,28,456,18,null,"DALIEN     (Dalian Marine Diesel Works)",null,null,5,114,9,null,null,"SCUFFING OBSERVATION",null,null,{"$f":"PROTECT.DOCUMENT(FALSE,,\"opera\",FALSE)","v":true},{"$f":"PROTECT.DOCUMENT(FALSE,,\"opera\",FALSE)","v":true},{"$f":"PROTECT.DOCUMENT(FALSE,,\"opera\",FALSE)","v":true},{"$f":"PROTECT.DOCUMENT(FALSE,,\"opera\",FALSE)","v":true},{"$f":"PROTECT.DOCUMENT(FALSE,,\"opera\",FALSE)","v":true},{"$f":"PROTECT.DOCUMENT(FALSE,,\"opera\",FALSE)","v":true},true,true,true,true,true,true,null,6,10,28,290,18,null,"0.3+0.3       (0.3 mm PM80 + 0.3 mm alu-coat)",null,"RingCoat"]
[{"$f":"SELECT(!$M$10)","v":true},{"$f":"SELECT(!$M$11)","v":true},{"$f":"SELECT(!$M$11)","v":false},{"$f":"SELECT(!$C$35)","v":true},{"$f":"SELECT(!$C$36)","v":true},{"$f":"SELECT(!$C$37)","v":true},{"$f":"SELECT(!$C$38)","v":true},{"$f":"SELECT(!$F$6)","v":true},"PIPET","Pipe Oval",null,{"$f":"ERROR(FALSE)","v":true},null,"Close","Close","-",null,"SHOW.TOOLBAR(1;FALSE;1;;;)",{"$f":"ADD.BAR(\"Worksheet\")","v":10},"SHOW.TOOLBAR(1;FALSE;1;;;)","-",null,"SHOW.TOOLBAR(1;FALSE;1;;;)",{"$f":"SET.PRINT.AREA()","v":true},"SHOW.TOOLBAR(1;FALSE;1;;;)","SHOW.TOOLBAR(1;FALSE;1;;;)",{"$f":"DIALOG.BOX(DiaBoxBaseMaterial)","v":9},22,10,46,205,144,"BaseMat",9,"G45ME-B9.3","ADRIAD     (Adria Diesel D.D.)",{"$f":"DIALOG.BOX(DiaBoxEngineBuilder)","v":3},22,10,46,456,162,"EngineBuilder",24,null,null,5,175,48,null,null,"AT TIME OF SCUFFING",null,null,{"$f":"SELECT('Condition Monitoring Report'!E30:E31)","v":true},{"$f":"SELECT('Condition Monitoring Report'!F30:F31)","v":true},{"$f":"SELECT('Condition Monitoring Report'!G30:G31)","v":true},{"$f":"SELECT('Condition Monitoring Report'!H30:H31)","v":true},{"$f":"SELECT('Condition Monitoring Report'!I30:I31)","v":true},{"$f":"SELECT('Condition Monitoring Report'!J30:J31)","v":true},{"$f":"SELECT('Condition Monitoring Report'!K30:K31)","v":true},{"$f":"SELECT('Condition Monitoring Report'!L30:L31)","v":true},{"$f":"SELECT('Condition Monitoring Report'!M30:M31)","v":true},{"$f":"SELECT('Condition Monitoring Report'!N30:N31)","v":true},{"$f":"SELECT('Condition Monitoring Report'!O30:O31)","v":true},{"$f":"SELECT('Condition Monitoring Report'!P30:P31)","v":true},null,22,10,46,290,180,"RingCoat",1,null,"0.3+0.3       (0.3 mm PM80 + 0.3 mm alu-coat)","RingCoatingCyl1to6","PistonSkirtCyl1to6","CrownTypeCyl1to6"]
[{"$f":"IF((A3)=FALSE,GOTO(A7),GOTO(A6))","v":true},{"$f":"IF((B3)=FALSE,GOTO(B7),GOTO(B6))","v":true},{"$f":"IF((C3)=FALSE,GOTO(C7),GOTO(C6))","v":true},{"$f":"IF((D3)=FALSE,GOTO(D7),GOTO(D6))","v":true},{"$f":"IF((E3)=FALSE,GOTO(E7),GOTO(E6))","v":true},{"$f":"IF((F3)=FALSE,GOTO(F7),GOTO(F6))","v":true},{"$f":"IF((G3)=FALSE,GOTO(G7),GOTO(G6))","v":true},{"$f":"IF((H3)=FALSE,GOTO(H7),GOTO(H6))","v":true},"C8","Pipe Unmachined",null,{"$f":"RUN(4)","v":false},null,"Exit","Exit","Printer setup","PrinterSetup","SHOW.TOOLBAR(2;FALSE;1;;;)",{"$f":"SHOW.BAR(\"Worksheet\")","v":true},"SHOW.TOOLBAR(2;FALSE;1;;;)","Printer Setup","PrinterSetup","SHOW.TOOLBAR(2;FALSE;1;;;)",{"$f":"PAGE.SETUP(,,,,,,,,,,1,,TRUE,,,)","v":true},"SHOW.TOOLBAR(2;FALSE;1;;;)","SHOW.TOOLBAR(2;FALSE;1;;;)",{"$f":"SELECT(!$B$30)","v":true},6,222,28,205,18,null,"CF5: Uballoy S","G45ME-B9.3-TII","AESABI     (Astilleros de Sestao S.R.L.)",{"$f":"SELECT(!$J$2)","v":true},1,380,213,88,null,"OK",null,null,null,5,175,147,null,null,"VOYAGE SCHEDULE",null,null,{"$f":"CLEAR()","v":true},{"$f":"CLEAR()","v":true},{"$f":"CLEAR()","v":true},{"$f":"CLEAR()","v":true},{"$f":"CLEAR()","v":true},{"$f":"CLEAR()","v":true},{"$f":"CLEAR()","v":true},{"$f":"CLEAR()","v":true},{"$f":"CLEAR()","v":true},{"$f":"CLEAR()","v":true},{"$f":"CLEAR()","v":true},{"$f":"CLEAR()","v":true},null,6,307,28,290,18,null,"0.5+0.1       (0.5 mm Cermet + 0.1 mm alu-coat)",null,"0.5+0.1       (0.5 mm Cermet + 0.1 mm alu-coat)",{"$f":"ECHO(FALSE)","v":true},{"$f":"ECHO(FALSE)","v":true},{"$f":"ECHO(FALSE)","v":true}]
[{"$f":"IF(ISBLANK(H24)=(TRUE),FORMULA(\"\"),FORMULA(H24))","v":true},{"$f":"IF(ISBLANK(H19)=(TRUE),FORMULA(\"\"),FORMULA(H19))","v":true},{"$f":"FORMULA(H14)","v":true},{"$f":"FORMULA(H14)","v":true},{"$f":"FORMULA( H14)","v":true},{"$f":"FORMULA(H14)","v":true},{"$f":"FORMULA(H14)","v":true},{"$f":"IF(ISBLANK(H9)=(TRUE),FORMULA(\"\"),FORMULA(H9))","v":true},"DAROS-UBALLOY","Slim",null,{"$f":"OPEN?()","v":false},null,null,null,"-",null,{"$f":"ECHO(FALSE)","v":true},{"$f":"RETURN()","v":true},{"$f":"ECHO(FALSE)","v":true},"-",null,{"$f":"ECHO(FALSE)","v":true},{"$f":"PRINT.PREVIEW()","v":false},{"$f":"ECHO(FALSE)","v":true},{"$f":"ECHO(FALSE)","v":true},{"$f":"IF((AA4)=FALSE,GOTO(AA14),GOTO(AA7))","v":true},22,222,46,205,162,"BaseMat",6,"G45ME-C9.5-TII","AESAOL     (Astolleros Bilbao)",{"$f":"IF((AK4)=FALSE,GOTO(AK8),GOTO(AK7))","v":true},2,280,213,88,null,"Cancel",null,null,null,5,11,220,null,null,"Destination port:",null,null,{"$f":"SELECT('Condition Monitoring Report'!Q23)","v":true},{"$f":"SELECT('Condition Monitoring Report'!R23)","v":true},{"$f":"SELECT('Condition Monitoring Report'!S23)","v":true},{"$f":"SELECT('Condition Monitoring Report'!T23)","v":true},{"$f":"SELECT('Condition Monitoring Report'!U23)","v":true},{"$f":"SELECT('Condition Monitoring Report'!V23)","v":true},{"$f":"SELECT('Condition Monitoring Report'!W23)","v":true},{"$f":"SELECT('Condition Monitoring Report'!X23)","v":true},{"$f":"SELECT('Condition Monitoring Report'!Y23)","v":true},{"$f":"SELECT('Condition Monitoring Report'!Z23)","v":true},{"$f":"SELECT('Condition Monitoring Report'!AA23)","v":true},{"$f":"SELECT('Condition Monitoring Report'!AB23)","v":true},null,22,307,46,290,198,"RingCoat",2,null,"0.5+0.3       (0.5 mm Cermet + 0.3 mm alu-coat)",{"$f":"DIALOG.BOX(DiaBoxRingCoating1to6)","v":false},{"$f":"DIALOG.BOX(DiaBoxPistonSkirt1to6)","v":false},{"$f":"DIALOG.BOX(DiaBoxCrownType1to6)","v":false}]
[{"$f":"RETURN()","v":true},{"$f":"RETURN()","v":true},{"$f":"RETURN()","v":true},{"$f":"RETURN()","v":true},{"$f":"RETURN()","v":true},null,null,{"$f":"RETURN()","v":true},"DAROS RVK-C","Strong Back",null,null,null,"Save",null,null,"PrintPreview",{"$f":"ADD.BAR(\"Worksheet\")","v":10},null,{"$f":"ADD.BAR(\"Worksheet\")","v":10},"Print preview meas. points 2x2 RINGS","PrintPrevMeas",{"$f":"ADD.BAR(\"Worksheet\")","v":10},{"$f":"SELECT(!$A$1)","v":true},{"$f":"ADD.BAR(\"Worksheet\")","v":10},{"$f":"ADD.BAR(\"Worksheet\")","v":10},{"$f":"IF(ISBLANK(AH3)=(TRUE),FORMULA(\"\"),FORMULA(AH3))","v":true},6,435,28,205,18,null,"CF5: Uballoy S","G50ME-B9.2","AESAVA     (Astolleros Manises)",{"$f":"IF(ISBLANK(AR3)=(TRUE),FORMULA(\"\"),FORMULA(LEFT(AR3,6)))","v":true},5,10,13,null,null,"Engine Builder",null,null,null,5,11,169,null,null,"Departure port:",null,null,{"$f":"CLEAR()","v":true},{"$f":"CLEAR()","v":true},{"$f":"CLEAR()","v":true},{"$f":"CLEAR()","v":true},{"$f":"CLEAR()","v":true},{"$f":"CLEAR()","v":true},{"$f":"CLEAR()","v":true},{"$f":"CLEAR()","v":true},{"$f":"CLEAR()","v":true},{"$f":"CLEAR()","v":true},{"$f":"CLEAR()","v":true},{"$f":"CLEAR()","v":true},null,6,602,28,290,18,null,"Al.B/Cr.       (Alu-bronze/Cr.)",null,"Al.B            (Alu-bronze)",{"$f":"SELECT(!$E$24)","v":true},{"$f":"SELECT(!$E$66)","v":true},{"$f":"SELECT(!$E$64)","v":true}]
[null,null,null,null,400,180,null,null,"DAROS RVK-C CPR-4","Unkn.",null,{"$f":"SHOW.BAR()","v":true},null,"Save",null,null,null,{"$f":"ERROR(FALSE)","v":true},null,{"$f":"ERROR(FALSE)","v":true},null,null,{"$f":"ERROR(FALSE)","v":true},{"$f":"RETURN()","v":true},{"$f":"ERROR(FALSE)","v":true},{"$f":"ERROR(FALSE)","v":true},{"$f":"SELECT(!$B$31)","v":true},22,435,46,205,162,"BaseMat",6,"G50ME-B9.2-TII","AFNESA     (Astilleros y Fabricas Nav. del Est.)",{"$f":"RETURN()","v":true},null,null,null,null,null,null,null,null,null,5,11,94,null,null,"Weather condition:",null,null,{"$f":"IF(ISBLANK('Condition Monitoring Report'!$F$3)=(TRUE),ALERT(\"Make an engine selection first\"),GOTO(Makcyl!BC16))","v":true},{"$f":"IF(ISBLANK('Condition Monitoring Report'!$F$3)=(TRUE),ALERT(\"Make an engine selection first\"),GOTO(Makcyl!BD16))","v":true},{"$f":"IF(ISBLANK('Condition Monitoring Report'!$F$3)=(TRUE),ALERT(\"Make an engine selection first\"),GOTO(Makcyl!BE16))","v":true},{"$f":"IF(ISBLANK('Condition Monitoring Report'!$F$3)=(TRUE),ALERT(\"Make an engine selection first\"),GOTO(Makcyl!BF16))","v":true},{"$f":"IF(ISBLANK('Condition Monitoring Report'!$F$3)=(TRUE),ALERT(\"Make an engine selection first\"),GOTO(Makcyl!BG16))","v":true},{"$f":"IF(ISBLANK('Condition Monitoring Report'!$F$3)=(TRUE),ALERT(\"Make an engine selection first\"),GOTO(Makcyl!BH16))","v":true},{"$f":"IF(ISBLANK('Condition Monitoring Report'!$F$3)=(TRUE),ALERT(\"Make an engine selection first\"),GOTO(Makcyl!BI16))","v":true},{"$f":"IF(ISBLANK('Condition Monitoring Report'!$F$3)=(TRUE),ALERT(\"Make an engine selection first\"),GOTO(Makcyl!BJ16))","v":true},{"$f":"IF(ISBLANK('Condition Monitoring Report'!$F$3)=(TRUE),ALERT(\"Make an engine selection first\"),GOTO(Makcyl!BK16))","v":true},{"$f":"IF(ISBLANK('Condition Monitoring Report'!$F$3)=(TRUE),ALERT(\"Make an engine selection first\"),GOTO(Makcyl!BL16))","v":true},{"$f":"IF(ISBLANK('Condition Monitoring Report'!$F$3)=(TRUE),ALERT(\"Make an engine selection first\"),GOTO(Makcyl!BM16))","v":true},{"$f":"IF(ISBLANK('Condition Monitoring Report'!$F$3)=(TRUE),ALERT(\"Make an engine selection first\"),GOTO(Makcyl!BN16))","v":true},null,22,602,46,290,198,"RingCoat",5,null,"Al.B/Cr.       (Alu-bronze/Cr.)",{"$f":"IF((BY6)=FALSE,GOTO(BY20),GOTO(BY9))","v":true},{"$f":"IF((BZ6)=FALSE,GOTO(BZ20),GOTO(BZ9))","v":true},{"$f":"IF((CA6)=FALSE,GOTO(CA20),GOTO(CA9))","v":true}]
[null,6,10,6,373,18,null,"Alfacylo 100 HS","DAROS RVK-C CPR-6",null,null,{"$f":"RUN(1)","v":false},null,"Save","Save","PrintPreview()",null,{"$f":"DELETE.MENU(\"Worksheet\",\"File\")","v":true},null,{"$f":"DELETE.MENU(\"Worksheet\",\"File\")","v":true},null,null,{"$f":"DELETE.MENU(\"Worksheet\",\"File\")","v":true},null,{"$f":"DELETE.MENU(\"Worksheet\",\"File\")","v":true},{"$f":"DELETE.MENU(\"Worksheet\",\"File\")","v":true},{"$f":"IF(ISBLANK(AH5)=(TRUE),FORMULA(\"\"),FORMULA(AH5))","v":true},6,647,28,205,18,null,"CF5: Uballoy S","G50ME-B9.3","AKERSN     (Akers Mek. Verksted)",null,null,null,null,null,null,null,null,null,null,5,11,70,null,null,"Ship position:",null,null,{"$f":"SELECT('Condition Monitoring Report'!Q22)","v":true},{"$f":"SELECT('Condition Monitoring Report'!R22)","v":true},{"$f":"SELECT('Condition Monitoring Report'!S22)","v":true},{"$f":"SELECT('Condition Monitoring Report'!T22)","v":true},{"$f":"SELECT('Condition Monitoring Report'!U22)","v":true},{"$f":"SELECT('Condition Monitoring Report'!V22)","v":true},{"$f":"SELECT('Condition Monitoring Report'!W22)","v":true},{"$f":"SELECT('Condition Monitoring Report'!X22)","v":true},{"$f":"SELECT('Condition Monitoring Report'!Y22)","v":true},{"$f":"SELECT('Condition Monitoring Report'!Z22)","v":true},{"$f":"SELECT('Condition Monitoring Report'!AA22)","v":true},{"$f":"SELECT('Condition Monitoring Report'!AB22)","v":true},null,6,899,28,290,18,null,"C+Ri1NG    (Cermet + Ri1: NiGr)",null,"BR10          (BR10)",{"$f":"IF(ISBLANK(BV3)=(TRUE),FORMULA(\"\"),FORMULA(LEFT(BV3,8)))","v":true},{"$f":"IF(ISBLANK(BV50)=(TRUE),FORMULA(\"\"),FORMULA(LEFT(BV50,9)))","v":true},{"$f":"IF(ISBLANK(BV98)=(TRUE),FORMULA(\"\"),FORMULA(LEFT(BV98,8)))","v":true}]
[null,22,10,24,373,108,"OILT",6,"NPR-U",null,null,{"$f":"RUN(\"makcyl!r1c20\")","v":false},null,"Save As...","SaveAs",{"$f":"ECHO(FALSE)","v":true},null,{"$f":"DELETE.MENU(\"Worksheet\",\"Edit\")","v":true},null,{"$f":"DELETE.MENU(\"Worksheet\",\"Edit\")","v":true},null,null,{"$f":"DELETE.MENU(\"Worksheet\",\"Edit\")","v":true},null,{"$f":"DELETE.MENU(\"Worksheet\",\"Edit\")","v":true},{"$f":"DELETE.MENU(\"Worksheet\",\"Edit\")","v":true},{"$f":"SELECT(!$B$32)","v":true},22,647,46,205,162,"BaseMat",6,"G50ME-B9.3-GI-TII","ANSALD     (Ansaldo Italien)",null,null,null,null,null,null,null,null,null,null,5,11,118,null,null,"Seawater temp. (°C):",null,null,{"$f":"CLEAR()","v":true},{"$f":"CLEAR()","v":true},{"$f":"CLEAR()","v":true},{"$f":"CLEAR()","v":true},{"$f":"CLEAR()","v":true},{"$f":"CLEAR()","v":true},{"$f":"CLEAR()","v":true},{"$f":"CLEAR()","v":true},{"$f":"CLEAR()","v":true},{"$f":"CLEAR()","v":true},{"$f":"CLEAR()","v":true},{"$f":"CLEAR()","v":true},null,22,899,46,290,198,"RingCoat",7,null,"C+Ri1NG    (Cermet + Ri1: NiGr)",{"$f":"SELECT(!$F$24)","v":true},{"$f":"SELECT(!$F$66)","v":true},{"$f":"SELECT(!$F$64)","v":true}]
[null,1,295,148,88,null,"OK",null,"OTHER","Coating",null,{"$f":"RETURN()","v":true},null,null,null,{"$f":"SELECT(!$A$1:$P$50)","v":true},null,"DELETE.MENU(\"Worksheet\";\"View\")",null,"DELETE.MENU(\"Worksheet\";\"View\")",null,null,"DELETE.MENU(\"Worksheet\";\"View\")",null,"DELETE.MENU(\"Worksheet\";\"View\")","DELETE.MENU(\"Worksheet\";\"View\")",{"$f":"IF(ISBLANK(AH7)=(TRUE),FORMULA(\"\"),FORMULA(AH7))","v":true},1,761,183,88,null,"OK",null,"G50ME-B9.3-LGI-TII","ATLANT     (Alsthom Atlantique)","EngineType(Insp. thr. scav. port)",null,null,null,228,180,"Engine Type",null,null,null,5,11,193,null,null,"Date (yyyy-mm-dd):",null,null,{"$f":"FORMULA.GOTO('Condition Monitoring Report'!$F$3)","v":true},{"$f":"FORMULA.GOTO('Condition Monitoring Report'!$F$3)","v":true},{"$f":"FORMULA.GOTO('Condition Monitoring Report'!$F$3)","v":true},{"$f":"FORMULA.GOTO('Condition Monitoring Report'!$F$3)","v":true},{"$f":"FORMULA.GOTO('Condition Monitoring Report'!$F$3)","v":true},{"$f":"FORMULA.GOTO('Condition Monitoring Report'!$F$3)","v":true},{"$f":"FORMULA.GOTO('Condition Monitoring Report'!$F$3)","v":true},{"$f":"FORMULA.GOTO('Condition Monitoring Report'!$F$3)","v":true},{"$f":"FORMULA.GOTO('Condition Monitoring Report'!$F$3)","v":true},{"$f":"FORMULA.GOTO('Condition Monitoring Report'!$F$3)","v":true},{"$f":"FORMULA.GOTO('Condition Monitoring Report'!$F$3)","v":true},{"$f":"FORMULA.GOTO('Condition Monitoring Report'!$F$3)","v":true},null,1,908,185,89,null,"OK",null,null,"Chrome      (Chrome)",{"$f":"IF(ISBLANK(BV5)=(TRUE),FORMULA(\"\"),FORMULA(LEFT(BV5,8)))","v":true},{"$f":"IF(ISBLANK(BV52)=(TRUE),FORMULA(\"\"),FORMULA(LEFT(BV52,9)))","v":true},{"$f":"IF(ISBLANK(BV100)=(TRUE),FORMULA(\"\"),FORMULA(LEFT(BV100,8)))","v":true}]
["Lukalt()",2,198,148,88,null,"Cancel",null,"PLASMA COATED","0.3 mm PM80 + 0.3 mm alu-coat",null,null,"Save()",null,null,{"$f":"SET.PRINT.AREA()","v":true},null,{"$f":"DELETE.MENU(\"Worksheet\",\"Insert\")","v":true},null,{"$f":"DELETE.MENU(\"Worksheet\",\"Insert\")","v":true},"Zoom",null,{"$f":"DELETE.MENU(\"Worksheet\",\"Insert\")","v":true},null,{"$f":"DELETE.MENU(\"Worksheet\",\"Insert\")","v":true},{"$f":"DELETE.MENU(\"Worksheet\",\"Insert\")","v":true},{"$f":"SELECT(!$B$33)","v":true},2,663,183,88,null,"Cancel",null,"G50ME-B9.3-TII","BABWIL     (Babcock-Wilcox)",{"$f":"ECHO(FALSE)","v":true},6,10,6,205,18,null,"G50ME-B9.3-LGI-TII",null,null,5,11,244,null,null,"Date (yyyy-mm-dd):",null,null,{"$f":"VSCROLL(1,TRUE)","v":true},{"$f":"VSCROLL(1,TRUE)","v":true},{"$f":"VSCROLL(1,TRUE)","v":true},{"$f":"VSCROLL(1,TRUE)","v":true},{"$f":"VSCROLL(1,TRUE)","v":true},{"$f":"VSCROLL(1,TRUE)","v":true},{"$f":"VSCROLL(1,TRUE)","v":true},{"$f":"VSCROLL(1,TRUE)","v":true},{"$f":"VSCROLL(1,TRUE)","v":true},{"$f":"VSCROLL(1,TRUE)","v":true},{"$f":"VSCROLL(1,TRUE)","v":true},{"$f":"VSCROLL(1,TRUE)","v":true},null,2,810,185,89,null,"Cancel",null,null,"Cr-Cera      (Cr-Ceramic)",{"$f":"SELECT(!$G$24)","v":true},{"$f":"SELECT(!$G$66)","v":true},{"$f":"SELECT(!$G$64)","v":true}]
[{"$f":"ECHO(FALSE)","v":false},null,null,null,228,180,"Wear type",null,"RIKEN-UBALLOY","0.5 mm Cermet + 0.1 mm alu-coat",null,null,{"$f":"ECHO(FALSE)","v":true},null,null,{"$f":"PAGE.SETUP(,,,,,,,,,,1,,TRUE,,,)","v":true},null,{"$f":"DELETE.MENU(\"Worksheet\",\"Format\")","v":true},null,{"$f":"DELETE.MENU(\"Worksheet\",\"Format\")","v":true},"Zoom",null,{"$f":"DELETE.MENU(\"Worksheet\",\"Format\")","v":true},null,{"$f":"DELETE.MENU(\"Worksheet\",\"Format\")","v":true},{"$f":"DELETE.MENU(\"Worksheet\",\"Format\")","v":true},{"$f":"IF(ISBLANK(AH9)=(TRUE),FORMULA(\"\"),FORMULA(AH9))","v":true},5,10,13,null,null,"Ring 1",null,"G50ME-B9.3-TII","BAZAN.     (Bazan)",{"$f":"DIALOG.BOX(DiaBoxEngineType)","v":false},22,10,24,205,126,"EngineType",10,null,null,205,8,20,null,null,"___________________________________________________",null,null,{"$f":"HSCROLL(1,TRUE)","v":true},{"$f":"HSCROLL(1,TRUE)","v":true},{"$f":"HSCROLL(1,TRUE)","v":true},{"$f":"HSCROLL(1,TRUE)","v":true},{"$f":"HSCROLL(1,TRUE)","v":true},{"$f":"HSCROLL(1,TRUE)","v":true},{"$f":"HSCROLL(1,TRUE)","v":true},{"$f":"HSCROLL(1,TRUE)","v":true},{"$f":"HSCROLL(1,TRUE)","v":true},{"$f":"HSCROLL(1,TRUE)","v":true},{"$f":"HSCROLL(1,TRUE)","v":true},{"$f":"HSCROLL(1,TRUE)","v":true},null,5,10,13,null,null,"Cyl. 1",null,null,"FX 326       (FX 326)",{"$f":"IF(ISBLANK(BV7)=(TRUE),FORMULA(\"\"),FORMULA(LEFT(BV7,8)))","v":true},{"$f":"IF(ISBLANK(BV54)=(TRUE),FORMULA(\"\"),FORMULA(LEFT(BV54,9)))","v":true},{"$f":"IF(ISBLANK(BV102)=(TRUE),FORMULA(\"\"),FORMULA(LEFT(BV102,8)))","v":true}]
[{"$f":"ACTIVATE(\"makcyl!\")","v":false},6,10,6,205,18,null,"Scuffing","RM4","0.5 mm Cermet + 0.3 mm alu-coat",null,"OpenPistonCrown()",{"$f":"GET.WINDOW(1)","v":"[Cylcondny.xls]Liner Meas. Points OROS PISTON"},null,null,{"$f":"PRINT.PREVIEW()","v":false},null,{"$f":"DELETE.MENU(\"Worksheet\",\"Tools\")","v":true},null,{"$f":"DELETE.MENU(\"Worksheet\",\"Tools\")","v":true},"Zoom In","Zoom100",{"$f":"DELETE.MENU(\"Worksheet\",\"Tools\")","v":true},"Print_PistonCrown()",{"$f":"DELETE.MENU(\"Worksheet\",\"Tools\")","v":true},{"$f":"DELETE.MENU(\"Worksheet\",\"Tools\")","v":true},{"$f":"RETURN()","v":true},5,223,13,null,null,"Ring 2",null,"G50ME-B9.5-TII","BREVUL     (Bremer Vulcan)",{"$f":"SELECT(!$E$3)","v":true},1,133,151,88,null,"OK",null,null,null,1,325,279,88,null,"OK",null,null,{"$f":"PROTECT.DOCUMENT(TRUE,,\"opera\",TRUE)","v":true},{"$f":"PROTECT.DOCUMENT(TRUE,,\"opera\",TRUE)","v":true},{"$f":"PROTECT.DOCUMENT(TRUE,,\"opera\",TRUE)","v":true},{"$f":"PROTECT.DOCUMENT(TRUE,,\"opera\",TRUE)","v":true},{"$f":"PROTECT.DOCUMENT(TRUE,,\"opera\",TRUE)","v":true},{"$f":"PROTECT.DOCUMENT(TRUE,,\"opera\",TRUE)","v":true},true,true,true,true,true,true,null,5,308,13,null,null,"Cyl. 2",null,null,"Laser H      (Laser Hardened)",{"$f":"SELECT(!$H$24)","v":true},{"$f":"SELECT(!$H$66)","v":true},{"$f":"SELECT(!$H$64)","v":true}]
[{"$f":"CLOSE()","v":true},22,10,24,205,126,"WearType",4,"RM4-T","Alu-bronze",null,{"$f":"ECHO(FALSE)","v":true},{"$f":"IF(AND(M14=\"cylcond.xls\",!$P$1=561),GOTO(M18),GOTO(M16))","v":true},null,null,{"$f":"SELECT(!$A$1)","v":true},null,{"$f":"DELETE.MENU(\"Worksheet\",\"Data\")","v":true},null,{"$f":"DELETE.MENU(\"Worksheet\",\"Data\")","v":true},"Zoom Out","Zoom55",{"$f":"DELETE.MENU(\"Worksheet\",\"Data\")","v":true},{"$f":"ECHO(FALSE)","v":true},{"$f":"DELETE.MENU(\"Worksheet\",\"Data\")","v":true},{"$f":"DELETE.MENU(\"Worksheet\",\"Data\")","v":true},null,5,435,13,null,null,"Ring 3",null,"G50ME-C9.5-GI-TII","BRIJAN     (Bryansk Engineering Works)",{"$f":"IF((AK13)=FALSE,GOTO(AK17),GOTO(AK16))","v":true},2,38,151,88,null,"Cancel",null,null,null,2,228,279,88,null,"Canel",null,null,{"$f":"RETURN()","v":true},{"$f":"RETURN()","v":true},{"$f":"RETURN()","v":true},{"$f":"RETURN()","v":true},{"$f":"RETURN()","v":true},{"$f":"RETURN()","v":true},{"$f":"RETURN()","v":true},{"$f":"RETURN()","v":true},{"$f":"RETURN()","v":true},{"$f":"RETURN()","v":true},{"$f":"RETURN()","v":true},{"$f":"RETURN()","v":true},null,5,602,13,null,null,"Cyl. 3",null,null,"Laser M     (Laser Melted)",{"$f":"IF(ISBLANK(BV9)=(TRUE),FORMULA(\"\"),FORMULA(LEFT(BV9,8)))","v":true},{"$f":"IF(ISBLANK(BV56)=(TRUE),FORMULA(\"\"),FORMULA(LEFT(BV56,9)))","v":true},{"$f":"IF(ISBLANK(BV104)=(TRUE),FORMULA(\"\"),FORMULA(LEFT(BV104,8)))","v":true}]
[{"$f":"RETURN()","v":true},1,133,151,88,null,"OK",null,"RM4-TX","FX 326",null,{"$f":"ERROR(FALSE)","v":true},{"$f":"IF(AND(M14=\"cylcond.xls\",!$P$1<>561),ALERT(\"WARNING: Overwrite the original file?\",1),GOTO(M18))","v":true},"Zoom",null,{"$f":"RETURN()","v":true},null,{"$f":"DELETE.MENU(\"Worksheet\",\"Help\")","v":true},null,{"$f":"DELETE.MENU(\"Worksheet\",\"Help\")","v":true},"Fit screen","ZoomFitMeas",{"$f":"DELETE.MENU(\"Worksheet\",\"Help\")","v":true},{"$f":"SELECT(!$A$1:$O$58)","v":true},{"$f":"DELETE.MENU(\"Worksheet\",\"Help\")","v":true},{"$f":"DELETE.MENU(\"Worksheet\",\"Help\")","v":true},null,5,647,13,null,null,"Ring 4",null,"G50ME-C9.5-TIII","BWALPH     (B&W Alpha Diesel (4-stroke))",{"$f":"IF(ISBLANK(AR12)=(TRUE),FORMULA(\"\"),FORMULA(AR12))","v":true},null,null,null,null,null,null,null,null,null,6,173,69,239,18,null,null,null,{"$f":"ACTIVATE(\"Makcyl\")","v":true},{"$f":"ACTIVATE(\"Makcyl\")","v":true},{"$f":"ACTIVATE(\"Makcyl\")","v":true},{"$f":"ACTIVATE(\"Makcyl\")","v":true},{"$f":"ACTIVATE(\"Makcyl\")","v":true},{"$f":"ACTIVATE(\"Makcyl\")","v":true},{"$f":"ACTIVATE(\"Makcyl\")","v":true},{"$f":"ACTIVATE(\"Makcyl\")","v":true},{"$f":"ACTIVATE(\"Makcyl\")","v":true},{"$f":"ACTIVATE(\"Makcyl\")","v":true},{"$f":"ACTIVATE(\"Makcyl\")","v":true},{"$f":"ACTIVATE(\"Makcyl\")","v":true},null,5,899,13,null,null,"Cyl. 4",null,null,"NI.CR        (NI.CR)",{"$f":"SELECT(!$I$24)","v":true},{"$f":"SELECT(!$I$66)","v":true},{"$f":"SELECT(!$I$64)","v":true}]
[null,2,38,151,88,null,"Cancel",null,"RM5","No",null,{"$f":"RUN(4)","v":false},{"$f":"IF(M16=TRUE,GOTO(M18),GOTO(M27))","v":false},"Zoom",null,null,null,{"$f":"ADD.MENU(\"Worksheet\",N2:O5,1)","v":1},null,{"$f":"ADD.MENU(\"Worksheet\",$M$36:$N$39,1)","v":1},"PrintPistonCrown",null,{"$f":"ADD.MENU(\"Worksheet\",O36:P39,1)","v":1},{"$f":"SET.PRINT.AREA()","v":true},{"$f":"ADD.MENU(\"Worksheet\",$M$36:$N$39,1)","v":1},{"$f":"ADD.MENU(\"Worksheet\",$M$36:$N$39,1)","v":1},null,null,null,null,null,null,null,null,"G60ME-C9","BWFRHV     (B&W Alpha Diesel 2-T)",{"$f":"RETURN()","v":true},null,null,null,null,null,null,null,null,null,22,173,87,239,126,"ShipPosition",null,null,{"$f":"SELECT(\"R63C44;R64C44\")","v":true},{"$f":"SELECT(\"R63C44;R64C44\")","v":true},{"$f":"SELECT(\"R63C44;R64C44\")","v":true},{"$f":"SELECT(\"R63C44;R64C44\")","v":true},{"$f":"SELECT(\"R63C44;R64C44\")","v":true},{"$f":"SELECT(\"R63C44;R64C44\")","v":true},{"$f":"SELECT(\"R63C44;R64C44\")","v":true},{"$f":"SELECT(\"R63C44;R64C44\")","v":true},{"$f":"SELECT(\"R63C44;R64C44\")","v":true},{"$f":"SELECT(\"R63C44;R64C44\")","v":true},{"$f":"SELECT(\"R63C44;R64C44\")","v":true},{"$f":"SELECT(\"R63C44;R64C44\")","v":true},null,6,1196,29,290,18,null,"Laser H      (Laser Hardened)",null,"No             (No)  ",{"$f":"IF(ISBLANK(BV17)=(TRUE),FORMULA(\"\"),FORMULA(LEFT(BV17,8)))","v":true},{"$f":"IF(ISBLANK(BV64)=(TRUE),FORMULA(\"\"),FORMULA(LEFT(BV64,9)))","v":true},{"$f":"IF(ISBLANK(BV112)=(TRUE),FORMULA(\"\"),FORMULA(LEFT(BV112,8)))","v":true}]
[null,null,null,null,228,180,"Liner Cool type",null,"RM5-T","PM14",null,{"$f":"OPEN?()","v":true},{"$f":"SAVE()","v":true},"Zoom In","Zoom100",null,null,{"$f":"ADD.MENU(\"Worksheet\",N8:O10,2)","v":2},null,{"$f":"ADD.MENU(\"Worksheet\",$N$8:$O$10,2)","v":2},"Print",null,{"$f":"ADD.MENU(\"Worksheet\",N8:O10,2)","v":2},{"$f":"PRINT(1,,,1,,,,,,300,)","v":true},{"$f":"ADD.MENU(\"Worksheet\",$N$8:$O$10,2)","v":2},{"$f":"ADD.MENU(\"Worksheet\",$N$8:$O$10,2)","v":2},null,null,null,null,null,null,null,null,"G60ME-C9.2","BWHOLB     (B&W Holeby Diesel)",null,null,null,null,null,null,null,null,null,null,6,173,95,160,18,null,null,null,{"$f":"CLEAR(3)","v":true},{"$f":"CLEAR(3)","v":true},{"$f":"CLEAR(3)","v":true},{"$f":"CLEAR(3)","v":true},{"$f":"CLEAR(3)","v":true},{"$f":"CLEAR(3)","v":true},{"$f":"CLEAR(3)","v":true},{"$f":"CLEAR(3)","v":true},{"$f":"CLEAR(3)","v":true},{"$f":"CLEAR(3)","v":true},{"$f":"CLEAR(3)","v":true},{"$f":"CLEAR(3)","v":true},null,22,1196,47,290,215,"RingCoat",11,null,"PM14        (PM14)",{"$f":"SELECT(!$J$24)","v":true},{"$f":"SELECT(!$J$66)","v":true},{"$f":"SELECT(!$J$64)","v":true}]
[null,6,10,6,205,18,null,"Pipe Unmachined","RM5-TX","RF2312",null,{"$f":"IF(L18=(FALSE),GOTO(L22),GOTO(L20))","v":true},{"$f":"RETURN()","v":true},"Zoom Out","Zoom55","Special",null,{"$f":"ADD.MENU(\"Worksheet\",N43:O47,3)","v":3},null,{"$f":"ADD.MENU(\"Worksheet\",$N$43:$O$47,3)","v":3},"Print Piston Crown - Special Points","Print_PistonCrown",{"$f":"ADD.MENU(\"Worksheet\",N43:O47,3)","v":3},{"$f":"SELECT(!$A$1)","v":true},{"$f":"ADD.MENU(\"Worksheet\",$N$43:$O$47,3)","v":3},{"$f":"ADD.MENU(\"Worksheet\",$N$43:$O$47,3)","v":3},null,null,null,null,null,null,null,null,"G60ME-C9.2-TII","BWMASK     (B&W Diesel)","JCW bypass",null,null,null,228,180,"JCW bypass",null,null,null,22,173,113,160,126,"WeatherCondition",null,null,{"$f":"ACTIVATE(\"Condition Monitoring Report\")","v":true},{"$f":"ACTIVATE(\"Condition Monitoring Report\")","v":true},{"$f":"ACTIVATE(\"Condition Monitoring Report\")","v":true},{"$f":"ACTIVATE(\"Condition Monitoring Report\")","v":true},{"$f":"ACTIVATE(\"Condition Monitoring Report\")","v":true},{"$f":"ACTIVATE(\"Condition Monitoring Report\")","v":true},{"$f":"ACTIVATE(\"Condition Monitoring Report\")","v":true},{"$f":"ACTIVATE(\"Condition Monitoring Report\")","v":true},{"$f":"ACTIVATE(\"Condition Monitoring Report\")","v":true},{"$f":"ACTIVATE(\"Condition Monitoring Report\")","v":true},{"$f":"ACTIVATE(\"Condition Monitoring Report\")","v":true},{"$f":"ACTIVATE(\"Condition Monitoring Report\")","v":true},null,6,1493,28,290,18,null,"C+Ri1NG    (Cermet + Ri1: NiGr)",null,"RF2312     (RF2312)",{"$f":"IF(ISBLANK(BV19)=(TRUE),FORMULA(\"\"),FORMULA(LEFT(BV19,8)))","v":true},{"$f":"IF(ISBLANK(BV66)=(TRUE),FORMULA(\"\"),FORMULA(LEFT(BV66,9)))","v":true},{"$f":"IF(ISBLANK(BV114)=(TRUE),FORMULA(\"\"),FORMULA(LEFT(BV114,8)))","v":true}]
[null,22,10,24,205,126,"CTYPE",4,"RVK","RF2313",null,{"$f":"SHOW.BAR()","v":true},null,"Fit screen","ZoomFit","Protection",null,{"$f":"ADD.MENU(\"Worksheet\",P2:Q7,5)","v":5},null,{"$f":"ADD.MENU(\"Worksheet\",$U$2:$V$7,5)","v":5},"-",null,{"$f":"ADD.MENU(\"Worksheet\",U18:V23,5)","v":5},{"$f":"HALT()","v":true},{"$f":"ADD.MENU(\"Worksheet\",$Y$31:$Z$36,5)","v":5},{"$f":"ADD.MENU(\"Worksheet\",$Y$45:$Z$50,5)","v":5},"Coating",null,null,null,null,null,null,null,"G60ME-C9.2-TIII","CANTAN     (Cantiere Navale R.)",{"$f":"ECHO(FALSE)","v":true},6,10,6,205,18,null,"Load dependent bypass",null,null,8,173,116,78,null,null,null,null,"Special: engine type 90-98 coating","Special: engine type 90-98 coating","Special: engine type 90-98 coating","Special: engine type 90-98 coating","Special: engine type 90-98 coating","Special: engine type 90-98 coating","Special: engine type 90-98 coating","Special: engine type 90-98 coating","Special: engine type 90-98 coating","Special: engine type 90-98 coating","Special: engine type 90-98 coating","Special: engine type 90-98 coating",null,22,1493,46,290,216,"RingCoat",7,null,"RF2313     (RF2313)",{"$f":"RETURN()","v":true},{"$f":"RETURN()","v":true},{"$f":"RETURN()","v":true}]
[null,1,133,151,88,null,"OK",null,"Unkn.","Test",null,{"$f":"RUN(1)","v":false},null,"Window",null,"Protect document","Protect",{"$f":"ADD.MENU(\"Worksheet\",N17:O20,6)","v":6},null,{"$f":"ADD.MENU(\"Worksheet\",$U$13:$V$16,6)","v":6},"Printer Setup","PrinterSetup",{"$f":"ADD.MENU(\"Worksheet\",R32:S35,6)","v":6},null,{"$f":"ADD.MENU(\"Worksheet\",$U$13:$V$16,6)","v":6},{"$f":"ADD.MENU(\"Worksheet\",$U$13:$V$16,6)","v":6},{"$f":"ECHO(FALSE)","v":true},null,null,null,null,null,null,null,"G60ME-C9.5-TII","CEGIEL     (Cegielski)",{"$f":"DIALOG.BOX(DiaBoxJCWbypass)","v":3},22,10,24,205,126,"JCWbypass",2,null,null,6,173,166,239,null,null,null,null,{"$f":"IF(OR(MID('Condition Monitoring Report'!$F$3,2,2)=\"90\",MID('Condition Monitoring Report'!$F$3,2,2)=\"98\"),GOTO(BC22),GOTO(BC39))","v":true},{"$f":"IF(OR(MID('Condition Monitoring Report'!$F$3,2,2)=\"90\",MID('Condition Monitoring Report'!$F$3,2,2)=\"98\"),GOTO(BD22),GOTO(BD39))","v":true},{"$f":"IF(OR(MID('Condition Monitoring Report'!$F$3,2,2)=\"90\",MID('Condition Monitoring Report'!$F$3,2,2)=\"98\"),GOTO(BE22),GOTO(BE39))","v":true},{"$f":"IF(OR(MID('Condition Monitoring Report'!$F$3,2,2)=\"90\",MID('Condition Monitoring Report'!$F$3,2,2)=\"98\"),GOTO(BF22),GOTO(BF39))","v":true},{"$f":"IF(OR(MID('Condition Monitoring Report'!$F$3,2,2)=\"90\",MID('Condition Monitoring Report'!$F$3,2,2)=\"98\"),GOTO(BG22),GOTO(BG39))","v":true},{"$f":"IF(OR(MID('Condition Monitoring Report'!$F$3,2,2)=\"90\",MID('Condition Monitoring Report'!$F$3,2,2)=\"98\"),GOTO(BH22),GOTO(BH39))","v":true},{"$f":"IF(OR(MID('Condition Monitoring Report'!$F$3,2,2)=\"90\",MID('Condition Monitoring Report'!$F$3,2,2)=\"98\"),GOTO(BI22),GOTO(BI39))","v":true},{"$f":"IF(OR(MID('Condition Monitoring Report'!$F$3,2,2)=\"90\",MID('Condition Monitoring Report'!$F$3,2,2)=\"98\"),GOTO(BJ22),GOTO(BJ39))","v":true},{"$f":"IF(OR(MID('Condition Monitoring Report'!$F$3,2,2)=\"90\",MID('Condition Monitoring Report'!$F$3,2,2)=\"98\"),GOTO(BK22),GOTO(BK39))","v":true},{"$f":"IF(OR(MID('Condition Monitoring Report'!$F$3,2,2)=\"90\",MID('Condition Monitoring Report'!$F$3,2,2)=\"98\"),GOTO(BL22),GOTO(BL39))","v":true},{"$f":"IF(OR(MID('Condition Monitoring Report'!$F$3,2,2)=\"90\",MID('Condition Monitoring Report'!$F$3,2,2)=\"98\"),GOTO(BM22),GOTO(BM39))","v":true},{"$f":"IF(OR(MID('Condition Monitoring Report'!$F$3,2,2)=\"90\",MID('Condition Monitoring Report'!$F$3,2,2)=\"98\"),GOTO(BN22),GOTO(BN39))","v":true},null,5,1196,13,null,null,"Cyl. 5",null,null,"RIAS         (RIAS)"]
[null,2,38,151,88,null,"Cancel",null,"MATLIN","Unkn.",null,{"$f":"RUN(\"makcyl!r1c23\")","v":{"$error":"#VALUE!"}},null,"Window",null,"Unprotect document","Unprotect",{"$f":"ADD.MENU(\"Worksheet\",P20:Q22,7)","v":7},null,{"$f":"ADD.MENU(\"Worksheet\",$P$20:$Q$22,7)","v":7},"-",null,{"$f":"ADD.MENU(\"Worksheet\",P20:Q22,7)","v":7},null,{"$f":"ADD.MENU(\"Worksheet\",$P$20:$Q$22,7)","v":7},{"$f":"ADD.MENU(\"Worksheet\",$P$20:$Q$22,7)","v":7},{"$f":"DIALOG.BOX(DiaBoxCoating)","v":9},null,null,null,1186,212,"Coating",null,"G70ME-C9","CMD     (CSSC-MES Diesel Co., Ltd.)",{"$f":"SELECT(!$H$10)","v":true},1,133,151,88,null,"OK",null,null,null,8,173,189,150,null,null,null,null,{"$f":"DIALOG.BOX(CLCoatSelection)","v":4},{"$f":"DIALOG.BOX(CLCoatSelection)","v":4},{"$f":"DIALOG.BOX(CLCoatSelection)","v":4},{"$f":"DIALOG.BOX(CLCoatSelection)","v":4},{"$f":"DIALOG.BOX(CLCoatSelection)","v":4},{"$f":"DIALOG.BOX(CLCoatSelection)","v":false},{"$f":"DIALOG.BOX(CLCoatSelection)","v":4},{"$f":"DIALOG.BOX(CLCoatSelection)","v":4},{"$f":"DIALOG.BOX(CLCoatSelection)","v":4},{"$f":"DIALOG.BOX(CLCoatSelection)","v":4},{"$f":"DIALOG.BOX(CLCoatSelection)","v":4},{"$f":"DIALOG.BOX(CLCoatSelection)","v":4},null,5,1493,13,null,null,"Cyl. 6",null,null,"Test          (Test)"]
[null,null,null,null,228,180,"Liner Material",null,"CGI",null,null,{"$f":"RETURN()","v":true},null,"Next window ","NextWindow","-",null,{"$f":"ADD.MENU(\"Worksheet\",R45:S50,7)","v":7},null,{"$f":"ADD.MENU(\"Worksheet\",$R$45:$S$50,7)","v":7},"Print preview","PrintPreviewPistonCrown",{"$f":"ADD.MENU(\"Worksheet\",R45:S50,7)","v":7},null,{"$f":"ADD.MENU(\"Worksheet\",$R$45:$S$50,7)","v":7},{"$f":"ADD.MENU(\"Worksheet\",$R$45:$S$50,7)","v":7},{"$f":"SELECT(!$D$30)","v":true},6,10,28,281,18,null,"Cr-Ceramic","G70ME-C9.2","COCRIL     (Cockerill Mechanical Industries S.A.)",{"$f":"IF((AK21)=FALSE,GOTO(AK25),GOTO(AK24))","v":true},2,38,151,88,null,"Cancel",null,null,null,6,173,218,238,null,null,null,null,{"$f":"IF(BC22=(4),GOTO(BC25),GOTO(BC33))","v":true},{"$f":"IF(BD22=(4),GOTO(BD25),GOTO(BD33))","v":true},{"$f":"IF(BE22=(4),GOTO(BE25),GOTO(BE33))","v":true},{"$f":"IF(BF22=(4),GOTO(BF25),GOTO(BF33))","v":true},{"$f":"IF(BG22=(4),GOTO(BG25),GOTO(BG33))","v":true},{"$f":"IF(BH22=(4),GOTO(BH25),GOTO(BH33))","v":true},{"$f":"IF(BI22=(4),GOTO(BI25),GOTO(BI33))","v":true},{"$f":"IF(BJ22=(4),GOTO(BJ25),GOTO(BJ33))","v":true},{"$f":"IF(BK22=(4),GOTO(BK25),GOTO(BK33))","v":true},{"$f":"IF(BL22=(4),GOTO(BL25),GOTO(BL33))","v":true},{"$f":"IF(BM22=(4),GOTO(BM25),GOTO(BM33))","v":true},{"$f":"IF(BN22=(4),GOTO(BN25),GOTO(BN33))","v":true},null,null,null,null,null,null,null,null,null,"Unkn.        (Unknown)"]
[null,6,10,6,205,18,null,"TARKALLOY-C-VA","CR.PL.STEELTOP",null,null,null,null,null,null,"Hide macro sheet","Hide",{"$f":"SHOW.BAR(\"Worksheet\")","v":true},null,{"$f":"SHOW.BAR(\"Worksheet\")","v":true},null,null,{"$f":"SHOW.BAR(\"Worksheet\")","v":true},null,{"$f":"SHOW.BAR(\"Worksheet\")","v":true},{"$f":"SHOW.BAR(\"Worksheet\")","v":true},{"$f":"IF((AA22)=FALSE,GOTO(AA32),GOTO(AA25))","v":true},22,10,46,281,162,"Coating",9,"G70ME-C9.2-GI-T2","CONNAV     (Construccion Naval)",{"$f":"IF(ISBLANK(AR20)=(TRUE),FORMULA(\"\"),FORMULA(AR20))","v":true},null,null,null,null,null,null,null,null,null,8,173,241,150,null,null,null,null,{"$f":"IF('Condition Monitoring Report'!Q22=FALSE,GOTO(BC33),GOTO(BC25))","v":false},{"$f":"IF('Condition Monitoring Report'!R22=FALSE,GOTO(BD33),GOTO(BD25))","v":false},{"$f":"IF('Condition Monitoring Report'!S22=FALSE,GOTO(BE33),GOTO(BE25))","v":false},{"$f":"IF('Condition Monitoring Report'!T22=FALSE,GOTO(BF33),GOTO(BF25))","v":false},{"$f":"IF('Condition Monitoring Report'!U22=FALSE,GOTO(BG33),GOTO(BG25))","v":false},{"$f":"IF('Condition Monitoring Report'!V22=FALSE,GOTO(BH33),GOTO(BH25))","v":false},{"$f":"IF('Condition Monitoring Report'!W22=FALSE,GOTO(BI33),GOTO(BI25))","v":false},{"$f":"IF('Condition Monitoring Report'!X22=FALSE,GOTO(BJ33),GOTO(BJ25))","v":false},{"$f":"IF('Condition Monitoring Report'!Y22=FALSE,GOTO(BK33),GOTO(BK25))","v":false},{"$f":"IF('Condition Monitoring Report'!Z22=FALSE,GOTO(BL33),GOTO(BL25))","v":false},{"$f":"IF('Condition Monitoring Report'!AA22=FALSE,GOTO(BM33),GOTO(BM25))","v":false},{"$f":"IF('Condition Monitoring Report'!AB22=FALSE,GOTO(BN33),GOTO(BN25))","v":false},null,"DiaBoxRingCoating7to12"]
[null,22,10,24,205,126,"MATLIN",10,"DUAL-CAST","Profile",null,null,null,"NextWindow()","PrinterSetup()","Unhide macro sheet","Unhide",{"$f":"RETURN()","v":true},null,{"$f":"RETURN()","v":true},null,null,{"$f":"RETURN()","v":true},null,{"$f":"RETURN()","v":true},{"$f":"RETURN()","v":true},{"$f":"IF(ISBLANK(AH23)=(TRUE),FORMULA(\"\"),FORMULA(AH23))","v":true},6,304,28,281,18,null,"0.5 mm Cermet + 0.1 mm alu-coat","G70ME-C9.2-GI-TII","DALIEN     (Dalian Marine Diesel Works)",{"$f":"RETURN()","v":true},null,null,null,null,null,null,null,null,null,null,null,null,null,null,null,null,null,{"$f":"IF(AND($AR$63=TRUE,$AR$64=TRUE),ALERT(\"Make only one selection\"),IF(AND($AR$63=FALSE,$AR$64=FALSE),ALERT(\"Make one selection\"),GOTO(BC26)))","v":true},{"$f":"IF(AND($AR$63=TRUE,$AR$64=TRUE),ALERT(\"Make only one selection\"),IF(AND($AR$63=FALSE,$AR$64=FALSE),ALERT(\"Make one selection\"),GOTO(BD26)))","v":true},{"$f":"IF(AND($AR$63=TRUE,$AR$64=TRUE),ALERT(\"Make only one selection\"),IF(AND($AR$63=FALSE,$AR$64=FALSE),ALERT(\"Make one selection\"),GOTO(BE26)))","v":true},{"$f":"IF(AND($AR$63=TRUE,$AR$64=TRUE),ALERT(\"Make only one selection\"),IF(AND($AR$63=FALSE,$AR$64=FALSE),ALERT(\"Make one selection\"),GOTO(BF26)))","v":true},{"$f":"IF(AND($AR$63=TRUE,$AR$64=TRUE),ALERT(\"Make only one selection\"),IF(AND($AR$63=FALSE,$AR$64=FALSE),ALERT(\"Make one selection\"),GOTO(BG26)))","v":true},{"$f":"IF(AND($AR$63=TRUE,$AR$64=TRUE),ALERT(\"Make only one selection\"),IF(AND($AR$63=FALSE,$AR$64=FALSE),ALERT(\"Make one selection\"),GOTO(BH26)))","v":true},{"$f":"IF(AND($AR$63=TRUE,$AR$64=TRUE),ALERT(\"Make only one selection\"),IF(AND($AR$63=FALSE,$AR$64=FALSE),ALERT(\"Make one selection\"),GOTO(BI26)))","v":true},{"$f":"IF(AND($AR$63=TRUE,$AR$64=TRUE),ALERT(\"Make only one selection\"),IF(AND($AR$63=FALSE,$AR$64=FALSE),ALERT(\"Make one selection\"),GOTO(BJ26)))","v":true},{"$f":"IF(AND($AR$63=TRUE,$AR$64=TRUE),ALERT(\"Make only one selection\"),IF(AND($AR$63=FALSE,$AR$64=FALSE),ALERT(\"Make one selection\"),GOTO(BK26)))","v":true},{"$f":"IF(AND($AR$63=TRUE,$AR$64=TRUE),ALERT(\"Make only one selection\"),IF(AND($AR$63=FALSE,$AR$64=FALSE),ALERT(\"Make one selection\"),GOTO(BL26)))","v":true},{"$f":"IF(AND($AR$63=TRUE,$AR$64=TRUE),ALERT(\"Make only one selection\"),IF(AND($AR$63=FALSE,$AR$64=FALSE),ALERT(\"Make one selection\"),GOTO(BM26)))","v":true},{"$f":"IF(AND($AR$63=TRUE,$AR$64=TRUE),ALERT(\"Make only one selection\"),IF(AND($AR$63=FALSE,$AR$64=FALSE),ALERT(\"Make one selection\"),GOTO(BN26)))","v":true},null,null,null,null,1798,212,"Ring Coating Cylinder 7 to 12",null,null,null,"RingCoatingCyl7to12","PistonSkirtCyl7to12","CrownType7to12"]
[null,1,133,151,88,null,"OK",null,"KP-B","Ballistic",null,"Open()",null,{"$f":"ECHO(FALSE)","v":true},{"$f":"ECHO(FALSE)","v":true},null,null,null,null,null,null,null,null,null,null,null,{"$f":"SELECT(!$D$31)","v":true},22,304,46,281,180,"Coating",2,"G70ME-C9.2-TII","DOOSAN     (Doosan Rngine Co. Ltd.)",null,null,null,null,null,null,null,null,null,null,null,null,null,null,null,null,null,null,{"$f":"IF(AND($AR$63=TRUE,$AR$64=TRUE),GOTO(BC22),IF(AND($AR$63=FALSE,$AR$64=FALSE),GOTO(BC22),GOTO(BC27)))","v":true},{"$f":"IF(AND($AR$63=TRUE,$AR$64=TRUE),GOTO(BD22),IF(AND($AR$63=FALSE,$AR$64=FALSE),GOTO(BD22),GOTO(BD27)))","v":true},{"$f":"IF(AND($AR$63=TRUE,$AR$64=TRUE),GOTO(BE22),IF(AND($AR$63=FALSE,$AR$64=FALSE),GOTO(BE22),GOTO(BE27)))","v":true},{"$f":"IF(AND($AR$63=TRUE,$AR$64=TRUE),GOTO(BF22),IF(AND($AR$63=FALSE,$AR$64=FALSE),GOTO(BF22),GOTO(BF27)))","v":true},{"$f":"IF(AND($AR$63=TRUE,$AR$64=TRUE),GOTO(BG22),IF(AND($AR$63=FALSE,$AR$64=FALSE),GOTO(BG22),GOTO(BG27)))","v":true},{"$f":"IF(AND($AR$63=TRUE,$AR$64=TRUE),GOTO(BH22),IF(AND($AR$63=FALSE,$AR$64=FALSE),GOTO(BH22),GOTO(BH27)))","v":true},{"$f":"IF(AND($AR$63=TRUE,$AR$64=TRUE),GOTO(BI22),IF(AND($AR$63=FALSE,$AR$64=FALSE),GOTO(BI22),GOTO(BI27)))","v":true},{"$f":"IF(AND($AR$63=TRUE,$AR$64=TRUE),GOTO(BJ22),IF(AND($AR$63=FALSE,$AR$64=FALSE),GOTO(BJ22),GOTO(BJ27)))","v":true},{"$f":"IF(AND($AR$63=TRUE,$AR$64=TRUE),GOTO(BK22),IF(AND($AR$63=FALSE,$AR$64=FALSE),GOTO(BK22),GOTO(BK27)))","v":true},{"$f":"IF(AND($AR$63=TRUE,$AR$64=TRUE),GOTO(BL22),IF(AND($AR$63=FALSE,$AR$64=FALSE),GOTO(BL22),GOTO(BL27)))","v":true},{"$f":"IF(AND($AR$63=TRUE,$AR$64=TRUE),GOTO(BM22),IF(AND($AR$63=FALSE,$AR$64=FALSE),GOTO(BM22),GOTO(BM27)))","v":true},{"$f":"IF(AND($AR$63=TRUE,$AR$64=TRUE),GOTO(BN22),IF(AND($AR$63=FALSE,$AR$64=FALSE),GOTO(BN22),GOTO(BN27)))","v":true},null,6,10,28,290,18,null,"BR10          (BR10)",null,null,{"$f":"ECHO(FALSE)","v":true},{"$f":"ECHO(FALSE)","v":true},{"$f":"ECHO(FALSE)","v":true}]
[null,2,38,151,88,null,"Cancel",null,"PVA","Barrel, asym.",null,{"$f":"ECHO(FALSE)","v":true},"SaveAs()",{"$f":"ACTIVATE.NEXT()","v":true},{"$f":"PRINTER.SETUP?()","v":true},null,null,null,null,"Print_Meas","PrintPrevMeas","PrintPrevMeasHighTopland","PrintPrevMeasOrosPiston",null,null,null,{"$f":"IF(ISBLANK(AH25)=(TRUE),FORMULA(\"\"),FORMULA(AH25))","v":true},6,600,28,281,18,null,"0.5 mm Cermet + 0.1 mm alu-coat","G70ME-C9.2-TIII","ECHEVA     (Echevarria)","LubPartLoadControl(Liner & Piston Overhaul Report)",null,null,null,228,180,"Lubricator Part Load Control",null,null,null,null,null,null,null,null,null,null,null,{"$f":"IF($AR$63=TRUE,VLOOKUP(MID('Condition Monitoring Report'!$F$3,2,2),TypeCLvalues,2),VLOOKUP(MID('Condition Monitoring Report'!$F$3,2,2),TypeCLvalues,3))","v":4.5},{"$f":"IF($AR$63=TRUE,VLOOKUP(MID('Condition Monitoring Report'!$F$3,2,2),TypeCLvalues,2),VLOOKUP(MID('Condition Monitoring Report'!$F$3,2,2),TypeCLvalues,3))","v":5.5},{"$f":"IF($AR$63=TRUE,VLOOKUP(MID('Condition Monitoring Report'!$F$3,2,2),TypeCLvalues,2),VLOOKUP(MID('Condition Monitoring Report'!$F$3,2,2),TypeCLvalues,3))","v":5},{"$f":"IF($AR$63=TRUE,VLOOKUP(MID('Condition Monitoring Report'!$F$3,2,2),TypeCLvalues,2),VLOOKUP(MID('Condition Monitoring Report'!$F$3,2,2),TypeCLvalues,3))","v":5},{"$f":"IF($AR$63=TRUE,VLOOKUP(MID('Condition Monitoring Report'!$F$3,2,2),TypeCLvalues,2),VLOOKUP(MID('Condition Monitoring Report'!$F$3,2,2),TypeCLvalues,3))","v":5},{"$f":"IF($AR$63=TRUE,VLOOKUP(MID('Condition Monitoring Report'!$F$3,2,2),TypeCLvalues,2),VLOOKUP(MID('Condition Monitoring Report'!$F$3,2,2),TypeCLvalues,3))","v":4},{"$f":"IF($AR$63=TRUE,VLOOKUP(MID('Condition Monitoring Report'!$F$3,2,2),TypeCLvalues,2),VLOOKUP(MID('Condition Monitoring Report'!$F$3,2,2),TypeCLvalues,3))","v":4.5},{"$f":"IF($AR$63=TRUE,VLOOKUP(MID('Condition Monitoring Report'!$F$3,2,2),TypeCLvalues,2),VLOOKUP(MID('Condition Monitoring Report'!$F$3,2,2),TypeCLvalues,3))","v":5},{"$f":"IF($AR$63=TRUE,VLOOKUP(MID('Condition Monitoring Report'!$F$3,2,2),TypeCLvalues,2),VLOOKUP(MID('Condition Monitoring Report'!$F$3,2,2),TypeCLvalues,3))","v":5.5},{"$f":"IF($AR$63=TRUE,VLOOKUP(MID('Condition Monitoring Report'!$F$3,2,2),TypeCLvalues,2),VLOOKUP(MID('Condition Monitoring Report'!$F$3,2,2),TypeCLvalues,3))","v":5},{"$f":"IF($AR$63=TRUE,VLOOKUP(MID('Condition Monitoring Report'!$F$3,2,2),TypeCLvalues,2),VLOOKUP(MID('Condition Monitoring Report'!$F$3,2,2),TypeCLvalues,3))","v":4.5},{"$f":"IF($AR$63=TRUE,VLOOKUP(MID('Condition Monitoring Report'!$F$3,2,2),TypeCLvalues,2),VLOOKUP(MID('Condition Monitoring Report'!$F$3,2,2),TypeCLvalues,3))","v":4},null,22,10,46,290,180,"RingCoat",6,null,null,{"$f":"DIALOG.BOX(DiaBoxRingCoating7to12)","v":false},{"$f":"DIALOG.BOX(DiaBoxPistonSkirt7to12)","v":false},{"$f":"DIALOG.BOX(DiaBoxCrownType7to12)","v":9}]
[null,null,null,null,null,null,null,null,"TARKALLOY","Rounded",null,{"$f":"ERROR(FALSE)","v":true},{"$f":"ECHO(FALSE)","v":true},{"$f":"RUN(4)","v":false},{"$f":"RETURN()","v":true},"Protect","Hide",null,null,{"$f":"ECHO(FALSE)","v":true},{"$f":"ECHO(FALSE)","v":true},{"$f":"ECHO(FALSE)","v":true},{"$f":"ECHO(FALSE)","v":true},null,null,null,{"$f":"SELECT(!$D$32)","v":true},22,600,46,281,180,"Coating",2,"G70ME-C9.5-GI-TII","EIBFPR     (Diesel Service - EIB)",{"$f":"ECHO(FALSE)","v":true},6,10,6,205,18,null,"Load (Power)",null,null,null,null,null,null,null,null,null,null,{"$f":"SELECT('Condition Monitoring Report'!E30)","v":true},{"$f":"SELECT('Condition Monitoring Report'!F30)","v":true},{"$f":"SELECT('Condition Monitoring Report'!G30)","v":true},{"$f":"SELECT('Condition Monitoring Report'!H30)","v":true},{"$f":"SELECT('Condition Monitoring Report'!I30)","v":true},{"$f":"SELECT('Condition Monitoring Report'!J30)","v":true},{"$f":"SELECT('Condition Monitoring Report'!K30)","v":true},{"$f":"SELECT('Condition Monitoring Report'!L30)","v":true},{"$f":"SELECT('Condition Monitoring Report'!M30)","v":true},{"$f":"SELECT('Condition Monitoring Report'!N30)","v":true},{"$f":"SELECT('Condition Monitoring Report'!O30)","v":true},{"$f":"SELECT('Condition Monitoring Report'!P30)","v":true},null,6,307,28,290,18,null,"Al.B/Cr.       (Alu-bronze/Cr.)",null,null,{"$f":"SELECT(!$K$24)","v":true},{"$f":"SELECT(!$K$66)","v":true},{"$f":"SELECT(!$K$64)","v":true}]
["Save&Exit()","Zoom(55%)",null,null,null,null,null,null,"TARKALLOY-A","Straight",null,{"$f":"RUN(4)","v":false},{"$f":"SAVE.AS?()","v":false},{"$f":"SHOW.BAR()","v":true},null,{"$f":"PROTECT.DOCUMENT(TRUE,,\"opera\",TRUE)","v":true},{"$f":"ECHO(FALSE)","v":true},null,null,{"$f":"SELECT(!$A$1:$AB$47)","v":true},{"$f":"SELECT(!$A$1:$AB$47)","v":true},{"$f":"SELECT(!$A$1:$AG$47)","v":true},{"$f":"SELECT(!$A$1:$P$47)","v":true},null,null,null,{"$f":"IF(ISBLANK(AH27)=(TRUE),FORMULA(\"\"),FORMULA(AH27))","v":true},6,894,28,281,18,null,"0.5 mm Cermet + 0.1 mm alu-coat","G70ME-C9.5-TII","ERBERG     (Eriksberg)",{"$f":"DIALOG.BOX(DiaBoxLubPartLoadControl)","v":3},22,10,24,205,126,"LubPartLoadControl",2,null,null,null,null,null,null,null,null,null,null,{"$f":"FORMULA(BC27)","v":true},{"$f":"FORMULA(BD27)","v":true},{"$f":"FORMULA(BE27)","v":true},{"$f":"FORMULA(BF27)","v":true},{"$f":"FORMULA(BG27)","v":true},{"$f":"FORMULA(BH27)","v":true},{"$f":"FORMULA(BI27)","v":true},{"$f":"FORMULA(BJ27)","v":true},{"$f":"FORMULA(BK27)","v":true},{"$f":"FORMULA(BL27)","v":true},{"$f":"FORMULA(BM27)","v":true},{"$f":"FORMULA(BN27)","v":true},null,22,307,46,290,198,"RingCoat",5,null,null,{"$f":"IF((BY27)=FALSE,GOTO(BY41),GOTO(BY30))","v":true},{"$f":"IF((BZ27)=FALSE,GOTO(BZ41),GOTO(BZ30))","v":true},{"$f":"IF((CA27)=FALSE,GOTO(CA41),GOTO(CA30))","v":true}]
[{"$f":"ECHO(FALSE)","v":false},{"$f":"ECHO(FALSE)","v":true},null,"Abnormal Wear",null,null,null,null,"TARKALLOY-C","Taper",null,{"$f":"OPEN?()","v":true},{"$f":"RETURN()","v":true},{"$f":"RUN(3)","v":false},null,{"$f":"RETURN()","v":true},{"$f":"ERROR(FALSE)","v":true},null,null,{"$f":"SET.PRINT.AREA()","v":true},{"$f":"SET.PRINT.AREA()","v":true},{"$f":"SET.PRINT.AREA()","v":true},{"$f":"SET.PRINT.AREA()","v":true},null,"PrintMeasuringPointsHighTopland",null,{"$f":"SELECT(!$D$33)","v":true},22,894,46,281,180,"Coating",2,"G80ME-C9.2","FKRUPP     (Fried Krupp)",{"$f":"SELECT(!$G$5)","v":true},1,133,151,88,null,"OK",null,null,null,null,null,null,null,"GrooveClearanceMeasuringPositionExh",null,null,null,{"$f":"SELECT('Condition Monitoring Report'!Q22)","v":true},{"$f":"SELECT('Condition Monitoring Report'!R22)","v":true},{"$f":"SELECT('Condition Monitoring Report'!S22)","v":true},{"$f":"SELECT('Condition Monitoring Report'!T22)","v":true},{"$f":"SELECT('Condition Monitoring Report'!U22)","v":true},{"$f":"SELECT('Condition Monitoring Report'!V22)","v":true},{"$f":"SELECT('Condition Monitoring Report'!W22)","v":true},{"$f":"SELECT('Condition Monitoring Report'!X22)","v":true},{"$f":"SELECT('Condition Monitoring Report'!Y22)","v":true},{"$f":"SELECT('Condition Monitoring Report'!Z22)","v":true},{"$f":"SELECT('Condition Monitoring Report'!AA22)","v":true},{"$f":"SELECT('Condition Monitoring Report'!AB22)","v":true},null,6,602,28,290,18,null,"0.5+0.3       (0.5 mm Cermet + 0.3 mm alu-coat)",null,null,{"$f":"IF(ISBLANK(BV26)=(TRUE),FORMULA(\"\"),FORMULA(LEFT(BV26,8)))","v":true},{"$f":"IF(ISBLANK(BV74)=(TRUE),FORMULA(\"\"),FORMULA(LEFT(BV74,9)))","v":true},{"$f":"IF(ISBLANK(BV122)=(TRUE),FORMULA(\"\"),FORMULA(LEFT(BV122,8)))","v":true}]
[{"$f":"ALERT(\"Save sheets?\",1)","v":false},{"$f":"SELECT(!$A$1)","v":true},null,{"$f":"ECHO(FALSE)","v":true},null,null,null,null,"TARKALLOY-C-VA","Test",null,{"$f":"IF(L30=(FALSE),GOTO(L34),GOTO(L32))","v":true},null,{"$f":"RETURN()","v":true},null,null,{"$f":"GET.WINDOW(1)","v":"TESTBED.XLS"},"ZoomCrown",null,{"$f":"PRINT(1,,,1,,,,,,300,)","v":true},{"$f":"PAGE.SETUP(,,,,,,,,,,2,,TRUE,,,)","v":true},{"$f":"PAGE.SETUP(,,,,,,,,,,2,,TRUE,,,)","v":true},{"$f":"PAGE.SETUP(,,,,,,,,,,2,,TRUE,,,)","v":true},null,"Print",null,{"$f":"IF(ISBLANK(AH29)=(TRUE),FORMULA(\"\"),FORMULA(AH29))","v":true},1,1088,185,88,null,"OK",null,"G80ME-C9.2-TII","FRSTAD     (Nye Frederiksstad Mek. Verksted)",{"$f":"IF((AK29)=FALSE,GOTO(AK33),GOTO(AK32))","v":true},2,38,151,88,null,"Cancel",null,null,null,"Scuffing",null,null,null,{"$f":"ECHO(FALSE)","v":true},null,null,null,{"$f":"FORMULA(\"TRUE\")","v":true},{"$f":"FORMULA(\"TRUE\")","v":true},{"$f":"FORMULA(\"TRUE\")","v":true},{"$f":"FORMULA(\"TRUE\")","v":true},{"$f":"FORMULA(\"TRUE\")","v":true},{"$f":"FORMULA(\"TRUE\")","v":true},true,true,true,true,true,true,null,22,602,46,290,198,"RingCoat",3,null,null,{"$f":"SELECT(!$L$24)","v":true},{"$f":"SELECT(!$L$66)","v":true},{"$f":"SELECT(!$L$64)","v":true}]
[{"$f":"IF(A31=(TRUE),GOTO(A33),GOTO(A39))","v":true},{"$f":"ZOOM(55)","v":true},null,{"$f":"DIALOG.BOX(DiaBoxWearType)","v":3},null,null,null,null,"UNKN.","Unkn.",null,{"$f":"SHOW.BAR()","v":true},null,null,null,"Unprotect",{"$f":"IF(Q31=(\"makcyl!\"),HIDE(),ALERT(\"You can only hide the macro sheet from the macro sheet itself\n-----------------------------------------------------------------\nMake sure that the macro sheet is open,\nselect it and hide it\"))","v":false},"Zoom",null,{"$f":"SELECT(!$A$1)","v":true},{"$f":"PRINT.PREVIEW()","v":false},{"$f":"PRINT.PREVIEW()","v":false},{"$f":"PRINT.PREVIEW()","v":false},null,"Print Measuring Points HIGH TOPLAND","Print_MeasHighTopland",{"$f":"RETURN()","v":true},2,990,185,88,null,"Cancel",null,"G80ME-C9.5-TII","GOETAV     (Götaverken Motor AB)",{"$f":"IF(ISBLANK(AR28)=(TRUE),FORMULA(\"\"),FORMULA(AR28))","v":true},null,null,null,null,null,null,null,null,null,{"$f":"ECHO(FALSE)","v":true},null,null,null,{"$f":"PROTECT.DOCUMENT(FALSE,,\"opera\",FALSE)","v":true},null,null,null,{"$f":"GOTO(BC50)","v":true},{"$f":"GOTO(BD50)","v":true},{"$f":"GOTO(BE50)","v":true},{"$f":"GOTO(BF50)","v":true},{"$f":"GOTO(BG50)","v":true},{"$f":"GOTO(BH50)","v":true},{"$f":"GOTO(BI50)","v":true},{"$f":"GOTO(BJ50)","v":true},{"$f":"GOTO(BK50)","v":true},{"$f":"GOTO(BL50)","v":true},{"$f":"GOTO(BM50)","v":true},{"$f":"GOTO(BN50)","v":true},null,6,899,28,290,18,null,"Al.B/Cr.       (Alu-bronze/Cr.)",null,null,{"$f":"IF(ISBLANK(BV28)=(TRUE),FORMULA(\"\"),FORMULA(LEFT(BV28,8)))","v":true},{"$f":"IF(ISBLANK(BV76)=(TRUE),FORMULA(\"\"),FORMULA(LEFT(BV76,9)))","v":true},{"$f":"IF(ISBLANK(BV124)=(TRUE),FORMULA(\"\"),FORMULA(LEFT(BV124,8)))","v":true}]
[{"$f":"INPUT(\"Insert a file-name (max. 8 char.) to save the sheets.\n (Remember to select directories: A:\\library\\file-name or C:\\library\\file-name)\",2,\"FILNAVN\")","v":false},{"$f":"RETURN()","v":true},null,{"$f":"SELECT(!$D$11)","v":true},null,null,null,"OILTYPESPECIALPOINTS(Condition Mon. Report)",null,null,null,{"$f":"RUN(1)","v":false},null,null,null,{"$f":"PROTECT.DOCUMENT(FALSE,,\"opera\",FALSE)","v":true},{"$f":"RETURN()","v":true},"Zoom In","Zoom100",{"$f":"HALT()","v":true},{"$f":"SELECT(!$A$1)","v":true},{"$f":"SELECT(!$A$1)","v":true},{"$f":"SELECT(!$A$1)","v":true},null,"-",null,null,5,10,13,null,null,"Ring 1",null,"G95ME-C9.2","HALLAK     (Halla Engineering)",{"$f":"RETURN()","v":true},null,null,null,null,null,null,null,null,null,{"$f":"ACTIVATE(\"Makcyl\")","v":true},null,null,null,{"$f":"SELECT('Condition Monitoring Report'!R38)","v":true},null,null,null,{"$f":"SELECT('Condition Monitoring Report'!Q22)","v":true},{"$f":"SELECT('Condition Monitoring Report'!R22)","v":true},{"$f":"SELECT('Condition Monitoring Report'!S22)","v":true},{"$f":"SELECT('Condition Monitoring Report'!T22)","v":true},{"$f":"SELECT('Condition Monitoring Report'!U22)","v":true},{"$f":"SELECT('Condition Monitoring Report'!V22)","v":true},{"$f":"SELECT('Condition Monitoring Report'!W22)","v":true},{"$f":"SELECT('Condition Monitoring Report'!X22)","v":true},{"$f":"SELECT('Condition Monitoring Report'!Y22)","v":true},{"$f":"SELECT('Condition Monitoring Report'!Z22)","v":true},{"$f":"SELECT('Condition Monitoring Report'!AA22)","v":true},{"$f":"SELECT('Condition Monitoring Report'!AB22)","v":true},null,22,899,46,290,198,"RingCoat",5,null,null,{"$f":"SELECT(!$M$24)","v":true},{"$f":"SELECT(!$M$66)","v":true},{"$f":"SELECT(!$M$64)","v":true}]
[{"$f":"IF(A33=(\"\"),GOTO(A33),GOTO(A35))","v":true},null,null,{"$f":"IF((D32)=FALSE,GOTO(D46),GOTO(D35))","v":true},null,null,null,{"$f":"ECHO(FALSE)","v":true},null,"Lock Type",null,{"$f":"RUN(3)","v":false},null,null,null,{"$f":"RETURN()","v":true},null,"Zoom Out","Zoom55",null,{"$f":"RETURN()","v":true},{"$f":"RETURN()","v":true},{"$f":"RETURN()","v":true},null,"Printer Setup","PrinterSetup",null,5,305,13,null,null,"Ring 2",null,"G95ME-C9.5-TII","HARLAN     (Harland & Wolff PLC)",null,null,null,null,null,null,null,null,null,null,{"$f":"SELECT(!$BA$2:!$BA$24)","v":true},null,null,null,{"$f":"CLEAR()","v":true},null,null,null,{"$f":"CLEAR()","v":true},{"$f":"CLEAR()","v":true},{"$f":"CLEAR()","v":true},{"$f":"CLEAR()","v":true},{"$f":"CLEAR()","v":true},{"$f":"CLEAR()","v":true},{"$f":"CLEAR()","v":true},{"$f":"CLEAR()","v":true},{"$f":"CLEAR()","v":true},{"$f":"CLEAR()","v":true},{"$f":"CLEAR()","v":true},{"$f":"CLEAR()","v":true},null,1,908,185,89,null,"OK",null,null,null,{"$f":"IF(ISBLANK(BV30)=(TRUE),FORMULA(\"\"),FORMULA(LEFT(BV30,8)))","v":true},{"$f":"IF(ISBLANK(BV78)=(TRUE),FORMULA(\"\"),FORMULA(LEFT(BV78,9)))","v":true},{"$f":"IF(ISBLANK(BV126)=(TRUE),FORMULA(\"\"),FORMULA(LEFT(BV126,8)))","v":true}]
[{"$f":"IF(OR(A33=\"a:\\cylcond.xls\",A33=\"a:cylcond.xls\",A33=\"a:cylcond\",A33=\"a:\\cylcond\",A33=\"c:op2310\\cylcond.xls\",A33=\"c:\\op2310\\cylcond.xls\",A33=\"c:\\op2310\\cylcond\",A33=\"c:op2310\\cylcond\"),GOTO(A36),GOTO(A38))","v":true},null,null,{"$f":"IF(ISBLANK(H14)=(TRUE),FORMULA(\"\"),FORMULA(H14))","v":true},null,null,null,{"$f":"DIALOG.BOX(oil)","v":false},"BaseMat","GT",null,{"$f":"RETURN()","v":true},"File",null,"File",null,"Unhide","Fit screen","ZoomFitCrown",null,null,null,null,null,"-",null,null,5,601,13,null,null,"Ring 3",null,"K108ME-C","HELSØR     (Helsingør Rep. Værft)","LubType(Liner & Piston Overhaul Report)",null,null,null,228,180,"Lubricator Type",null,null,null,{"$f":"CLEAR(3)","v":true},null,null,null,{"$f":"PROTECT.DOCUMENT(TRUE,,\"opera\",TRUE)","v":true},null,null,null,{"$f":"SELECT('Condition Monitoring Report'!Q23)","v":true},{"$f":"SELECT('Condition Monitoring Report'!R23)","v":true},{"$f":"SELECT('Condition Monitoring Report'!S23)","v":true},{"$f":"SELECT('Condition Monitoring Report'!T23)","v":true},{"$f":"SELECT('Condition Monitoring Report'!U23)","v":true},{"$f":"SELECT('Condition Monitoring Report'!V23)","v":true},{"$f":"SELECT('Condition Monitoring Report'!W23)","v":true},{"$f":"SELECT('Condition Monitoring Report'!X23)","v":true},{"$f":"SELECT('Condition Monitoring Report'!Y23)","v":true},{"$f":"SELECT('Condition Monitoring Report'!Z23)","v":true},{"$f":"SELECT('Condition Monitoring Report'!AA23)","v":true},{"$f":"SELECT('Condition Monitoring Report'!AB23)","v":true},null,2,810,185,89,null,"Cancel",null,null,null,{"$f":"SELECT(!$N$24)","v":true},{"$f":"SELECT(!$N$66)","v":true},{"$f":"SELECT(!$N$64)","v":true}]
[{"$f":"ALERT(\"You can not save the sheet by this name - Enter another filename!\",2)","v":false},"Zoom(100%)","ZoomFit",{"$f":"IF(H14=\"Scuffing\",GOTO(AU32),GOTO(D37))","v":true},null,null,null,{"$f":"SELECT(!$F$7)","v":true},"CF4","Oblique L","CloseAdditional()","Close()","File",null,"File",null,{"$f":"ECHO(FALSE)","v":true},null,null,null,null,null,null,null,"Print preview meas. points HIGH TOPLAND","PrintPrevMeasHighTopland",null,5,895,13,null,null,"Ring 4",null,"K108ME-C6","HEMCO     (Hyundai Heavy Industries)",{"$f":"ECHO(FALSE)","v":true},6,10,6,205,18,null,"Mechanical (Power)",null,null,{"$f":"ACTIVATE(\"Cylinder Condition Report\")","v":true},null,null,null,{"$f":"RETURN()","v":true},null,null,null,{"$f":"CLEAR()","v":true},{"$f":"CLEAR()","v":true},{"$f":"CLEAR()","v":true},{"$f":"CLEAR()","v":true},{"$f":"CLEAR()","v":true},{"$f":"CLEAR()","v":true},{"$f":"CLEAR()","v":true},{"$f":"CLEAR()","v":true},{"$f":"CLEAR()","v":true},{"$f":"CLEAR()","v":true},{"$f":"CLEAR()","v":true},{"$f":"CLEAR()","v":true},null,5,10,13,null,null,"Cyl. 7",null,null,null,{"$f":"IF(ISBLANK(BV32)=(TRUE),FORMULA(\"\"),FORMULA(LEFT(BV32,8)))","v":true},{"$f":"IF(ISBLANK(BV80)=(TRUE),FORMULA(\"\"),FORMULA(LEFT(BV80,9)))","v":true},{"$f":"IF(ISBLANK(BV128)=(TRUE),FORMULA(\"\"),FORMULA(LEFT(BV128,8)))","v":true}]
[{"$f":"GOTO(A33)","v":true},{"$f":"ECHO(FALSE)","v":true},{"$f":"ECHO(FALSE)","v":true},"PROTECT.DOCUMENT(FALSE;;\"opera\";FALSE)",null,null,null,{"$f":"IF((H35)=FALSE,GOTO(H39),GOTO(H38))","v":true},"CF5","Oblique R",{"$f":"ADD.BAR(\"Worksheet\")","v":10},{"$f":"ECHO(FALSE)","v":true},"Open...","OpenMeas","Open...","OpenPistonCrown",{"$f":"ERROR(FALSE)","v":true},"ZoomFitCrown",null,"ZoomFitMeas","ZoomFitMeasHighTopland","ZoomFitMeasOrosPiston",null,null,null,null,null,null,null,null,null,null,null,null,"K50MC-S","HITACH     (Hitachi Zosen Corporation)",{"$f":"DIALOG.BOX(DiaBoxLubType)","v":3},22,10,24,205,126,"LubType",9,null,null,{"$f":"DIALOG.BOX(DiaBoxScuffing)","v":false},null,null,null,null,null,null,null,{"$f":"PROTECT.DOCUMENT(TRUE,,\"opera\",TRUE)","v":true},{"$f":"PROTECT.DOCUMENT(TRUE,,\"opera\",TRUE)","v":true},{"$f":"PROTECT.DOCUMENT(TRUE,,\"opera\",TRUE)","v":true},{"$f":"PROTECT.DOCUMENT(TRUE,,\"opera\",TRUE)","v":true},{"$f":"PROTECT.DOCUMENT(TRUE,,\"opera\",TRUE)","v":true},{"$f":"PROTECT.DOCUMENT(TRUE,,\"opera\",TRUE)","v":true},true,true,true,true,true,true,null,5,308,13,null,null,"Cyl. 8",null,null,null,{"$f":"SELECT(!$O$24)","v":true},{"$f":"SELECT(!$O$66)","v":true},{"$f":"SELECT(!$O$64)","v":true}]
[{"$f":"IF(A33=(FALSE),HALT(FALSE),SAVE.AS(A33,1))","v":true},{"$f":"SELECT(!$A$1)","v":true},{"$f":"SELECT(!$A$1:$P$1)","v":true},{"$f":"FORMULA(\"\",!$G$7)","v":true},null,null,null,{"$f":"IF(ISBLANK(H9)=(TRUE),FORMULA(\"\"),FORMULA(H9))","v":true},"CV1","Other",{"$f":"RUN(N25)","v":{"$error":"#N/A"}},{"$f":"CLOSE()","v":true},"Close","Close","Close","Close",{"$f":"RUN(4)","v":false},{"$f":"ECHO(FALSE)","v":true},null,{"$f":"ECHO(FALSE)","v":true},{"$f":"ECHO(FALSE)","v":true},{"$f":"ECHO(FALSE)","v":true},null,null,null,null,null,null,null,null,null,null,null,null,"K60MC","HSDENG     (HSD Engine Co. Ltd.)",{"$f":"SELECT(!$L$5)","v":true},1,133,151,88,null,"OK",null,null,null,{"$f":"IF((AU37)=FALSE,SELECT(!$D$11),GOTO(AU43))","v":true},null,null,null,"GrooveClearanceMeasuringPositionMan",null,null,null,{"$f":"RETURN()","v":true},{"$f":"RETURN()","v":true},{"$f":"RETURN()","v":true},{"$f":"RETURN()","v":true},{"$f":"RETURN()","v":true},{"$f":"RETURN()","v":true},{"$f":"RETURN()","v":true},{"$f":"RETURN()","v":true},{"$f":"RETURN()","v":true},{"$f":"RETURN()","v":true},{"$f":"RETURN()","v":true},{"$f":"RETURN()","v":true},null,5,602,13,null,null,"Cyl. 9",null,null,null,{"$f":"IF(ISBLANK(BV40)=(TRUE),FORMULA(\"\"),FORMULA(LEFT(BV40,8)))","v":true},{"$f":"IF(ISBLANK(BV88)=(TRUE),FORMULA(\"\"),FORMULA(LEFT(BV88,9)))","v":true},{"$f":"IF(ISBLANK(BV136)=(TRUE),FORMULA(\"\"),FORMULA(LEFT(BV136,8)))","v":true}]
[{"$f":"ALERT(\"Exit Excel?\",1)","v":false},{"$f":"ZOOM(100)","v":true},{"$f":"ZOOM()","v":true},{"$f":"FORMULA(\"\",!$L$7)","v":true},null,null,null,{"$f":"RETURN()","v":true},"RIK29V","Straight",{"$f":"RETURN()","v":true},{"$f":"IF(L38=(FALSE),GOTO(L41),GOTO(L40))","v":true},"Exit","Exit","Exit","Exit",{"$f":"UNHIDE()","v":true},{"$f":"SELECT(!$A$1:$O$1)","v":true},null,{"$f":"SELECT(!$A$1:$AB$1)","v":true},{"$f":"SELECT(!$A$1:$AG$1)","v":false},{"$f":"SELECT(!$A$1:$P$1)","v":false},null,null,null,null,null,null,null,null,null,null,null,null,"K60MC-S","HUDONG     (Hudong Heavy Machinery)",{"$f":"IF((AK37)=FALSE,GOTO(AK41),GOTO(AK40))","v":true},2,38,151,88,null,"Cancel",null,null,null,{"$f":"PROTECT.DOCUMENT(FALSE,,\"opera\",FALSE)","v":true},null,null,null,{"$f":"ECHO(FALSE)","v":true},null,null,null,{"$f":"ECHO(FALSE)","v":true},{"$f":"ECHO(FALSE)","v":true},{"$f":"ECHO(FALSE)","v":true},{"$f":"ECHO(FALSE)","v":true},{"$f":"ECHO(FALSE)","v":true},{"$f":"ECHO(FALSE)","v":true},{"$f":"ECHO(FALSE)","v":true},{"$f":"ECHO(FALSE)","v":true},{"$f":"ECHO(FALSE)","v":true},{"$f":"ECHO(FALSE)","v":true},{"$f":"ECHO(FALSE)","v":true},{"$f":"ECHO(FALSE)","v":true},null,5,899,13,null,null,"Cyl. 10",null,null,null,{"$f":"SELECT(!$P$24)","v":true},{"$f":"SELECT(!$P$66)","v":true},{"$f":"SELECT(!$P$64)","v":true}]
[{"$f":"IF(A39=(TRUE),GOTO(A41),GOTO(A46))","v":false},{"$f":"RETURN()","v":true},{"$f":"SELECT(!$A$1)","v":true},{"$f":"FORMULA(\"\",!$P$7)","v":true},null,null,null,null,"RIK45","Unkn.",null,{"$f":"RUN(K37)","v":{"$error":"#N/A"}},null,null,null,null,{"$f":"RETURN()","v":true},{"$f":"ZOOM()","v":true},null,{"$f":"ZOOM()","v":true},{"$f":"ZOOM()","v":true},{"$f":"ZOOM()","v":true},null,null,null,null,"Profile",null,null,null,null,null,null,null,"K60ME-GI-S","HYUNDA     (Hyundai Heavy Industries)",{"$f":"IF(ISBLANK(AR36)=(TRUE),FORMULA(\"\"),FORMULA(AR36))","v":true},null,null,null,null,null,null,null,null,null,{"$f":"CLEAR(3)","v":true},null,null,null,{"$f":"PROTECT.DOCUMENT(FALSE,,\"opera\",FALSE)","v":true},null,null,null,{"$f":"IF(AND('Condition Monitoring Report'!Q22=FALSE,'Condition Monitoring Report'!Q23=FALSE),GOTO(BC41),GOTO(BC47))","v":true},{"$f":"IF(AND('Condition Monitoring Report'!R22=FALSE,'Condition Monitoring Report'!R23=FALSE),GOTO(BD41),GOTO(BD47))","v":true},{"$f":"IF(AND('Condition Monitoring Report'!S22=FALSE,'Condition Monitoring Report'!S23=FALSE),GOTO(BE41),GOTO(BE47))","v":true},{"$f":"IF(AND('Condition Monitoring Report'!T22=FALSE,'Condition Monitoring Report'!T23=FALSE),GOTO(BF41),GOTO(BF47))","v":true},{"$f":"IF(AND('Condition Monitoring Report'!U22=FALSE,'Condition Monitoring Report'!U23=FALSE),GOTO(BG41),GOTO(BG47))","v":true},{"$f":"IF(AND('Condition Monitoring Report'!V22=FALSE,'Condition Monitoring Report'!V23=FALSE),GOTO(BH41),GOTO(BH47))","v":true},{"$f":"IF(AND('Condition Monitoring Report'!W22=FALSE,'Condition Monitoring Report'!W23=FALSE),GOTO(BI41),GOTO(BI47))","v":true},{"$f":"IF(AND('Condition Monitoring Report'!X22=FALSE,'Condition Monitoring Report'!X23=FALSE),GOTO(BJ41),GOTO(BJ47))","v":true},{"$f":"IF(AND('Condition Monitoring Report'!Y22=FALSE,'Condition Monitoring Report'!Y23=FALSE),GOTO(BK41),GOTO(BK47))","v":true},{"$f":"IF(AND('Condition Monitoring Report'!Z22=FALSE,'Condition Monitoring Report'!Z23=FALSE),GOTO(BL41),GOTO(BL47))","v":true},{"$f":"IF(AND('Condition Monitoring Report'!AA22=FALSE,'Condition Monitoring Report'!AA23=FALSE),GOTO(BM41),GOTO(BM47))","v":true},{"$f":"IF(AND('Condition Monitoring Report'!AB22=FALSE,'Condition Monitoring Report'!AB23=FALSE),GOTO(BN41),GOTO(BN47))","v":true},null,6,1196,29,290,18,null,"Cr-Cera      (Cr-Ceramic)",null,null,{"$f":"IF(ISBLANK(BV42)=(TRUE),FORMULA(\"\"),FORMULA(LEFT(BV42,8)))","v":true},{"$f":"IF(ISBLANK(BV90)=(TRUE),FORMULA(\"\"),FORMULA(LEFT(BV90,9)))","v":true},{"$f":"IF(ISBLANK(BV138)=(TRUE),FORMULA(\"\"),FORMULA(LEFT(BV138,8)))","v":true}]
[{"$f":"SHOW.TOOLBAR(1,TRUE,1,,,)","v":false},null,{"$f":"RETURN()","v":true},{"$f":"FORMULA(\"\",!$G$8)","v":true},null,null,null,null,"RIK47",null,null,{"$f":"RETURN()","v":true},null,null,null,null,null,{"$f":"SELECT(!$A$1)","v":true},null,{"$f":"SELECT(!$A$1)","v":true},{"$f":"SELECT(!$A$1)","v":true},{"$f":"SELECT(!$A$1)","v":true},null,null,null,null,{"$f":"ECHO(FALSE)","v":true},null,null,null,null,null,null,null,"K70MC-S","IZAR     (IZAR, Manises)",{"$f":"RETURN()","v":true},null,null,null,null,null,null,null,null,null,{"$f":"GOTO(AV41)","v":true},{"$f":"FORMULA(\"\",!$G$7)","v":true},null,null,{"$f":"SELECT('Condition Monitoring Report'!R37)","v":true},null,null,null,{"$f":"SELECT('Condition Monitoring Report'!E30)","v":true},{"$f":"SELECT('Condition Monitoring Report'!F30)","v":true},{"$f":"SELECT('Condition Monitoring Report'!G30)","v":true},{"$f":"SELECT('Condition Monitoring Report'!H30)","v":true},{"$f":"SELECT('Condition Monitoring Report'!I30)","v":true},{"$f":"SELECT('Condition Monitoring Report'!J30)","v":true},{"$f":"SELECT('Condition Monitoring Report'!K30)","v":true},{"$f":"SELECT('Condition Monitoring Report'!L30)","v":true},{"$f":"SELECT('Condition Monitoring Report'!M30)","v":true},{"$f":"SELECT('Condition Monitoring Report'!N30)","v":true},{"$f":"SELECT('Condition Monitoring Report'!O30)","v":true},{"$f":"SELECT('Condition Monitoring Report'!P30)","v":true},null,22,1196,47,290,215,"RingCoat",9,null,null,{"$f":"RETURN()","v":true},{"$f":"RETURN()","v":true},{"$f":"RETURN()","v":true}]
[{"$f":"SHOW.TOOLBAR(2,TRUE,1,,,)","v":false},null,null,{"$f":"FORMULA(\"\",!$I$8)","v":true},null,null,null,"OILTYPESPECIALPOINTS(Insp. through Scav. Port)","RM4",null,null,"Exit()",null,"Edit",null,null,null,{"$f":"RETURN()","v":true},null,{"$f":"RETURN()","v":true},{"$f":"RETURN()","v":true},{"$f":"RETURN()","v":true},null,null,null,null,{"$f":"DIALOG.BOX(DiaBoxProfile)","v":9},null,null,null,864,212,"Profile",null,"K80MC","KAWASA     (Kawasaki Heavy Industries)",null,null,null,null,null,null,null,null,null,null,"GOTO(AU74)",{"$f":"FORMULA(\"\",!$L$7)","v":true},null,null,{"$f":"CLEAR()","v":true},null,null,null,{"$f":"CLEAR()","v":true},{"$f":"CLEAR()","v":true},{"$f":"CLEAR()","v":true},{"$f":"CLEAR()","v":true},{"$f":"CLEAR()","v":true},{"$f":"CLEAR()","v":true},{"$f":"CLEAR()","v":true},{"$f":"CLEAR()","v":true},{"$f":"CLEAR()","v":true},{"$f":"CLEAR()","v":true},{"$f":"CLEAR()","v":true},{"$f":"CLEAR()","v":true},null,6,1493,28,290,18,null,"C+Ri1NG    (Cermet + Ri1: NiGr)"]
[{"$f":"SHOW.TOOLBAR(\"Toolbar 3\",FALSE,1,,,)","v":false},"AutoOpenCylcond(55%)","ReadOnlyCylcond()",{"$f":"FORMULA(\"\",!$M$8)","v":true},null,null,null,{"$f":"ECHO(FALSE)","v":true},"RM5","Type",null,{"$f":"ECHO(FALSE)","v":true},null,"Edit",null,null,null,null,null,null,null,null,null,null,null,null,{"$f":"SELECT(!$G$30)","v":true},6,10,28,205,18,null,"Barrel, asym.","K80MC-C","KHICON     (Korea Heavy Industries)",null,null,null,null,480,244,"Ship Position",null,null,null,{"$f":"SELECT(!$G$7)","v":true},{"$f":"FORMULA(\"\",!$P$7)","v":true},null,null,{"$f":"PROTECT.DOCUMENT(TRUE,,\"opera\",TRUE)","v":true},null,null,null,{"$f":"SELECT('Condition Monitoring Report'!E31)","v":true},{"$f":"SELECT('Condition Monitoring Report'!F31)","v":true},{"$f":"SELECT('Condition Monitoring Report'!G31)","v":true},{"$f":"SELECT('Condition Monitoring Report'!H31)","v":true},{"$f":"SELECT('Condition Monitoring Report'!I31)","v":true},{"$f":"SELECT('Condition Monitoring Report'!J31)","v":true},{"$f":"SELECT('Condition Monitoring Report'!K31)","v":true},{"$f":"SELECT('Condition Monitoring Report'!L31)","v":true},{"$f":"SELECT('Condition Monitoring Report'!M31)","v":true},{"$f":"SELECT('Condition Monitoring Report'!N31)","v":true},{"$f":"SELECT('Condition Monitoring Report'!O31)","v":true},{"$f":"SELECT('Condition Monitoring Report'!P31)","v":true},null,22,1493,46,290,216,"RingCoat",7]
[{"$f":"ERROR(FALSE)","v":false},{"$f":"ECHO(FALSE)","v":false},{"$f":"ECHO(FALSE)","v":true},{"$f":"FORMULA(\"\",!$O$8)","v":true},null,null,null,{"$f":"DIALOG.BOX(oil)","v":false},"RVK","High",null,{"$f":"ERROR(TRUE)","v":true},null,"Undo","Undo","Undo",null,"Select Sheet",null,null,"Print_MeasHighTopland","Print_MeasOrosPiston",null,null,"PrintMeasuringPointsOrosPiston",null,{"$f":"IF((AA42)=FALSE,GOTO(AA52),GOTO(AA45))","v":true},22,10,46,205,144,"Profile",2,"K80MCE","KINCAD     (Kvaerner Kincaid Ltd.)","EngineBuilderSpecialPoints",6,10,28,456,18,null,"Arabian Gulf",null,null,{"$f":"IF(ISBLANK(BA16),FORMULA(\"\"),FORMULA(BA16))","v":true},{"$f":"FORMULA(\"\",!$G$8)","v":true},null,null,{"$f":"RETURN()","v":true},null,null,null,{"$f":"CLEAR()","v":true},{"$f":"CLEAR()","v":true},{"$f":"CLEAR()","v":true},{"$f":"CLEAR()","v":true},{"$f":"CLEAR()","v":true},{"$f":"CLEAR()","v":true},{"$f":"CLEAR()","v":true},{"$f":"CLEAR()","v":true},{"$f":"CLEAR()","v":true},{"$f":"CLEAR()","v":true},{"$f":"CLEAR()","v":true},{"$f":"CLEAR()","v":true},null,5,1196,13,null,null,"Cyl. 11",null,null,null,"2ndRingCoatingCyl1to6"]
[{"$f":"QUIT()","v":{"$error":"#VALUE!"}},{"$f":"ERROR(FALSE)","v":true},{"$f":"ERROR(FALSE)","v":true},"PROTECT.DOCUMENT(TRUE;;\"opera\";TRUE)",null,null,null,{"$f":"SELECT(!$J$5)","v":true},"RVK-C","Low",null,{"$f":"FILE.CLOSE()","v":false},null,"Copy","Copy",{"$f":"ERROR(FALSE)","v":true},null,"Select Sheet",null,null,{"$f":"ECHO(FALSE)","v":true},{"$f":"ECHO(FALSE)","v":true},null,null,"Print",null,{"$f":"IF(ISBLANK(AH43)=(TRUE),FORMULA(\"\"),FORMULA(AH43))","v":true},6,222,28,205,18,null,"Barrel, asym.","K80MC-S","LITOST     (Litostroj)",{"$f":"ECHO(FALSE)","v":true},22,10,46,456,180,"ShipPosition",1,null,null,{"$f":"SELECT(!$L$7)","v":true},{"$f":"FORMULA(\"\",!$I$8)","v":true},null,null,null,null,null,null,{"$f":"PROTECT.DOCUMENT(TRUE,,\"opera\",TRUE)","v":true},{"$f":"PROTECT.DOCUMENT(TRUE,,\"opera\",TRUE)","v":true},{"$f":"PROTECT.DOCUMENT(TRUE,,\"opera\",TRUE)","v":true},{"$f":"PROTECT.DOCUMENT(TRUE,,\"opera\",TRUE)","v":true},{"$f":"PROTECT.DOCUMENT(TRUE,,\"opera\",TRUE)","v":true},{"$f":"PROTECT.DOCUMENT(TRUE,,\"opera\",TRUE)","v":true},true,true,true,true,true,true,null,5,1493,13,null,null,"Cyl. 12",null,null,null,{"$f":"ECHO(FALSE)","v":true}]
[{"$f":"HALT()","v":true},"WINDOWS(3;)",{"$f":"OPEN(\"c:\\op2310\\cylcond.xls\",,TRUE)","v":true},{"$f":"RETURN()","v":true},null,null,null,{"$f":"IF((H44)=FALSE,GOTO(H48),GOTO(H47))","v":true},"Tarkalloy G","Unkn.",null,{"$f":"IF(L45=(FALSE),GOTO(L52),GOTO(L47))","v":true},null,"Paste","Paste",{"$f":"UNDO()","v":true},null,"Cylinder Condition Report","CylCondReport",null,{"$f":"SELECT(!$A$1:$AG$47)","v":true},{"$f":"SELECT(!$A$1:$P$47)","v":false},null,null,"Print Measuring Points OROS PISTON","Print_MeasOrosPiston",{"$f":"SELECT(!$G$31)","v":true},22,222,46,205,162,"Profile",2,"K80ME-C","MAKITA     (Makita Corporation)",{"$f":"DIALOG.BOX(DiaBoxEngineBuilder)","v":3},1,380,213,88,null,"OK",null,null,null,{"$f":"IF(ISBLANK(BA18),FORMULA(\"\"),FORMULA(BA18))","v":true},{"$f":"FORMULA(\"\",!$M$8)","v":true},null,null,null,null,null,null,{"$f":"RETURN()","v":true},{"$f":"RETURN()","v":true},{"$f":"RETURN()","v":true},{"$f":"RETURN()","v":true},{"$f":"RETURN()","v":true},{"$f":"RETURN()","v":true},{"$f":"RETURN()","v":true},{"$f":"RETURN()","v":true},{"$f":"RETURN()","v":true},{"$f":"RETURN()","v":true},{"$f":"RETURN()","v":true},{"$f":"RETURN()","v":true},null,null,null,null,null,null,null,null,null,null,{"$f":"DIALOG.BOX(DiaBoxRingCoating1to6)","v":false}]
[null,"IF(B46=(\"cylcond.xls\");GOTO(C43);GOTO(B48))",{"$f":"GOTO(B48)","v":true},null,null,null,null,{"$f":"IF(ISBLANK(H9)=(TRUE),FORMULA(\"\"),FORMULA(H9))","v":true},"Test",null,null,{"$f":"ERROR(FALSE)","v":true},null,"Paste Special...","PasteSpecial",{"$f":"RETURN()","v":true},null,"Piston Crown - Special Points","PistCrownSpecPoints",null,{"$f":"SET.PRINT.AREA()","v":true},{"$f":"SET.PRINT.AREA()","v":true},null,null,"-",null,{"$f":"IF(ISBLANK(AH45)=(TRUE),FORMULA(\"\"),FORMULA(AH45))","v":true},6,435,28,205,18,null,"Barrel, asym.","K80ME-C6","MANAUG     (M.A.N. Augsburg)",{"$f":"SELECT(!$M$2)","v":true},2,280,213,88,null,"Cancel",null,null,null,{"$f":"SELECT(!$P$7)","v":true},{"$f":"FORMULA(\"\",!$O$8)","v":true},null,null,null,null,null,null,{"$f":"VLOOKUP(MID('Condition Monitoring Report'!$F$3,2,2),TypeCLvalues,2)","v":4},{"$f":"VLOOKUP(MID('Condition Monitoring Report'!$F$3,2,2),TypeCLvalues,2)","v":3},{"$f":"VLOOKUP(MID('Condition Monitoring Report'!$F$3,2,2),TypeCLvalues,2)","v":3},{"$f":"VLOOKUP(MID('Condition Monitoring Report'!$F$3,2,2),TypeCLvalues,2)","v":3},{"$f":"VLOOKUP(MID('Condition Monitoring Report'!$F$3,2,2),TypeCLvalues,2)","v":3},{"$f":"VLOOKUP(MID('Condition Monitoring Report'!$F$3,2,2),TypeCLvalues,2)","v":3},{"$f":"VLOOKUP(MID('Condition Monitoring Report'!$F$3,2,2),TypeCLvalues,2)","v":2.5},{"$f":"VLOOKUP(MID('Condition Monitoring Report'!$F$3,2,2),TypeCLvalues,2)","v":2.5},{"$f":"VLOOKUP(MID('Condition Monitoring Report'!$F$3,2,2),TypeCLvalues,2)","v":2.5},{"$f":"VLOOKUP(MID('Condition Monitoring Report'!$F$3,2,2),TypeCLvalues,2)","v":2.5},{"$f":"VLOOKUP(MID('Condition Monitoring Report'!$F$3,2,2),TypeCLvalues,2)","v":3.5},{"$f":"VLOOKUP(MID('Condition Monitoring Report'!$F$3,2,2),TypeCLvalues,2)","v":2.5},null,null,null,null,null,null,null,null,null,null,{"$f":"SELECT(!$E$35)","v":true}]
["Print()","SHOW.TOOLBAR(1;FALSE;1;;;)",null,null,null,null,null,{"$f":"RETURN()","v":true},"Uballoy",null,null,{"$f":"SHOW.TOOLBAR(1,TRUE,1,,,)","v":true},null,null,null,null,null,"Measuring Points 2x2 RINGS","ListMeasPoints",null,{"$f":"PRINT(1,,,1,,,,,,300,)","v":true},{"$f":"PRINT(1,,,1,,,,,,300,)","v":true},null,null,"Printer Setup","PrinterSetup",{"$f":"SELECT(!$G$32)","v":true},22,435,46,205,162,"Profile",2,"K80ME-C9","MAQUIE     (Maquinista)",{"$f":"IF((AK46)=FALSE,GOTO(AK50),GOTO(AK49))","v":true},5,10,13,null,null,"Ship Position",null,null,null,{"$f":"IF(ISBLANK(BA20),FORMULA(\"\"),FORMULA(BA20))","v":true},{"$f":"PROTECT.DOCUMENT(FALSE,,\"opera\",FALSE)","v":true},null,null,null,null,null,null,{"$f":"SELECT('Condition Monitoring Report'!E30)","v":true},{"$f":"SELECT('Condition Monitoring Report'!F30)","v":true},{"$f":"SELECT('Condition Monitoring Report'!G30)","v":true},{"$f":"SELECT('Condition Monitoring Report'!H30)","v":true},{"$f":"SELECT('Condition Monitoring Report'!I30)","v":true},{"$f":"SELECT('Condition Monitoring Report'!J30)","v":true},{"$f":"SELECT('Condition Monitoring Report'!K30)","v":true},{"$f":"SELECT('Condition Monitoring Report'!L30)","v":true},{"$f":"SELECT('Condition Monitoring Report'!M30)","v":true},{"$f":"SELECT('Condition Monitoring Report'!N30)","v":true},{"$f":"SELECT('Condition Monitoring Report'!O30)","v":true},{"$f":"SELECT('Condition Monitoring Report'!P30)","v":true},null,"DiaBoxPistonSkirt1to6",null,null,null,null,null,null,null,null,{"$f":"IF((BY46)=FALSE,GOTO(BY60),GOTO(BY49))","v":true}]
[{"$f":"ECHO(FALSE)","v":true},"SHOW.TOOLBAR(2;FALSE;1;;;)",null,"Lub Groove Position",null,null,null,null,"Uballoy S","Broken",null,{"$f":"SHOW.TOOLBAR(2,TRUE,1,,,)","v":true},null,null,null,"Copy",null,"Measuring Points HIGH TOPLAND","ListMeasPointsHighTopland",null,{"$f":"SELECT(!$A$1)","v":true},{"$f":"SELECT(!$A$1)","v":true},null,null,"-",null,{"$f":"IF(ISBLANK(AH47)=(TRUE),FORMULA(\"\"),FORMULA(AH47))","v":true},6,647,28,205,18,null,"Barrel, asym.","K80ME-C9.1-TII","MBISHI     (Mitsubishi)",{"$f":"IF(ISBLANK(AR3)=(TRUE),FORMULA(\"\"),FORMULA(LEFT(AR3,6)))","v":true},null,null,null,null,null,null,null,null,null,{"$f":"SELECT(!$G$8)","v":true},{"$f":"SELECT(!$A7:$IV7:!$A8:$IV8)","v":true},null,null,null,null,null,null,{"$f":"FORMULA(BC47)","v":true},{"$f":"FORMULA(BD47)","v":true},{"$f":"FORMULA(BE47)","v":true},{"$f":"FORMULA(BF47)","v":true},{"$f":"FORMULA(BG47)","v":true},{"$f":"FORMULA(BH47)","v":true},{"$f":"FORMULA(BI47)","v":true},{"$f":"FORMULA(BJ47)","v":true},{"$f":"FORMULA(BK47)","v":true},{"$f":"FORMULA(BL47)","v":true},{"$f":"FORMULA(BM47)","v":true},{"$f":"FORMULA(BN47)","v":true},null,null,null,null,1288,212,"Piston Skirt Cylinder 1 to 6",null,null,null,{"$f":"IF(ISBLANK(BV3)=(TRUE),FORMULA(\"\"),FORMULA(LEFT(BV3,8)))","v":true}]
[{"$f":"SELECT(!$A$1:$P$50)","v":true},{"$f":"RUN(B51)","v":false},null,{"$f":"ECHO(FALSE)","v":true},null,null,null,null,"Unkn.","No",null,{"$f":"ERROR(FALSE)","v":false},null,null,null,{"$f":"ERROR(FALSE)","v":true},null,"Measuring Points OROS PISTON","ListMeasPointsOrosPiston",null,{"$f":"HALT()","v":true},{"$f":"HALT()","v":true},null,null,"Print preview meas. points OROS PISTON","PrintPrevMeasOrosPiston",{"$f":"SELECT(!$G$33)","v":true},22,647,46,205,162,"Profile",2,"K80ME-C9.2","MECAPE     (Mecánica Paseda S.A.)",{"$f":"RETURN()","v":true},null,null,null,null,null,null,null,null,null,{"$f":"IF(ISBLANK(BA21),FORMULA(\"\"),FORMULA(BA21))","v":true},{"$f":"ROW.HEIGHT(0)","v":true},null,null,null,null,null,null,{"$f":"VLOOKUP(MID('Condition Monitoring Report'!$F$3,2,2),TypeCLvalues,4)","v":2.2000000000000002},{"$f":"VLOOKUP(MID('Condition Monitoring Report'!$F$3,2,2),TypeCLvalues,4)","v":1.1000000000000001},{"$f":"VLOOKUP(MID('Condition Monitoring Report'!$F$3,2,2),TypeCLvalues,4)","v":2},{"$f":"VLOOKUP(MID('Condition Monitoring Report'!$F$3,2,2),TypeCLvalues,4)","v":2},{"$f":"VLOOKUP(MID('Condition Monitoring Report'!$F$3,2,2),TypeCLvalues,4)","v":2},{"$f":"VLOOKUP(MID('Condition Monitoring Report'!$F$3,2,2),TypeCLvalues,4)","v":2},{"$f":"VLOOKUP(MID('Condition Monitoring Report'!$F$3,2,2),TypeCLvalues,4)","v":2.2000000000000002},{"$f":"VLOOKUP(MID('Condition Monitoring Report'!$F$3,2,2),TypeCLvalues,4)","v":2},{"$f":"VLOOKUP(MID('Condition Monitoring Report'!$F$3,2,2),TypeCLvalues,4)","v":2.2000000000000002},{"$f":"VLOOKUP(MID('Condition Monitoring Report'!$F$3,2,2),TypeCLvalues,4)","v":2},{"$f":"VLOOKUP(MID('Condition Monitoring Report'!$F$3,2,2),TypeCLvalues,4)","v":2.2000000000000002},{"$f":"VLOOKUP(MID('Condition Monitoring Report'!$F$3,2,2),TypeCLvalues,4)","v":2},null,6,10,28,205,18,null,"Bronze R     (Bronze Ring)",null,null,{"$f":"SELECT(!$F$35)","v":true}]
[{"$f":"SET.PRINT.AREA()","v":true},{"$f":"ADD.BAR()","v":false},null,{"$f":"DIALOG.BOX(DiaBoxLubQuillPosition)","v":3},null,null,null,null,null,"Unkn.",null,{"$f":"QUIT()","v":false},null,null,null,{"$f":"COPY()","v":true},null,null,null,null,null,null,null,null,null,null,{"$f":"IF(ISBLANK(AH49)=(TRUE),FORMULA(\"\"),FORMULA(AH49))","v":true},1,761,183,88,null,"OK",null,"K80ME-C9.2-TII","MITSUI     (Mitsui Engineering & Shipbuilding)",null,null,null,null,null,null,null,null,null,null,{"$f":"SELECT(!$I$8)","v":true},{"$f":"PROTECT.DOCUMENT(TRUE,,\"opera\",TRUE)","v":true},null,null,null,null,null,null,{"$f":"SELECT('Condition Monitoring Report'!E31)","v":true},{"$f":"SELECT('Condition Monitoring Report'!F31)","v":true},{"$f":"SELECT('Condition Monitoring Report'!G31)","v":true},{"$f":"SELECT('Condition Monitoring Report'!H31)","v":true},{"$f":"SELECT('Condition Monitoring Report'!I31)","v":true},{"$f":"SELECT('Condition Monitoring Report'!J31)","v":true},{"$f":"SELECT('Condition Monitoring Report'!K31)","v":true},{"$f":"SELECT('Condition Monitoring Report'!L31)","v":true},{"$f":"SELECT('Condition Monitoring Report'!M31)","v":true},{"$f":"SELECT('Condition Monitoring Report'!N31)","v":true},{"$f":"SELECT('Condition Monitoring Report'!O31)","v":true},{"$f":"SELECT('Condition Monitoring Report'!P31)","v":true},null,22,10,46,205,162,"PistonSkirt",1,null,null,{"$f":"IF(ISBLANK(BV5)=(TRUE),FORMULA(\"\"),FORMULA(LEFT(BV5,8)))","v":true}]
[{"$f":"PRINT(1,,,1,,,,,,300,)","v":true},{"$f":"ADD.MENU(B51,N2:O5)","v":1},null,{"$f":"SELECT(!$I$11)","v":true},null,null,null,null,null,"Yes",null,{"$f":"RETURN()","v":true},null,null,null,{"$f":"RETURN()","v":true},null,null,null,null,null,null,null,null,null,null,{"$f":"RETURN()","v":true},2,663,183,88,null,"Cancel",null,"K80ME-S9","NIIGAT     (Niigata)",null,null,null,null,298,210,"Weather Condition",null,null,null,{"$f":"IF(ISBLANK(BA22),FORMULA(\"\"),FORMULA(BA22))","v":true},{"$f":"SELECT(!$D$11)","v":true},null,null,null,null,null,null,{"$f":"FORMULA(BC50)","v":true},{"$f":"FORMULA(BD50)","v":true},{"$f":"FORMULA(BE50)","v":true},{"$f":"FORMULA(BF50)","v":true},{"$f":"FORMULA(BG50)","v":true},{"$f":"FORMULA(BH50)","v":true},{"$f":"FORMULA(BI50)","v":true},{"$f":"FORMULA(BJ50)","v":true},{"$f":"FORMULA(BK50)","v":true},{"$f":"FORMULA(BL50)","v":true},{"$f":"FORMULA(BM50)","v":true},{"$f":"FORMULA(BN50)","v":true},null,6,222,28,205,18,null,"Molypden     (Molypdenum)",null,null,{"$f":"SELECT(!$G$35)","v":true}]
[{"$f":"SELECT(!$A$1)","v":true},{"$f":"ADD.MENU(B51,N8:O10)","v":2},null,{"$f":"IF((D51)=FALSE,GOTO(D55),GOTO(D54))","v":true},null,null,null,null,"Manufacturer",null,null,null,null,null,null,null,null,null,null,null,null,null,null,null,null,null,null,5,10,13,null,null,"Ring 1",null,"K90MC","PENHOE     (Penhoet)","ShipPosition",6,22,30,247,18,null,"Fair",null,null,{"$f":"SELECT(!$M$8)","v":true},{"$f":"RETURN()","v":true},null,null,null,null,null,null,{"$f":"SELECT(!$F$3)","v":true},{"$f":"SELECT(!$F$3)","v":true},{"$f":"SELECT(!$F$3)","v":true},{"$f":"SELECT(!$F$3)","v":true},{"$f":"SELECT(!$F$3)","v":true},{"$f":"SELECT(!$F$3)","v":true},{"$f":"SELECT(!$F$3)","v":true},{"$f":"SELECT(!$F$3)","v":true},{"$f":"SELECT(!$F$3)","v":true},{"$f":"SELECT(!$F$3)","v":true},{"$f":"SELECT(!$F$3)","v":true},{"$f":"SELECT(!$F$3)","v":true},null,22,222,46,205,180,"PistonSkirt",3,null,null,{"$f":"IF(ISBLANK(BV7)=(TRUE),FORMULA(\"\"),FORMULA(LEFT(BV7,8)))","v":true}]
[{"$f":"HALT()","v":true},{"$f":"ADD.MENU(B51,P2:Q7)","v":3},null,{"$f":"IF(ISBLANK(AR137)=(TRUE),FORMULA(\"\"),FORMULA(AR137))","v":true},null,null,null,null,"Federal Mogul (Daros)",null,null,"oilt",null,null,null,"Paste",null,null,null,null,null,null,null,null,null,null,null,5,223,13,null,null,"Ring 2",null,"K90MC-C","PSMITB     (P. Smit)",{"$f":"ECHO(FALSE)","v":true},22,22,48,247,124,"WeatherCondition",1,null,null,{"$f":"IF(ISBLANK(BA23),FORMULA(\"\"),FORMULA(BA23))","v":true},null,null,null,null,null,null,null,{"$f":"PROTECT.DOCUMENT(TRUE,,\"opera\",TRUE)","v":true},{"$f":"PROTECT.DOCUMENT(TRUE,,\"opera\",TRUE)","v":true},{"$f":"PROTECT.DOCUMENT(TRUE,,\"opera\",TRUE)","v":true},{"$f":"PROTECT.DOCUMENT(TRUE,,\"opera\",TRUE)","v":true},{"$f":"PROTECT.DOCUMENT(TRUE,,\"opera\",TRUE)","v":true},{"$f":"PROTECT.DOCUMENT(TRUE,,\"opera\",TRUE)","v":true},true,true,true,true,true,true,null,6,435,28,205,18,null,"Bronze R     (Bronze Ring)",null,null,{"$f":"SELECT(!$H$35)","v":true}]
[null,{"$f":"ADD.MENU(B51,N17:O19)","v":4},null,{"$f":"RETURN()","v":true},null,null,null,null,"Federal Mogul (Goetsche)",null,null,"AGIP Punica 570",null,null,null,{"$f":"ERROR(FALSE)","v":true},null,"CylCondReport()","ListMeasPoints()","PistCrownSpecPoints()","ListMeasPointsHighTopland()","ListMeasPointsOrosPiston()",null,null,null,null,null,5,435,13,null,null,"Ring 3",null,"K90MCE","PTPALI     (PT. Pal)",{"$f":"DIALOG.BOX(DiaBoxShipPosition)","v":3},1,189,176,88,null,"OK",null,null,null,{"$f":"SELECT(!$O$8)","v":true},null,null,null,null,null,null,null,{"$f":"RETURN()","v":true},{"$f":"RETURN()","v":true},{"$f":"RETURN()","v":true},{"$f":"RETURN()","v":true},{"$f":"RETURN()","v":true},{"$f":"RETURN()","v":true},{"$f":"RETURN()","v":true},{"$f":"RETURN()","v":true},{"$f":"RETURN()","v":true},{"$f":"RETURN()","v":true},{"$f":"RETURN()","v":true},{"$f":"RETURN()","v":true},null,22,435,46,205,180,"PistonSkirt",1,null,null,{"$f":"IF(ISBLANK(BV9)=(TRUE),FORMULA(\"\"),FORMULA(LEFT(BV9,8)))","v":true}]
[null,{"$f":"ADD.MENU(B51,P20:Q25)","v":5},null,null,null,null,null,null,"NPR",null,null,"Alexia 50",null,null,null,{"$f":"PASTE()","v":true},null,{"$f":"ACTIVATE(\"Cylinder Condition Report\")","v":true},{"$f":"ACTIVATE(\"Liner Meas. Points 2x2 RINGS\")","v":true},{"$f":"ACTIVATE(\"Piston Crown - Special Points\")","v":true},{"$f":"ACTIVATE(\"Liner Meas. Points HIGH TOPLAND\")","v":true},{"$f":"ACTIVATE(\"Liner Meas. Points OROS PISTON\")","v":true},null,null,null,null,null,5,647,13,null,null,"Ring 4",null,"K90MC-S","RESITA     (U.C.M. Resita)",{"$f":"SELECT(!$G$7)","v":true},2,89,176,88,null,"Cancel",null,null,null,{"$f":"IF(ISBLANK(BA24),FORMULA(\"\"),FORMULA(BA24))","v":true},null,null,null,null,null,null,null,null,null,null,null,null,null,null,null,null,null,null,null,null,6,647,28,205,18,null,"Cast Iron    (Cast Iron)",null,null,{"$f":"SELECT(!$I$35)","v":true}]
[null,{"$f":"ADD.MENU(B51,N22:O23)","v":6},null,null,null,null,null,null,"Other",null,null,"Alexia LS",null,null,null,{"$f":"RETURN()","v":true},null,{"$f":"RUN(R6)","v":{"$error":"#N/A"}},{"$f":"RUN(T6)","v":{"$error":"#N/A"}},{"$f":"RUN(W6)","v":{"$error":"#N/A"}},{"$f":"RUN(Y6)","v":{"$error":"#N/A"}},{"$f":"RUN(Z6)","v":{"$error":"#N/A"}},null,null,null,null,null,null,null,null,null,null,null,null,"K90ME","RONGAN     (Hefei RongAn Power Machinery)",{"$f":"IF((AK55)=FALSE,GOTO(AK59),GOTO(AK58))","v":true},5,22,15,null,null,"Weather Condition",null,null,null,{"$f":"IF(OR(ISBLANK(BA16),ISBLANK(BA18),ISBLANK(BA20),ISBLANK(BA21),ISBLANK(BA22),ISBLANK(BA23),ISBLANK(BA24)),GOTO(AU58),GOTO(AU61))","v":true},null,null,null,null,null,null,null,null,null,null,null,null,null,null,null,null,null,null,null,null,22,647,46,205,180,"PistonSkirt",2,null,null,{"$f":"IF(ISBLANK(BV17)=(TRUE),FORMULA(\"\"),FORMULA(LEFT(BV17,8)))","v":true}]
[null,{"$f":"SHOW.BAR(B51)","v":false},null,null,null,null,null,null,"Riken",null,null,"Alexia S4",null,null,null,null,null,{"$f":"RETURN()","v":true},{"$f":"RETURN()","v":true},{"$f":"RETURN()","v":true},{"$f":"RETURN()","v":true},{"$f":"RETURN()","v":true},null,null,null,null,null,null,null,null,null,null,null,null,"K90ME6","ROSTOC     (Rostocker Maschinenbau)",{"$f":"IF(ISBLANK(AR44)=(TRUE),FORMULA(\"\"),FORMULA(AR44))","v":true},null,null,null,null,null,null,null,null,null,{"$f":"ALERT(\"Not all fields are filled in! Push OK to accept data. Push cancel to fill in more data.\",1)","v":true},null,null,null,null,null,null,null,null,null,null,null,null,null,null,null,null,null,null,null,null,1,761,183,88,null,"OK",null,null,null,{"$f":"SELECT(!$J$35)","v":true}]
[null,{"$f":"RETURN()","v":true},null,null,null,null,null,null,"Standard Piston Ring",null,null,"Alexia S6",null,null,null,"PasteSpecial",null,null,null,null,null,null,null,null,null,null,null,null,null,null,null,null,null,null,"K90ME9","SAMSUN     (Samsung Heavy Industries)",{"$f":"RETURN()","v":true},null,null,null,null,null,null,null,null,null,{"$f":"IF(AU58=FALSE,GOTO(AU60),GOTO(AU61))","v":true},null,null,null,null,null,null,null,null,null,null,null,null,null,null,null,null,null,null,null,null,2,663,183,88,null,"Cancel",null,null,null,{"$f":"IF(ISBLANK(BV19)=(TRUE),FORMULA(\"\"),FORMULA(LEFT(BV19,8)))","v":true}]
[null,"AutoDeactivate()",null,null,null,null,null,null,"Unkn.",null,null,"Alfacylo 100 HS",null,null,null,{"$f":"ERROR(FALSE)","v":true},null,null,null,null,null,null,null,null,null,null,"Manufacturer",null,null,null,null,null,null,null,"K90ME-C","SANYON     (Ssangyong Heavy Industries)",null,"CL coat select (Top ring)",null,null,null,null,null,null,null,null,{"$f":"GOTO(AU37)","v":true},null,null,null,null,null,null,null,null,null,null,null,null,null,null,null,null,null,null,null,null,5,10,13,null,null,"Skirt 1",null,null,null,{"$f":"RETURN()","v":true}]
[null,{"$f":"ECHO(FALSE)","v":true},null,null,null,null,null,null,null,null,null,"ALFACYLO 540 LS",null,null,null,{"$f":"PASTE.SPECIAL?()","v":false},null,null,null,null,null,null,null,null,null,null,{"$f":"ECHO(FALSE)","v":true},null,null,null,null,null,null,null,"K90ME-C6","SARPSB     (Sarpsborg Mek. V.)",null,null,null,null,448,114,null,null,null,null,{"$f":"PROTECT.DOCUMENT(FALSE,,\"opera\",FALSE)","v":true},null,null,null,null,null,null,null,"POP nominal+max dimension (top, unit 1)","POP nominal+max dimension (top, unit 2) ","POP nominal+max dimension (top, unit 3)","POP nominal+max dimension (top, unit 4)","POP nominal+max dimension (top, unit 5)","POP nominal+max dimension (top, unit 6)","POP nominal+max dimension (top, unit 7)","POP nominal+max dimension (top, unit 8)","POP nominal+max dimension (top, unit 9)","POP nominal+max dimension (top, unit 10)","POP nominal+max dimension (top, unit 11)","POP nominal+max dimension (top, unit 12)",null,5,223,13,null,null,"Skirt 2"]
[null,{"$f":"SHOW.BAR()","v":true},null,null,null,null,null,null,null,null,null,"ALFACYLO 570",null,null,null,{"$f":"RETURN()","v":true},null,null,null,null,null,null,null,null,null,null,{"$f":"DIALOG.BOX(DiaBoxManufacturer)","v":9},null,null,null,866,212,"Manufacturer",null,"K90ME-C6.1-TII","SHANGS     (Shanghai Shipyard)","WeatherCondition",5,10,6,null,null,"For engine type 90 or 98 select piston ring coating type:",null,null,null,{"$f":"SELECT(!$A7:$IV7:!$A8:$IV8)","v":true},null,null,null,null,null,null,null,{"$f":"ECHO(FALSE)","v":true},{"$f":"ECHO(FALSE)","v":true},{"$f":"ECHO(FALSE)","v":true},{"$f":"ECHO(FALSE)","v":true},{"$f":"ECHO(FALSE)","v":true},{"$f":"ECHO(FALSE)","v":true},{"$f":"ECHO(FALSE)","v":true},{"$f":"ECHO(FALSE)","v":true},{"$f":"ECHO(FALSE)","v":true},{"$f":"ECHO(FALSE)","v":true},{"$f":"ECHO(FALSE)","v":true},{"$f":"ECHO(FALSE)","v":true},null,5,435,13,null,null,"Skirt 3"]
[null,{"$f":"RETURN()","v":true},null,null,null,null,null,null,"CL Grooves",null,null,"AVIN Neptune 40 SAE 50",null,null,null,null,null,null,null,null,null,null,null,null,null,null,{"$f":"SELECT(!$I$30)","v":true},6,10,28,205,18,null,"Federal Mogul (Goetsche)","K90ME-C9","SKANDI     (Skandiaverken)",{"$f":"ECHO(FALSE)","v":true},13,50,35,null,null,"None hard coating",null,null,null,{"$f":"ROW.HEIGHT(25.5)","v":true},null,null,null,null,null,null,null,{"$f":"PROTECT.DOCUMENT(FALSE,,\"opera\",FALSE)","v":true},{"$f":"PROTECT.DOCUMENT(FALSE,,\"opera\",FALSE)","v":true},{"$f":"PROTECT.DOCUMENT(FALSE,,\"opera\",FALSE)","v":true},{"$f":"PROTECT.DOCUMENT(FALSE,,\"opera\",FALSE)","v":true},{"$f":"PROTECT.DOCUMENT(FALSE,,\"opera\",FALSE)","v":true},true,true,true,true,true,true,true,null,5,647,13,null,null,"Skirt 4"]
[null,"AutoCloseCylcond)",null,null,null,null,null,null,"No",null,null,"Bardahl Naval SAE 50 TBN 70",null,null,null,null,null,null,null,null,null,null,null,null,null,null,{"$f":"IF((AA62)=FALSE,GOTO(AA72),GOTO(AA65))","v":true},22,10,46,205,144,"Manufacturer",2,"K98MC","SNEIDR     (Schneider)",{"$f":"DIALOG.BOX(DiaBoxWeatherCondition)","v":3},13,null,null,null,null,"Hard coating",null,null,null,{"$f":"PROTECT.DOCUMENT(TRUE,,\"opera\",TRUE)","v":true},null,null,null,null,null,null,null,{"$f":"SELECT('Condition Monitoring Report'!E30:E31)","v":true},{"$f":"SELECT('Condition Monitoring Report'!F30:F31)","v":true},{"$f":"SELECT('Condition Monitoring Report'!G30:G31)","v":true},{"$f":"SELECT('Condition Monitoring Report'!H30:H31)","v":true},{"$f":"SELECT('Condition Monitoring Report'!I30:I31)","v":true},{"$f":"SELECT('Condition Monitoring Report'!J30:J31)","v":true},{"$f":"SELECT('Condition Monitoring Report'!K30:K31)","v":true},{"$f":"SELECT('Condition Monitoring Report'!L30:L31)","v":true},{"$f":"SELECT('Condition Monitoring Report'!M30:M31)","v":true},{"$f":"SELECT('Condition Monitoring Report'!N30:N31)","v":true},{"$f":"SELECT('Condition Monitoring Report'!O30:O31)","v":true},{"$f":"SELECT('Condition Monitoring Report'!P30:P31)","v":true},null,6,859,28,205,18,null,"Cast Iron    (Cast Iron)"]
[null,{"$f":"ECHO(FALSE)","v":true},null,null,null,null,null,null,"POP",null,null,"CPC CO 700 Plus",null,null,null,null,null,null,null,null,null,null,null,null,null,null,{"$f":"IF(ISBLANK(AH63)=(TRUE),FORMULA(\"\"),FORMULA(AH63))","v":true},6,222,28,205,18,null,"Federal Mogul (Daros)","K98MC-C","SPLITT     (Brodosplit)",{"$f":"SELECT(!$L$7)","v":true},1,338,82,88,null,"OK",null,null,null,{"$f":"SELECT(!$D$11)","v":true},null,null,null,null,null,null,null,{"$f":"CLEAR()","v":true},{"$f":"CLEAR()","v":true},{"$f":"CLEAR()","v":true},{"$f":"CLEAR()","v":true},{"$f":"CLEAR()","v":true},{"$f":"CLEAR()","v":true},{"$f":"CLEAR()","v":true},{"$f":"CLEAR()","v":true},{"$f":"CLEAR()","v":true},{"$f":"CLEAR()","v":true},{"$f":"CLEAR()","v":true},{"$f":"CLEAR()","v":true},null,22,859,46,205,198,"PistonSkirt",2,null,null,"2ndRingCoatingCyl7to12"]
[null,{"$f":"ERROR(FALSE)","v":true},null,null,null,null,null,null,"Unkn.",null,null,"Cyclon Nautilus Heavy",null,null,null,null,null,null,null,null,null,null,null,null,null,null,{"$f":"SELECT(!$I$31)","v":true},22,222,46,205,162,"Manufacturer",1,"K98MC-S","STOGDA     (Stocznia Gdanska)",{"$f":"IF((AK64)=FALSE,GOTO(AK68),GOTO(AK67))","v":true},2,238,82,88,null,"Cancel",null,null,null,{"$f":"RETURN()","v":true},null,null,null,null,null,null,null,{"$f":"SELECT('Condition Monitoring Report'!Q22)","v":true},{"$f":"SELECT('Condition Monitoring Report'!R22)","v":true},{"$f":"SELECT('Condition Monitoring Report'!S22)","v":true},{"$f":"SELECT('Condition Monitoring Report'!T22)","v":true},{"$f":"SELECT('Condition Monitoring Report'!U22)","v":true},{"$f":"SELECT('Condition Monitoring Report'!V22)","v":true},{"$f":"SELECT('Condition Monitoring Report'!W22)","v":true},{"$f":"SELECT('Condition Monitoring Report'!X22)","v":true},{"$f":"SELECT('Condition Monitoring Report'!Y22)","v":true},{"$f":"SELECT('Condition Monitoring Report'!Z22)","v":true},{"$f":"SELECT('Condition Monitoring Report'!AA22)","v":true},{"$f":"SELECT('Condition Monitoring Report'!AB22)","v":true},null,6,1071,28,205,18,null,"Molypden     (Molypdenum)",null,null,{"$f":"ECHO(FALSE)","v":true}]
[null,{"$f":"CLOSE()","v":{"$error":"#VALUE!"}},null,null,null,null,null,null,"6 pcs 45-90-135",null,null,"Cyclon Nautilus Heavy SAE 50",null,null,null,null,null,null,null,null,null,null,null,null,null,null,{"$f":"IF(ISBLANK(AH65)=(TRUE),FORMULA(\"\"),FORMULA(AH65))","v":true},6,435,28,205,18,null,"Standard Piston Ring","K98ME","STX     (STX, SsangYong)",{"$f":"IF(ISBLANK(AR53)=(TRUE),FORMULA(\"\"),FORMULA(AR53))","v":true},null,null,null,null,null,null,null,null,null,null,null,null,null,null,null,null,null,{"$f":"CLEAR()","v":true},{"$f":"CLEAR()","v":true},{"$f":"CLEAR()","v":true},{"$f":"CLEAR()","v":true},{"$f":"CLEAR()","v":true},{"$f":"CLEAR()","v":true},{"$f":"CLEAR()","v":true},{"$f":"CLEAR()","v":true},{"$f":"CLEAR()","v":true},{"$f":"CLEAR()","v":true},{"$f":"CLEAR()","v":true},{"$f":"CLEAR()","v":true},null,22,1071,46,205,198,"PistonSkirt",3,null,null,{"$f":"DIALOG.BOX(DiaBoxRingCoating7to12)","v":9}]
[null,{"$f":"ACTIVATE.NEXT()","v":true},null,null,null,null,null,null,"6 pcs 45-67.5-90",null,null,"Cyclon Nautilus LS 50",null,null,null,null,null,null,null,null,null,null,null,null,null,null,{"$f":"SELECT(!$I$32)","v":true},22,435,46,205,162,"Manufacturer",6,"K98ME6","TAIMMC     (Taiwan)",{"$f":"RETURN()","v":true},null,null,null,null,null,null,null,null,null,null,null,null,null,null,null,null,null,{"$f":"IF(ISBLANK('Condition Monitoring Report'!$F$3)=(TRUE),ALERT(\"Make an engine selection first\"),GOTO(BC76))","v":true},{"$f":"IF(ISBLANK('Condition Monitoring Report'!$F$3)=(TRUE),ALERT(\"Make an engine selection first\"),GOTO(BD76))","v":true},{"$f":"IF(ISBLANK('Condition Monitoring Report'!$F$3)=(TRUE),ALERT(\"Make an engine selection first\"),GOTO(BE76))","v":true},{"$f":"IF(ISBLANK('Condition Monitoring Report'!$F$3)=(TRUE),ALERT(\"Make an engine selection first\"),GOTO(BF76))","v":true},{"$f":"IF(ISBLANK('Condition Monitoring Report'!$F$3)=(TRUE),ALERT(\"Make an engine selection first\"),GOTO(BG76))","v":true},{"$f":"IF(ISBLANK('Condition Monitoring Report'!$F$3)=(TRUE),ALERT(\"Make an engine selection first\"),GOTO(BH76))","v":true},{"$f":"IF(ISBLANK('Condition Monitoring Report'!$F$3)=(TRUE),ALERT(\"Make an engine selection first\"),GOTO(BI76))","v":true},{"$f":"IF(ISBLANK('Condition Monitoring Report'!$F$3)=(TRUE),ALERT(\"Make an engine selection first\"),GOTO(BJ76))","v":true},{"$f":"IF(ISBLANK('Condition Monitoring Report'!$F$3)=(TRUE),ALERT(\"Make an engine selection first\"),GOTO(BK76))","v":true},{"$f":"IF(ISBLANK('Condition Monitoring Report'!$F$3)=(TRUE),ALERT(\"Make an engine selection first\"),GOTO(BL76))","v":true},{"$f":"IF(ISBLANK('Condition Monitoring Report'!$F$3)=(TRUE),ALERT(\"Make an engine selection first\"),GOTO(BM76))","v":true},{"$f":"IF(ISBLANK('Condition Monitoring Report'!$F$3)=(TRUE),ALERT(\"Make an engine selection first\"),GOTO(BN76))","v":true},null,5,859,13,null,null,"Skirt 5",null,null,null,{"$f":"SELECT(!$K$35)","v":true}]
[null,{"$f":"RETURN()","v":true},null,null,null,null,null,null,"6 pcs 30-60-90",null,null,"Cylcare EPH5070",null,null,null,null,null,null,null,null,null,null,null,null,null,null,{"$f":"IF(ISBLANK(AH67)=(TRUE),FORMULA(\"\"),FORMULA(AH67))","v":true},6,647,28,205,18,null,"Federal Mogul (Goetsche)","K98ME6.1-TII","THIRIE     (Thiriet)",null,null,"OBS: Engine ","bore to be entered as","text (with a gnyf (')) in ","order for AK87 to work",null,null,null,null,null,null,null,null,null,null,null,null,{"$f":"SELECT('Condition Monitoring Report'!Q23)","v":true},{"$f":"SELECT('Condition Monitoring Report'!R23)","v":true},{"$f":"SELECT('Condition Monitoring Report'!S23)","v":true},{"$f":"SELECT('Condition Monitoring Report'!T23)","v":true},{"$f":"SELECT('Condition Monitoring Report'!U23)","v":true},{"$f":"SELECT('Condition Monitoring Report'!V23)","v":true},{"$f":"SELECT('Condition Monitoring Report'!W23)","v":true},{"$f":"SELECT('Condition Monitoring Report'!X23)","v":true},{"$f":"SELECT('Condition Monitoring Report'!Y23)","v":true},{"$f":"SELECT('Condition Monitoring Report'!Z23)","v":true},{"$f":"SELECT('Condition Monitoring Report'!AA23)","v":true},{"$f":"SELECT('Condition Monitoring Report'!AB23)","v":true},null,5,1071,13,null,null,"Skirt 6",null,null,null,{"$f":"IF((BY67)=FALSE,GOTO(BY81),GOTO(BY70))","v":true}]
[null,null,null,null,null,null,null,null,"4 pcs 30-60",null,null,"Cylinder Oil 5070",null,null,null,null,null,null,null,null,null,null,null,null,null,null,{"$f":"SELECT(!$I$33)","v":true},22,647,46,205,162,"Manufacturer",2,"K98ME7","U.B.E.     (UBE Industries Ltd.)","LubPartLoadControl(Condition Monitoring Report)",null,"Engine","POP Nominal width","CL Nominal depth","POP Maximum width",null,null,null,null,null,null,null,null,null,null,null,null,{"$f":"CLEAR()","v":true},{"$f":"CLEAR()","v":true},{"$f":"CLEAR()","v":true},{"$f":"CLEAR()","v":true},{"$f":"CLEAR()","v":true},{"$f":"CLEAR()","v":true},{"$f":"CLEAR()","v":true},{"$f":"CLEAR()","v":true},{"$f":"CLEAR()","v":true},{"$f":"CLEAR()","v":true},{"$f":"CLEAR()","v":true},{"$f":"CLEAR()","v":true},null,null,null,null,null,null,null,null,null,null,{"$f":"IF(ISBLANK(BV26)=(TRUE),FORMULA(\"\"),FORMULA(LEFT(BV26,8)))","v":true}]
[null,null,null,null,null,null,null,null,"4 pcs 30-90",null,null,"Cyltech 40S",null,null,null,null,null,null,null,null,null,null,null,null,null,null,{"$f":"IF(ISBLANK(AH69)=(TRUE),FORMULA(\"\"),FORMULA(AH69))","v":true},1,765,183,88,null,"OK",null,"K98ME7.1","UDDEVA     (Uddevallavarvet AB)",{"$f":"ECHO(FALSE)","v":true},null,"bore",null,null,null,null,null,null,null,null,null,null,null,null,null,null,null,{"$f":"FORMULA.GOTO('Condition Monitoring Report'!$F$3)","v":true},{"$f":"FORMULA.GOTO('Condition Monitoring Report'!$F$3)","v":true},{"$f":"FORMULA.GOTO('Condition Monitoring Report'!$F$3)","v":true},{"$f":"FORMULA.GOTO('Condition Monitoring Report'!$F$3)","v":true},{"$f":"FORMULA.GOTO('Condition Monitoring Report'!$F$3)","v":true},{"$f":"FORMULA.GOTO('Condition Monitoring Report'!$F$3)","v":true},{"$f":"FORMULA.GOTO('Condition Monitoring Report'!$F$3)","v":true},{"$f":"FORMULA.GOTO('Condition Monitoring Report'!$F$3)","v":true},{"$f":"FORMULA.GOTO('Condition Monitoring Report'!$F$3)","v":true},{"$f":"FORMULA.GOTO('Condition Monitoring Report'!$F$3)","v":true},{"$f":"FORMULA.GOTO('Condition Monitoring Report'!$F$3)","v":true},{"$f":"FORMULA.GOTO('Condition Monitoring Report'!$F$3)","v":true},null,null,null,null,null,null,null,null,null,null,{"$f":"SELECT(!$L$35)","v":true}]
[null,null,null,null,null,null,null,null,null,null,null,"Cyltech 40SX",null,null,null,null,null,null,null,null,null,null,null,null,null,null,{"$f":"RETURN()","v":true},2,667,183,88,null,"Cancel",null,"K98ME7.1-TII","ULJANI     (Uljanik Strojogradnja)",{"$f":"DIALOG.BOX(DiaBoxLubPartLoadControl)","v":false},null,"10","UNKN",null,"UNKN",null,null,null,null,null,null,null,null,null,null,null,null,{"$f":"VSCROLL(1,TRUE)","v":true},{"$f":"VSCROLL(1,TRUE)","v":true},{"$f":"VSCROLL(1,TRUE)","v":true},{"$f":"VSCROLL(1,TRUE)","v":true},{"$f":"VSCROLL(1,TRUE)","v":true},{"$f":"VSCROLL(1,TRUE)","v":true},{"$f":"VSCROLL(1,TRUE)","v":true},{"$f":"VSCROLL(1,TRUE)","v":true},{"$f":"VSCROLL(1,TRUE)","v":true},{"$f":"VSCROLL(1,TRUE)","v":true},{"$f":"VSCROLL(1,TRUE)","v":true},{"$f":"VSCROLL(1,TRUE)","v":true},null,"DiaBoxPistonSkirt7to12",null,null,null,null,null,null,null,null,{"$f":"IF(ISBLANK(BV28)=(TRUE),FORMULA(\"\"),FORMULA(LEFT(BV28,8)))","v":true}]
[null,null,null,null,null,null,null,null,null,null,null,"Cyltech 50S",null,null,null,null,null,null,null,null,null,null,null,null,null,null,null,5,10,13,null,null,"Ring 1",null,"K98ME-C","VALMLI     (Valmet (4-stroke))",{"$f":"SELECT(!$G$6)","v":true},null,"26",3,null,6.6,null,null,null,null,null,null,null,null,null,null,null,null,{"$f":"HSCROLL(1,TRUE)","v":true},{"$f":"HSCROLL(1,TRUE)","v":true},{"$f":"HSCROLL(1,TRUE)","v":true},{"$f":"HSCROLL(1,TRUE)","v":true},{"$f":"HSCROLL(1,TRUE)","v":true},{"$f":"HSCROLL(1,TRUE)","v":true},{"$f":"HSCROLL(1,TRUE)","v":true},{"$f":"HSCROLL(1,TRUE)","v":true},{"$f":"HSCROLL(1,TRUE)","v":true},{"$f":"HSCROLL(1,TRUE)","v":true},{"$f":"HSCROLL(1,TRUE)","v":true},{"$f":"HSCROLL(1,TRUE)","v":true},null,null,null,null,1288,212,"Piston Skirt Cylinder 7 to 12",null,null,null,{"$f":"SELECT(!$M$35)","v":true}]
[null,null,null,null,null,null,null,null,"Wear Type",null,null,"Cyltech 70",null,null,null,null,null,null,null,null,null,null,null,null,null,null,null,5,223,13,null,null,"Ring 2",null,"K98ME-C6","VALMRA     (Valmet (2-stroke))",{"$f":"IF((AK72)=FALSE,GOTO(AK76),GOTO(AK75))","v":true},null,"35",3,null,7.4,null,null,null,null,null,null,null,null,null,null,null,null,{"$f":"PROTECT.DOCUMENT(TRUE,,\"opera\",TRUE)","v":true},{"$f":"PROTECT.DOCUMENT(TRUE,,\"opera\",TRUE)","v":true},{"$f":"PROTECT.DOCUMENT(TRUE,,\"opera\",TRUE)","v":true},{"$f":"PROTECT.DOCUMENT(TRUE,,\"opera\",TRUE)","v":true},{"$f":"PROTECT.DOCUMENT(TRUE,,\"opera\",TRUE)","v":true},true,true,true,true,true,true,true,null,6,10,28,205,18,null,"Bronze R     (Bronze Ring)",null,null,{"$f":"IF(ISBLANK(BV30)=(TRUE),FORMULA(\"\"),FORMULA(LEFT(BV30,8)))","v":true}]
[null,null,null,null,null,null,null,null,"Abrasive",null,null,"Cyltech 80",null,null,null,null,null,null,null,null,null,null,null,null,null,null,null,5,435,13,null,null,"Ring 3",null,"K98ME-C6.1-TII","VILARE     (Equipamentos Villares S.A.)",{"$f":"IF(ISBLANK(AR28)=(TRUE),FORMULA(\"\"),FORMULA(AR28))","v":true},null,"40",3,null,7.4,null,null,null,null,null,null,null,null,null,null,null,null,{"$f":"RETURN()","v":true},{"$f":"RETURN()","v":true},{"$f":"RETURN()","v":true},{"$f":"RETURN()","v":true},{"$f":"RETURN()","v":true},{"$f":"RETURN()","v":true},{"$f":"RETURN()","v":true},{"$f":"RETURN()","v":true},{"$f":"RETURN()","v":true},{"$f":"RETURN()","v":true},{"$f":"RETURN()","v":true},{"$f":"RETURN()","v":true},null,22,10,46,205,162,"PistonSkirt",1,null,null,{"$f":"SELECT(!$N$35)","v":true}]
[null,null,null,null,null,null,null,null,"Corrosive",null,null,"Cyltech 80AW",null,null,null,null,null,null,null,null,null,null,null,null,null,null,null,5,647,13,null,null,"Ring 4",null,"K98ME-C7","VINASH     (Vinashin, Vietnam)",{"$f":"RETURN()","v":true},null,"42",3,null,7.4,null,null,null,null,null,null,null,null,null,null,null,null,{"$f":"ACTIVATE(\"Condition Monitoring Report\")","v":true},{"$f":"ACTIVATE(\"Condition Monitoring Report\")","v":true},{"$f":"ACTIVATE(\"Condition Monitoring Report\")","v":true},{"$f":"ACTIVATE(\"Condition Monitoring Report\")","v":true},{"$f":"ACTIVATE(\"Condition Monitoring Report\")","v":true},{"$f":"ACTIVATE(\"Condition Monitoring Report\")","v":true},{"$f":"ACTIVATE(\"Condition Monitoring Report\")","v":true},{"$f":"ACTIVATE(\"Condition Monitoring Report\")","v":true},{"$f":"ACTIVATE(\"Condition Monitoring Report\")","v":true},{"$f":"ACTIVATE(\"Condition Monitoring Report\")","v":true},{"$f":"ACTIVATE(\"Condition Monitoring Report\")","v":true},{"$f":"ACTIVATE(\"Condition Monitoring Report\")","v":true},null,6,222,28,205,18,null,"Cast Iron    (Cast Iron)",null,null,{"$f":"IF(ISBLANK(BV32)=(TRUE),FORMULA(\"\"),FORMULA(LEFT(BV32,8)))","v":true}]
[null,null,null,null,null,null,null,null,"Normal",null,null,"Cyltech CL 100 ACC",null,null,null,null,null,null,null,null,null,null,null,null,null,null,null,null,null,null,null,null,null,null,"K98ME-C7.1","WARTSI     (Wärtsila OY)",null,null,"46",3,null,7.4,null,null,null,null,null,null,null,null,null,null,null,null,{"$f":"IF(AND('Condition Monitoring Report'!Q22=FALSE,'Condition Monitoring Report'!Q23=FALSE),GOTO(BC78),GOTO(BC84))","v":true},{"$f":"IF(AND('Condition Monitoring Report'!R22=FALSE,'Condition Monitoring Report'!R23=FALSE),GOTO(BD78),GOTO(BD84))","v":true},{"$f":"IF(AND('Condition Monitoring Report'!S22=FALSE,'Condition Monitoring Report'!S23=FALSE),GOTO(BE78),GOTO(BE84))","v":true},{"$f":"IF(AND('Condition Monitoring Report'!T22=FALSE,'Condition Monitoring Report'!T23=FALSE),GOTO(BF78),GOTO(BF84))","v":true},{"$f":"IF(AND('Condition Monitoring Report'!U22=FALSE,'Condition Monitoring Report'!U23=FALSE),GOTO(BG78),GOTO(BG84))","v":true},{"$f":"IF(AND('Condition Monitoring Report'!V22=FALSE,'Condition Monitoring Report'!V23=FALSE),GOTO(BH78),GOTO(BH84))","v":true},{"$f":"IF(AND('Condition Monitoring Report'!W22=FALSE,'Condition Monitoring Report'!W23=FALSE),GOTO(BI78),GOTO(BI84))","v":true},{"$f":"IF(AND('Condition Monitoring Report'!X22=FALSE,'Condition Monitoring Report'!X23=FALSE),GOTO(BJ78),GOTO(BJ84))","v":true},{"$f":"IF(AND('Condition Monitoring Report'!Y22=FALSE,'Condition Monitoring Report'!Y23=FALSE),GOTO(BK78),GOTO(BK84))","v":true},{"$f":"IF(AND('Condition Monitoring Report'!Z22=FALSE,'Condition Monitoring Report'!Z23=FALSE),GOTO(BL78),GOTO(BL84))","v":true},{"$f":"IF(AND('Condition Monitoring Report'!AA22=FALSE,'Condition Monitoring Report'!AA23=FALSE),GOTO(BM78),GOTO(BM84))","v":true},{"$f":"IF(AND('Condition Monitoring Report'!AB22=FALSE,'Condition Monitoring Report'!AB23=FALSE),GOTO(BN78),GOTO(BN84))","v":true},null,22,222,46,205,180,"PistonSkirt",2,null,null,{"$f":"SELECT(!$O$35)","v":true}]
[null,null,null,null,null,null,null,null,"Scuffing",null,null,"Cynara 70",null,null,null,null,null,null,null,null,null,null,null,null,null,null,null,null,null,null,null,null,null,null,"K98ME-C7.1-TII","Y.M.D.     (Yichang Marine Diesel)","LubType(Condition Monitoring Report)",null,"50",3,null,9,null,null,null,null,null,null,null,null,null,null,null,null,{"$f":"SELECT('Condition Monitoring Report'!E30)","v":true},{"$f":"SELECT('Condition Monitoring Report'!F30)","v":true},{"$f":"SELECT('Condition Monitoring Report'!G30)","v":true},{"$f":"SELECT('Condition Monitoring Report'!H30)","v":true},{"$f":"SELECT('Condition Monitoring Report'!I30)","v":true},{"$f":"SELECT('Condition Monitoring Report'!J30)","v":true},{"$f":"SELECT('Condition Monitoring Report'!K30)","v":true},{"$f":"SELECT('Condition Monitoring Report'!L30)","v":true},{"$f":"SELECT('Condition Monitoring Report'!M30)","v":true},{"$f":"SELECT('Condition Monitoring Report'!N30)","v":true},{"$f":"SELECT('Condition Monitoring Report'!O30)","v":true},{"$f":"SELECT('Condition Monitoring Report'!P30)","v":true},null,6,435,28,205,18,null,"Molypden     (Molypdenum)",null,null,{"$f":"IF(ISBLANK(BV40)=(TRUE),FORMULA(\"\"),FORMULA(LEFT(BV40,8)))","v":true}]
[null,null,null,null,null,null,null,null,"Unkn.",null,null,"DCA 5070H",null,null,null,null,null,null,null,null,null,null,null,null,null,null,null,null,null,null,null,null,null,null,"L35MC","ZHENJI     (Zhenjiang Marine Diesel)",{"$f":"ECHO(FALSE)","v":true},null,"60",3,null,10,null,null,null,null,null,null,null,null,null,null,null,null,{"$f":"CLEAR()","v":true},{"$f":"CLEAR()","v":true},{"$f":"CLEAR()","v":true},{"$f":"CLEAR()","v":true},{"$f":"CLEAR()","v":true},{"$f":"CLEAR()","v":true},{"$f":"CLEAR()","v":true},{"$f":"CLEAR()","v":true},{"$f":"CLEAR()","v":true},{"$f":"CLEAR()","v":true},{"$f":"CLEAR()","v":true},{"$f":"CLEAR()","v":true},null,22,435,46,205,180,"PistonSkirt",3,null,null,{"$f":"SELECT(!$P$35)","v":true}]
[null,null,null,null,null,null,null,null,null,null,null,"Delek Delmar 50/70",null,null,null,null,null,null,null,null,null,null,null,null,null,null,"LockType",null,null,null,null,null,null,null,"L35MCE",null,{"$f":"DIALOG.BOX(DiaBoxLubType)","v":3},null,"65",3,null,10,null,null,null,null,null,null,null,null,null,null,null,null,{"$f":"SELECT('Condition Monitoring Report'!E31)","v":true},{"$f":"SELECT('Condition Monitoring Report'!F31)","v":true},{"$f":"SELECT('Condition Monitoring Report'!G31)","v":true},{"$f":"SELECT('Condition Monitoring Report'!H31)","v":true},{"$f":"SELECT('Condition Monitoring Report'!I31)","v":true},{"$f":"SELECT('Condition Monitoring Report'!J31)","v":true},{"$f":"SELECT('Condition Monitoring Report'!K31)","v":true},{"$f":"SELECT('Condition Monitoring Report'!L31)","v":true},{"$f":"SELECT('Condition Monitoring Report'!M31)","v":true},{"$f":"SELECT('Condition Monitoring Report'!N31)","v":true},{"$f":"SELECT('Condition Monitoring Report'!O31)","v":true},{"$f":"SELECT('Condition Monitoring Report'!P31)","v":true},null,6,647,28,205,18,null,"Bronze R     (Bronze Ring)",null,null,{"$f":"IF(ISBLANK(BV42)=(TRUE),FORMULA(\"\"),FORMULA(LEFT(BV42,8)))","v":true}]
[null,null,null,null,null,null,null,null,"LubPartLoadControl",null,null,"Delmar 540LE",null,null,null,null,null,null,null,null,null,null,null,null,null,null,{"$f":"ECHO(FALSE)","v":true},null,null,null,null,null,null,null,"L40ME-T9.2",null,{"$f":"SELECT(!$K$6)","v":true},null,"70",3,null,10,null,null,null,null,null,null,null,null,null,null,null,null,{"$f":"CLEAR()","v":true},{"$f":"CLEAR()","v":true},{"$f":"CLEAR()","v":true},{"$f":"CLEAR()","v":true},{"$f":"CLEAR()","v":true},{"$f":"CLEAR()","v":true},{"$f":"CLEAR()","v":true},{"$f":"CLEAR()","v":true},{"$f":"CLEAR()","v":true},{"$f":"CLEAR()","v":true},{"$f":"CLEAR()","v":true},{"$f":"CLEAR()","v":true},null,22,647,46,205,180,"PistonSkirt",1,null,null,{"$f":"RETURN()","v":true}]
[null,null,null,null,null,null,null,null,"MEP",null,null,"Diesel Cylinder Oil 9681R",null,null,null,null,null,null,null,null,null,null,null,null,null,null,{"$f":"DIALOG.BOX(DiaBoxLockType)","v":9},null,null,null,864,212,"LockType",null,"L40ME-T9.2-TII",null,{"$f":"IF((AK80)=FALSE,GOTO(AK84),GOTO(AK83))","v":true},null,"80",3,null,10,null,null,null,null,null,null,null,null,null,null,null,null,{"$f":"PROTECT.DOCUMENT(TRUE,,\"opera\",TRUE)","v":true},{"$f":"PROTECT.DOCUMENT(TRUE,,\"opera\",TRUE)","v":true},{"$f":"PROTECT.DOCUMENT(TRUE,,\"opera\",TRUE)","v":true},{"$f":"PROTECT.DOCUMENT(TRUE,,\"opera\",TRUE)","v":true},{"$f":"PROTECT.DOCUMENT(TRUE,,\"opera\",TRUE)","v":true},true,true,true,true,true,true,true,null,1,761,183,88,null,"OK"]
[null,null,null,null,null,null,null,null,"Load (Power)",null,null,"Dieselmex Marino SAE 50",null,null,null,null,null,null,null,null,null,null,null,null,null,null,{"$f":"SELECT(!$K$30)","v":true},6,10,28,205,18,null,"Oblique R","L42MC",null,{"$f":"IF(ISBLANK(AR36)=(TRUE),FORMULA(\"\"),FORMULA(AR36))","v":true},null,"90",3,null,10,null,null,null,null,null,null,null,null,null,null,null,null,{"$f":"RETURN()","v":true},{"$f":"RETURN()","v":true},{"$f":"RETURN()","v":true},{"$f":"RETURN()","v":true},{"$f":"RETURN()","v":true},{"$f":"RETURN()","v":true},{"$f":"RETURN()","v":true},{"$f":"RETURN()","v":true},{"$f":"RETURN()","v":true},{"$f":"RETURN()","v":true},{"$f":"RETURN()","v":true},{"$f":"RETURN()","v":true},null,2,663,183,88,null,"Cancel"]
[null,null,null,null,null,null,null,null,"RPM",null,null,"Elin CDO 70",null,null,null,null,null,null,null,null,null,null,null,null,null,null,{"$f":"IF((AA82)=FALSE,GOTO(AA92),GOTO(AA85))","v":true},22,10,46,205,144,"LockType",3,"L42MCE",null,{"$f":"RETURN()","v":true},null,"98",3,null,10,null,null,null,null,null,null,null,null,null,null,null,null,{"$f":"VLOOKUP(MID('Condition Monitoring Report'!$F$3,2,2),TypePOPvalues,2)","v":3},{"$f":"VLOOKUP(MID('Condition Monitoring Report'!$F$3,2,2),TypePOPvalues,2)","v":3},{"$f":"VLOOKUP(MID('Condition Monitoring Report'!$F$3,2,2),TypePOPvalues,2)","v":3},{"$f":"VLOOKUP(MID('Condition Monitoring Report'!$F$3,2,2),TypePOPvalues,2)","v":3},{"$f":"VLOOKUP(MID('Condition Monitoring Report'!$F$3,2,2),TypePOPvalues,2)","v":3},{"$f":"VLOOKUP(MID('Condition Monitoring Report'!$F$3,2,2),TypePOPvalues,2)","v":3},{"$f":"VLOOKUP(MID('Condition Monitoring Report'!$F$3,2,2),TypePOPvalues,2)","v":3},{"$f":"VLOOKUP(MID('Condition Monitoring Report'!$F$3,2,2),TypePOPvalues,2)","v":3},{"$f":"VLOOKUP(MID('Condition Monitoring Report'!$F$3,2,2),TypePOPvalues,2)","v":3},{"$f":"VLOOKUP(MID('Condition Monitoring Report'!$F$3,2,2),TypePOPvalues,2)","v":3},{"$f":"VLOOKUP(MID('Condition Monitoring Report'!$F$3,2,2),TypePOPvalues,2)","v":3},{"$f":"VLOOKUP(MID('Condition Monitoring Report'!$F$3,2,2),TypePOPvalues,2)","v":3},null,5,10,13,null,null,"Skirt 7"]
[null,null,null,null,null,null,null,null,null,null,null,"EMO Neptune 40 SAE 50",null,null,null,null,null,null,null,null,null,null,null,null,null,null,{"$f":"IF(ISBLANK(AH83)=(TRUE),FORMULA(\"\"),FORMULA(AH83))","v":true},6,222,28,205,18,null,"Oblique R","L50MC",null,null,null,null,null,null,null,null,null,null,null,null,null,null,null,null,null,null,null,{"$f":"SELECT('Condition Monitoring Report'!E30)","v":true},{"$f":"SELECT('Condition Monitoring Report'!F30)","v":true},{"$f":"SELECT('Condition Monitoring Report'!G30)","v":true},{"$f":"SELECT('Condition Monitoring Report'!H30)","v":true},{"$f":"SELECT('Condition Monitoring Report'!I30)","v":true},{"$f":"SELECT('Condition Monitoring Report'!J30)","v":true},{"$f":"SELECT('Condition Monitoring Report'!K30)","v":true},{"$f":"SELECT('Condition Monitoring Report'!L30)","v":true},{"$f":"SELECT('Condition Monitoring Report'!M30)","v":true},{"$f":"SELECT('Condition Monitoring Report'!N30)","v":true},{"$f":"SELECT('Condition Monitoring Report'!O30)","v":true},{"$f":"SELECT('Condition Monitoring Report'!P30)","v":true},null,5,223,13,null,null,"Skirt 8"]
[null,null,null,null,null,null,null,null,"LubType",null,null,"EMO Neptune 70 SAE 50",null,null,null,null,null,null,null,null,null,null,null,null,null,null,{"$f":"SELECT(!$K$31)","v":true},22,222,46,205,162,"LockType",3,"L50MCE",null,"ACCfactor(Condition Monitoring Report)",null,"OBS: Engine ","bore to be entered as","text (with a gnyf (')) in ","order for AK87 to work",null,null,null,null,null,null,null,null,null,null,null,null,{"$f":"FORMULA(BC84)","v":true},{"$f":"FORMULA(BD84)","v":true},{"$f":"FORMULA(BE84)","v":true},{"$f":"FORMULA(BF84)","v":true},{"$f":"FORMULA(BG84)","v":true},{"$f":"FORMULA(BH84)","v":true},{"$f":"FORMULA(BI84)","v":true},{"$f":"FORMULA(BJ84)","v":true},{"$f":"FORMULA(BK84)","v":true},{"$f":"FORMULA(BL84)","v":true},{"$f":"FORMULA(BM84)","v":true},{"$f":"FORMULA(BN84)","v":true},null,5,435,13,null,null,"Skirt 9"]
[null,null,null,null,null,null,null,null,"Alpha",null,null,"Energol CL 100 ACC",null,null,null,null,null,null,null,null,null,null,null,null,null,null,{"$f":"IF(ISBLANK(AH85)=(TRUE),FORMULA(\"\"),FORMULA(AH85))","v":true},6,435,28,205,18,null,"Oblique R","L60MC",null,{"$f":"ECHO(FALSE)","v":true},null,"Engine","CL Nominal depth","CL Nominal depth","CL Minimum depth",null,null,null,null,null,null,null,null,null,null,null,null,{"$f":"VLOOKUP(MID('Condition Monitoring Report'!$F$3,2,2),TypePOPvalues,4)","v":10},{"$f":"VLOOKUP(MID('Condition Monitoring Report'!$F$3,2,2),TypePOPvalues,4)","v":10},{"$f":"VLOOKUP(MID('Condition Monitoring Report'!$F$3,2,2),TypePOPvalues,4)","v":9},{"$f":"VLOOKUP(MID('Condition Monitoring Report'!$F$3,2,2),TypePOPvalues,4)","v":9},{"$f":"VLOOKUP(MID('Condition Monitoring Report'!$F$3,2,2),TypePOPvalues,4)","v":10},{"$f":"VLOOKUP(MID('Condition Monitoring Report'!$F$3,2,2),TypePOPvalues,4)","v":10},{"$f":"VLOOKUP(MID('Condition Monitoring Report'!$F$3,2,2),TypePOPvalues,4)","v":10},{"$f":"VLOOKUP(MID('Condition Monitoring Report'!$F$3,2,2),TypePOPvalues,4)","v":9},{"$f":"VLOOKUP(MID('Condition Monitoring Report'!$F$3,2,2),TypePOPvalues,4)","v":10},{"$f":"VLOOKUP(MID('Condition Monitoring Report'!$F$3,2,2),TypePOPvalues,4)","v":9},{"$f":"VLOOKUP(MID('Condition Monitoring Report'!$F$3,2,2),TypePOPvalues,4)","v":10},{"$f":"VLOOKUP(MID('Condition Monitoring Report'!$F$3,2,2),TypePOPvalues,4)","v":9},null,5,647,13,null,null,"Skirt 10"]
[null,null,null,null,null,null,null,null,"Alpha ACC",null,null,"Energol CL 805",null,null,null,null,null,null,null,null,null,null,null,null,null,null,{"$f":"SELECT(!$K$32)","v":true},22,435,46,205,162,"LockType",3,"L60MC-C",null,{"$f":"DIALOG.BOX(DiaBoxACCfactor)","v":false},null,"bore","Non-hard coat","Hard coat",null,null,null,null,null,null,null,null,null,null,null,null,null,{"$f":"SELECT('Condition Monitoring Report'!E31)","v":true},{"$f":"SELECT('Condition Monitoring Report'!F31)","v":true},{"$f":"SELECT('Condition Monitoring Report'!G31)","v":true},{"$f":"SELECT('Condition Monitoring Report'!H31)","v":true},{"$f":"SELECT('Condition Monitoring Report'!I31)","v":true},{"$f":"SELECT('Condition Monitoring Report'!J31)","v":true},{"$f":"SELECT('Condition Monitoring Report'!K31)","v":true},{"$f":"SELECT('Condition Monitoring Report'!L31)","v":true},{"$f":"SELECT('Condition Monitoring Report'!M31)","v":true},{"$f":"SELECT('Condition Monitoring Report'!N31)","v":true},{"$f":"SELECT('Condition Monitoring Report'!O31)","v":true},{"$f":"SELECT('Condition Monitoring Report'!P31)","v":true},null,6,859,28,205,18,null,"Molypden     (Molypdenum)"]
[null,null,null,null,null,null,null,null,"Alpha Sip",null,null,"Energol CL DX 405",null,null,null,null,null,null,null,null,null,null,null,null,null,null,{"$f":"IF(ISBLANK(AH87)=(TRUE),FORMULA(\"\"),FORMULA(AH87))","v":true},6,647,28,205,18,null,"Oblique R","L60MCE",null,{"$f":"SELECT(!$N$6)","v":true},null,"10","UNKN",null,"UNKN",null,null,null,null,null,null,null,null,null,null,null,null,{"$f":"FORMULA(BC87)","v":true},{"$f":"FORMULA(BD87)","v":true},{"$f":"FORMULA(BE87)","v":true},{"$f":"FORMULA(BF87)","v":true},{"$f":"FORMULA(BG87)","v":true},{"$f":"FORMULA(BH87)","v":true},{"$f":"FORMULA(BI87)","v":true},{"$f":"FORMULA(BJ87)","v":true},{"$f":"FORMULA(BK87)","v":true},{"$f":"FORMULA(BL87)","v":true},{"$f":"FORMULA(BM87)","v":true},{"$f":"FORMULA(BN87)","v":true},null,22,859,46,205,198,"PistonSkirt",3]
[null,null,null,null,null,null,null,null,"Beta Lub.","CoatingLoweSide",null,"Energol CLO 505M",null,null,null,null,null,null,null,null,null,null,null,null,null,null,{"$f":"SELECT(!$K$33)","v":true},22,647,46,205,162,"LockType",3,"L60ME-C",null,{"$f":"IF((AK88)=FALSE,GOTO(AK92),GOTO(AK91))","v":true},null,"26",2,null,0.6,null,null,null,null,null,null,null,null,null,null,null,null,{"$f":"SELECT(!$F$3)","v":true},{"$f":"SELECT(!$F$3)","v":true},{"$f":"SELECT(!$F$3)","v":true},{"$f":"SELECT(!$F$3)","v":true},{"$f":"SELECT(!$F$3)","v":true},{"$f":"SELECT(!$F$3)","v":true},{"$f":"SELECT(!$F$3)","v":true},{"$f":"SELECT(!$F$3)","v":true},{"$f":"SELECT(!$F$3)","v":true},{"$f":"SELECT(!$F$3)","v":true},{"$f":"SELECT(!$F$3)","v":true},{"$f":"SELECT(!$F$3)","v":true},null,6,1071,28,205,18,null,"Cast Iron    (Cast Iron)"]
[null,null,null,null,null,null,null,null,"H.J. Lubtronic","Chrome",null,"Energol CLO 50M",null,null,null,null,null,null,null,null,null,null,null,null,null,null,{"$f":"IF(ISBLANK(AH89)=(TRUE),FORMULA(\"\"),FORMULA(AH89))","v":true},1,764,183,88,null,"OK",null,"L60ME-C7","JCWsystem (bypass)",{"$f":"IF(ISBLANK($AR$130)=(TRUE),FORMULA(\"\"),FORMULA($AR$130))","v":true},null,"35",2.5,null,0.8,null,null,null,null,null,null,null,null,null,null,null,null,{"$f":"PROTECT.DOCUMENT(TRUE,,\"opera\",TRUE)","v":true},{"$f":"PROTECT.DOCUMENT(TRUE,,\"opera\",TRUE)","v":true},{"$f":"PROTECT.DOCUMENT(TRUE,,\"opera\",TRUE)","v":true},{"$f":"PROTECT.DOCUMENT(TRUE,,\"opera\",TRUE)","v":true},{"$f":"PROTECT.DOCUMENT(TRUE,,\"opera\",TRUE)","v":true},true,true,true,true,true,true,true,null,22,1071,46,205,198,"PistonSkirt",2]
[null,null,null,null,null,null,null,null,"H.J. Sip","None",null,"ENOC STRATA CYL 570",null,null,null,null,null,null,null,null,null,null,null,null,null,null,{"$f":"RETURN()","v":true},2,666,183,88,null,"Cancel",null,"L60ME-C8","Constant bypass",{"$f":"RETURN()","v":true},null,"40",2.5,null,0.8,null,null,null,null,null,null,null,null,null,null,null,null,{"$f":"RETURN()","v":true},{"$f":"RETURN()","v":true},{"$f":"RETURN()","v":true},{"$f":"RETURN()","v":true},{"$f":"RETURN()","v":true},{"$f":"RETURN()","v":true},{"$f":"RETURN()","v":true},{"$f":"RETURN()","v":true},{"$f":"RETURN()","v":true},{"$f":"RETURN()","v":true},{"$f":"RETURN()","v":true},{"$f":"RETURN()","v":true},null,5,859,13,null,null,"Skirt 11"]
[null,null,null,null,null,null,null,null,"Mechanical (H.J.)","Test",null,"Feocyl 57",null,null,null,null,null,null,null,null,null,null,null,null,null,null,null,5,10,13,null,null,"Ring 1",null,"L60ME-C8.2","Load dependent bypass",null,null,"42",2.5,null,0.9,null,null,null,null,null,null,null,null,null,null,null,null,null,null,null,null,null,null,null,null,null,null,null,null,null,5,1071,13,null,null,"Skirt 12"]
[null,null,null,null,null,null,null,null,"Mechanical (MEP)","Unkn.",null,"GMAR CLO70",null,null,null,null,null,null,null,null,null,null,null,null,null,null,null,5,223,13,null,null,"Ring 2",null,"L70MC","No",null,null,"46",2.5,null,1]
[null,null,null,null,null,null,null,null,"Mechanical (Power)",null,null,"GulfSea Cylcare 50100",null,null,null,null,null,null,null,null,null,null,null,null,null,null,null,5,435,13,null,null,"Ring 3",null,"L70MC-C",null,null,null,"50",3,null,1.1000000000000001]
[null,null,null,null,null,null,null,null,"Other","RingType",null,"GulfSea Cylcare DCA 5040H",null,null,null,null,null,null,null,null,null,null,null,null,null,null,null,5,647,13,null,null,"Ring 4",null,"L70MCE",null,"MeasTool",null,"60",3.5,null,1.3,null,null,null,null,null,null,null,null,null,null,null,null,null,null,null,null,null,null,null,null,null,null,null,null,null,"DiaBoxCrownType1to6"]
[null,null,null,null,null,null,null,null,"Unkn.","High",null,"GulfSea Cylcare DCA 5070HS",null,null,null,null,null,null,null,null,null,null,null,null,null,null,null,null,null,null,null,null,null,null,"L70MC-P",null,{"$f":"ECHO(FALSE)","v":true},null,"65",3.5,null,1.4,null,null,null,null,null,null,null,null,null,null,null,null,null,null,null,null,null,null,null,null,null,null,null,null,null,null,null,null,1288,212,"Crown Type Cylinder 1 to 6"]
[null,null,null,null,null,null,null,null,null,"Low",null,"GulfSea Cylcare EHP 5055",null,null,null,null,null,null,null,null,null,null,null,null,null,null,null,null,null,null,null,null,null,null,"L70ME-C",null,{"$f":"DIALOG.BOX(DiaBoxMeasTool)","v":3},null,"70",3.5,null,1.6,null,null,null,null,null,null,null,null,null,null,null,null,"CL nominal+min dimension (2nd, unit 1)","CL nominal+min dimension (2nd, unit 2)","CL nominal+min dimension (2nd, unit 3)","CL nominal+min dimension (2nd, unit 4)","CL nominal+min dimension (2nd, unit 5)","CL nominal+min dimension (2nd, unit 6)","CL nominal+min dimension (2nd, unit 7)","CL nominal+min dimension (2nd, unit 8)","CL nominal+min dimension (2nd, unit 9)","CL nominal+min dimension (2nd, unit 10)","CL nominal+min dimension (2nd, unit 11)","CL nominal+min dimension (2nd, unit 12)",null,6,10,28,205,18,null,"HTL Pot Piston  (High Top Land)"]
[null,null,null,null,null,null,null,null,"ShipPosition",null,null,"GulfSea Cylcare EHP5070",null,null,null,null,null,null,null,null,null,null,null,null,null,null,null,null,null,null,null,null,null,null,"L70ME-C7","LubQuillPosition",{"$f":"SELECT(!$H$13)","v":true},null,"80",4,null,1.8,null,null,null,null,null,null,null,null,null,null,null,null,{"$f":"ECHO(FALSE)","v":true},{"$f":"ECHO(FALSE)","v":true},{"$f":"ECHO(FALSE)","v":true},true,true,true,true,true,true,true,true,true,null,22,10,46,205,162,"CrownType",2]
[null,null,null,null,null,null,null,null,"Arabian Gulf",null,null,"GulfSea Cylcare EHP-II 5070",null,null,null,null,null,null,null,null,null,null,null,null,null,null,null,null,null,null,null,null,null,null,"L70ME-C8","1/3 stroke",{"$f":"IF((AK98)=FALSE,GOTO(AK102),GOTO(AK101))","v":true},null,"90",5,4,2,null,null,null,null,null,null,null,null,null,null,null,null,{"$f":"PROTECT.DOCUMENT(FALSE,,\"opera\",FALSE)","v":true},{"$f":"PROTECT.DOCUMENT(FALSE,,\"opera\",FALSE)","v":true},{"$f":"PROTECT.DOCUMENT(FALSE,,\"opera\",FALSE)","v":true},true,true,true,true,true,true,true,true,true,null,6,222,28,205,18,null,"HTL Oros            (High Top Land)"]
[null,null,null,null,null,null,null,null,"Arabian Sea",null,null,"HL Universal cyl 7050",null,null,null,null,null,null,null,null,null,null,null,null,null,null,null,null,null,null,null,null,null,null,"L70ME-C8.1-TII","1/8 stroke",{"$f":"IF(ISBLANK(AR144)=(TRUE),FORMULA(\"\"),FORMULA(LEFT(AR144,3)))","v":true},null,"98",5.5,4.5,2.2000000000000002,null,null,null,null,null,null,null,null,null,null,null,null,{"$f":"SELECT('Condition Monitoring Report'!E41:E42)","v":true},{"$f":"SELECT('Condition Monitoring Report'!F41:F42)","v":true},{"$f":"SELECT('Condition Monitoring Report'!G41:G42)","v":true},{"$f":"SELECT('Condition Monitoring Report'!H41:H42)","v":true},{"$f":"SELECT('Condition Monitoring Report'!I41:I42)","v":true},{"$f":"SELECT('Condition Monitoring Report'!J41:J42)","v":true},{"$f":"SELECT('Condition Monitoring Report'!K41:K42)","v":true},{"$f":"SELECT('Condition Monitoring Report'!L41:L42)","v":true},{"$f":"SELECT('Condition Monitoring Report'!M41:M42)","v":true},{"$f":"SELECT('Condition Monitoring Report'!N41:N42)","v":true},{"$f":"SELECT('Condition Monitoring Report'!O41:O42)","v":true},{"$f":"SELECT('Condition Monitoring Report'!P41:P42)","v":true},null,22,222,46,205,180,"CrownType",1]
[null,null,null,null,null,null,null,null,"Baltic Sea","MeasTool",null,"Jia Run",null,null,null,null,null,null,null,null,null,null,null,null,null,null,null,null,null,null,1078,212,"Type (High/Low)",null,"L70ME-C8.2","Frame position",{"$f":"RETURN()","v":true},null,"Obs: Eng. bore",null,null,null,null,null,null,null,null,null,null,null,null,null,null,null,{"$f":"CLEAR()","v":true},{"$f":"CLEAR()","v":true},{"$f":"CLEAR()","v":true},{"$f":"CLEAR()","v":true},{"$f":"CLEAR()","v":true},{"$f":"CLEAR()","v":true},{"$f":"CLEAR()","v":true},{"$f":"CLEAR()","v":true},{"$f":"CLEAR()","v":true},{"$f":"CLEAR()","v":true},{"$f":"CLEAR()","v":true},{"$f":"CLEAR()","v":true},null,6,435,28,205,18,null,"LTL Pot Piston   (High Top Land)"]
[null,null,null,null,null,null,null,null,"Carribean","LDM     (Liner Diameter Measuring)",null,"MAK Marine C507",null,null,null,null,null,null,null,null,null,null,null,null,null,null,null,6,10,28,205,18,null,"Unkn.","L70ME-C8.2-GI-T2",null,null,null,"10 = 108 (2 digits",null,null,null,null,null,null,null,null,null,null,null,null,null,null,null,{"$f":"SELECT('Condition Monitoring Report'!Q34)","v":true},{"$f":"SELECT('Condition Monitoring Report'!R34)","v":true},{"$f":"SELECT('Condition Monitoring Report'!S34)","v":true},{"$f":"SELECT('Condition Monitoring Report'!T34)","v":true},{"$f":"SELECT('Condition Monitoring Report'!U34)","v":true},{"$f":"SELECT('Condition Monitoring Report'!V34)","v":true},{"$f":"SELECT('Condition Monitoring Report'!W34)","v":true},{"$f":"SELECT('Condition Monitoring Report'!X34)","v":true},{"$f":"SELECT('Condition Monitoring Report'!Y34)","v":true},{"$f":"SELECT('Condition Monitoring Report'!Z34)","v":true},{"$f":"SELECT('Condition Monitoring Report'!AA34)","v":true},{"$f":"SELECT('Condition Monitoring Report'!AB34)","v":true},null,22,435,46,205,180,"CrownType",4]
[null,null,null,null,null,null,null,null,"Central Africa","MM     (Micro Meter)",null,"Marbrax CID 54",null,null,null,null,null,null,null,null,null,null,null,null,null,null,null,22,10,46,205,126,"Type",3,"L70ME-C8.2-GI-TII",null,null,null,"needed for ",null,null,null,null,null,null,null,null,null,null,null,null,null,null,null,{"$f":"CLEAR()","v":true},{"$f":"CLEAR()","v":true},{"$f":"CLEAR()","v":true},{"$f":"CLEAR()","v":true},{"$f":"CLEAR()","v":true},{"$f":"CLEAR()","v":true},{"$f":"CLEAR()","v":true},{"$f":"CLEAR()","v":true},{"$f":"CLEAR()","v":true},{"$f":"CLEAR()","v":true},{"$f":"CLEAR()","v":true},{"$f":"CLEAR()","v":true},null,6,647,28,205,18,null,"HTL Pot Piston  (High Top Land)"]
[null,null,null,null,null,null,null,null,"China Sea","VAK     (Viggo Kjær)",null,"Marbrax CID 54-AP",null,null,null,null,null,null,null,null,null,null,null,null,null,null,null,6,222,28,205,18,null,"Low","L70ME-C8.2-TII",null,null,null,"VLOOKUP",null,null,null,null,null,null,null,null,null,null,null,null,null,null,null,{"$f":"IF(ISBLANK('Condition Monitoring Report'!$F$3)=(TRUE),ALERT(\"Make an engine selection first\"),GOTO(Makcyl!BC113))","v":true},{"$f":"IF(ISBLANK('Condition Monitoring Report'!$F$3)=(TRUE),ALERT(\"Make an engine selection first\"),GOTO(Makcyl!BD113))","v":true},{"$f":"IF(ISBLANK('Condition Monitoring Report'!$F$3)=(TRUE),ALERT(\"Make an engine selection first\"),GOTO(Makcyl!BE113))","v":true},{"$f":"IF(ISBLANK('Condition Monitoring Report'!$F$3)=(TRUE),ALERT(\"Make an engine selection first\"),GOTO(Makcyl!BF113))","v":true},{"$f":"IF(ISBLANK('Condition Monitoring Report'!$F$3)=(TRUE),ALERT(\"Make an engine selection first\"),GOTO(Makcyl!BG113))","v":true},{"$f":"IF(ISBLANK('Condition Monitoring Report'!$F$3)=(TRUE),ALERT(\"Make an engine selection first\"),GOTO(Makcyl!BH113))","v":true},{"$f":"IF(ISBLANK('Condition Monitoring Report'!$F$3)=(TRUE),ALERT(\"Make an engine selection first\"),GOTO(Makcyl!BI113))","v":true},{"$f":"IF(ISBLANK('Condition Monitoring Report'!$F$3)=(TRUE),ALERT(\"Make an engine selection first\"),GOTO(Makcyl!BJ113))","v":true},{"$f":"IF(ISBLANK('Condition Monitoring Report'!$F$3)=(TRUE),ALERT(\"Make an engine selection first\"),GOTO(Makcyl!BK113))","v":true},{"$f":"IF(ISBLANK('Condition Monitoring Report'!$F$3)=(TRUE),ALERT(\"Make an engine selection first\"),GOTO(Makcyl!BL113))","v":true},{"$f":"IF(ISBLANK('Condition Monitoring Report'!$F$3)=(TRUE),ALERT(\"Make an engine selection first\"),GOTO(Makcyl!BM113))","v":true},{"$f":"IF(ISBLANK('Condition Monitoring Report'!$F$3)=(TRUE),ALERT(\"Make an engine selection first\"),GOTO(Makcyl!BN113))","v":true},null,22,647,46,205,180,"CrownType",2]
[null,null,null,null,null,null,null,null,"Gulf of Mexico",null,null,"Marbrax CID 55",null,null,null,null,null,null,null,null,null,null,null,null,null,null,null,22,222,46,205,144,"Type",2,"L80MC",null,null,null,null,null,null,null,null,null,null,null,null,null,null,null,null,null,null,null,{"$f":"SELECT('Condition Monitoring Report'!Q33)","v":false},{"$f":"SELECT('Condition Monitoring Report'!R33)","v":true},{"$f":"SELECT('Condition Monitoring Report'!S33)","v":true},{"$f":"SELECT('Condition Monitoring Report'!T33)","v":true},{"$f":"SELECT('Condition Monitoring Report'!U33)","v":false},{"$f":"SELECT('Condition Monitoring Report'!V33)","v":false},{"$f":"SELECT('Condition Monitoring Report'!W33)","v":false},{"$f":"SELECT('Condition Monitoring Report'!X33)","v":true},{"$f":"SELECT('Condition Monitoring Report'!Y33)","v":true},{"$f":"SELECT('Condition Monitoring Report'!Z33)","v":false},{"$f":"SELECT('Condition Monitoring Report'!AA33)","v":false},{"$f":"SELECT('Condition Monitoring Report'!AB33)","v":true},null,1,761,183,88,null,"OK"]
[null,null,null,null,null,null,null,null,"Indonesia",null,null,"Marbrax CID 57",null,null,null,null,null,null,null,null,null,null,null,null,null,null,null,6,435,28,205,18,null,"Low","L80MCE",null,null,null,null,null,null,null,null,null,null,null,null,null,null,null,null,null,null,null,{"$f":"CLEAR()","v":true},{"$f":"CLEAR()","v":true},{"$f":"CLEAR()","v":true},{"$f":"CLEAR()","v":true},{"$f":"CLEAR()","v":true},{"$f":"CLEAR()","v":true},{"$f":"CLEAR()","v":true},{"$f":"CLEAR()","v":true},{"$f":"CLEAR()","v":true},{"$f":"CLEAR()","v":true},{"$f":"CLEAR()","v":true},{"$f":"CLEAR()","v":true},null,2,663,183,88,null,"Cancel"]
[null,null,null,null,null,null,null,null,"Japanese Sea",null,null,"Marilube oil CO700 plus",null,null,null,null,null,null,null,null,null,null,null,null,null,null,null,22,435,46,205,144,"Type",2,"L80ME",null,null,null,null,null,null,null,null,null,null,null,null,null,null,null,null,null,null,null,{"$f":"FORMULA.GOTO('Condition Monitoring Report'!$F$3)","v":true},{"$f":"FORMULA.GOTO('Condition Monitoring Report'!$F$3)","v":true},{"$f":"FORMULA.GOTO('Condition Monitoring Report'!$F$3)","v":true},{"$f":"FORMULA.GOTO('Condition Monitoring Report'!$F$3)","v":true},{"$f":"FORMULA.GOTO('Condition Monitoring Report'!$F$3)","v":true},{"$f":"FORMULA.GOTO('Condition Monitoring Report'!$F$3)","v":true},{"$f":"FORMULA.GOTO('Condition Monitoring Report'!$F$3)","v":true},{"$f":"FORMULA.GOTO('Condition Monitoring Report'!$F$3)","v":true},{"$f":"FORMULA.GOTO('Condition Monitoring Report'!$F$3)","v":true},{"$f":"FORMULA.GOTO('Condition Monitoring Report'!$F$3)","v":true},{"$f":"FORMULA.GOTO('Condition Monitoring Report'!$F$3)","v":true},{"$f":"FORMULA.GOTO('Condition Monitoring Report'!$F$3)","v":true},null,5,10,13,null,null,"Crown 1"]
[null,null,null,null,null,null,null,null,"L.A.",null,null,"Marine C1005",null,null,null,null,null,null,null,null,null,null,null,null,null,null,null,6,647,28,205,18,null,"Low","L90MC",null,null,null,null,null,null,null,null,null,null,null,null,null,null,null,null,null,null,null,{"$f":"VSCROLL(1,TRUE)","v":true},{"$f":"VSCROLL(1,TRUE)","v":true},{"$f":"VSCROLL(1,TRUE)","v":true},true,true,true,true,true,true,true,true,true,null,5,223,13,null,null,"Crown 2"]
[null,null,null,null,null,null,null,null,"Malacca",null,null,"Marine C405",null,null,null,null,null,null,null,null,null,null,null,null,null,null,null,22,647,46,205,144,"Type",2,"L90MC-C",null,null,null,null,null,null,null,null,null,null,null,null,null,null,null,null,null,null,null,{"$f":"HSCROLL(1,TRUE)","v":true},{"$f":"HSCROLL(1,TRUE)","v":true},{"$f":"HSCROLL(1,TRUE)","v":true},true,true,true,true,true,true,true,true,true,null,5,435,13,null,null,"Crown 3"]
[null,null,null,null,null,null,null,null,"Mediterranean Sea",null,null,"Marine C705",null,null,null,null,null,null,null,null,null,null,null,null,null,null,null,6,860,28,205,18,null,null,"L90MCE",null,null,null,null,null,null,null,null,null,null,null,null,null,null,null,null,null,null,null,{"$f":"PROTECT.DOCUMENT(TRUE,,\"opera\",TRUE)","v":true},{"$f":"PROTECT.DOCUMENT(TRUE,,\"opera\",TRUE)","v":true},{"$f":"PROTECT.DOCUMENT(TRUE,,\"opera\",TRUE)","v":true},true,true,true,true,true,true,true,true,true,null,5,647,13,null,null,"Crown 4"]
[null,null,null,null,null,null,null,null,"North Atlantic",null,null,"Marine Cylinder Oil 5040",null,null,null,null,null,null,null,null,null,null,null,null,null,null,null,22,860,46,205,144,"Type",{"$error":"#N/A"},"L90ME-C",null,null,null,null,null,null,null,null,null,null,null,null,null,null,null,null,null,null,null,{"$f":"RETURN()","v":true},{"$f":"RETURN()","v":true},{"$f":"RETURN()","v":true},{"$f":"RETURN()","v":true},{"$f":"RETURN()","v":true},{"$f":"RETURN()","v":true},{"$f":"RETURN()","v":true},{"$f":"RETURN()","v":true},{"$f":"RETURN()","v":true},{"$f":"RETURN()","v":true},{"$f":"RETURN()","v":true},{"$f":"RETURN()","v":true},null,6,859,28,205,18,null,"HTL Valley         (High Top Land)"]
[null,null,null,null,null,null,null,null,"North America","CrownType",null,"Marine Cylinder Oil 5055",null,null,null,null,null,null,null,null,null,null,null,null,null,null,null,1,960,183,88,null,"OK",null,"L90ME-C7","EngineType(Condition Monitoring Report)","EngineBuilder(Insp. through Scav. Port)",null,null,null,null,null,null,null,null,null,null,null,null,null,null,null,null,null,{"$f":"ACTIVATE(\"Makcyl\")","v":true},{"$f":"ACTIVATE(\"Makcyl\")","v":true},{"$f":"ACTIVATE(\"Makcyl\")","v":true},true,true,true,true,true,true,true,true,true,null,22,859,46,205,198,"CrownType",3]
[null,null,null,null,null,null,null,null,"North Pacific","HTL Oros            (High Top Land)",null,"Marine Cylinder Oil 5070E",null,null,null,null,null,null,null,null,null,null,null,null,null,null,null,2,862,183,88,null,"Cancel",null,"S26MC",{"$f":"ECHO(FALSE)","v":true},{"$f":"ECHO(FALSE)","v":true},null,null,null,null,null,null,null,null,null,null,null,null,null,null,null,null,null,{"$f":"SELECT(\"R153C44;R154C44\")","v":true},{"$f":"SELECT(\"R153C44;R154C44\")","v":true},{"$f":"SELECT(\"R153C44;R154C44\")","v":true},true,true,true,true,true,true,true,true,true,null,6,1071,28,205,18,null,"LTL Pot Piston   (High Top Land)"]
[null,null,null,null,null,null,null,null,"North Sea","HTL Pot Piston  (High Top Land)",null,"Marine Cylinder Oil 5070S",null,null,null,null,null,null,null,null,null,null,null,null,null,null,null,5,10,13,null,null,"Ring 1",null,"S26MCE",{"$f":"PROTECT.DOCUMENT(FALSE,,\"opera\",FALSE)","v":true},{"$f":"DIALOG.BOX(DiaBoxEngineBuilder)","v":3},null,null,null,228,180,"Piston Skirt",null,null,null,null,null,null,null,null,null,null,null,{"$f":"CLEAR(3)","v":true},{"$f":"CLEAR(3)","v":true},{"$f":"CLEAR(3)","v":true},true,true,true,true,true,true,true,true,true,null,22,1071,46,205,198,"CrownType",4]
[null,null,null,null,null,null,null,null,"Panama","HTL Valley         (High Top Land)",null,"MECO 5070",null,null,null,null,null,null,null,null,null,null,null,null,null,null,null,5,223,13,null,null,"Ring 2",null,"S30ME-B9.3",{"$f":"SELECT('Condition Monitoring Report'!$E$30:$P$31)","v":true},{"$f":"SELECT(!$O$2)","v":true},6,10,6,205,18,null,"Molypden     (Molypdenum)",null,null,null,null,null,null,null,null,null,null,{"$f":"ACTIVATE(\"Condition Monitoring Report\")","v":true},{"$f":"ACTIVATE(\"Condition Monitoring Report\")","v":true},{"$f":"ACTIVATE(\"Condition Monitoring Report\")","v":true},true,true,true,true,true,true,true,true,true,null,5,859,13,null,null,"Crown 5"]
[null,null,null,null,null,null,null,null,"Red Sea","LTL Pot Piston   (High Top Land)",null,"Medripal 570",null,null,null,null,null,null,null,null,null,null,null,null,null,null,null,5,435,13,null,null,"Ring 3",null,"S30ME-B9.3-TII",{"$f":"CLEAR()","v":true},{"$f":"IF((AK115)=FALSE,GOTO(AK119),GOTO(AK118))","v":true},22,10,24,205,126,"PistonSkirt",3,null,null,null,null,null,null,null,null,null,null,"Special: engine type 90-98 coating","Special: engine type 90-98 coating","Special: engine type 90-98 coating","Special: engine type 90-98 coating","Special: engine type 90-98 coating","Special: engine type 90-98 coating","Special: engine type 90-98 coating","Special: engine type 90-98 coating","Special: engine type 90-98 coating","Special: engine type 90-98 coating","Special: engine type 90-98 coating","Special: engine type 90-98 coating",null,5,1071,13,null,null,"Crown 6"]
[null,null,null,null,null,null,null,null,"South Atlantic","SHTL Oros         (Semi High Top Land)",null,"Misr Nautica CA",null,null,null,null,null,null,null,null,null,null,null,null,null,null,null,5,647,13,null,null,"Ring 4",null,"S30ME-B9.5-TII",{"$f":"SELECT('Condition Monitoring Report'!$Q$22:$AB$23)","v":true},{"$f":"IF(ISBLANK(AR3)=(TRUE),FORMULA(\"\"),FORMULA(LEFT(AR3,6)))","v":true},1,133,151,88,null,"OK",null,null,null,null,null,null,null,null,null,null,null,{"$f":"IF(OR(MID('Condition Monitoring Report'!$F$3,2,2)=\"90\",MID('Condition Monitoring Report'!$F$3,2,2)=\"98\"),GOTO(BC119),GOTO(BC136))","v":true},{"$f":"IF(OR(MID('Condition Monitoring Report'!$F$3,2,2)=\"90\",MID('Condition Monitoring Report'!$F$3,2,2)=\"98\"),GOTO(BD119),GOTO(BD136))","v":true},{"$f":"IF(OR(MID('Condition Monitoring Report'!$F$3,2,2)=\"90\",MID('Condition Monitoring Report'!$F$3,2,2)=\"98\"),GOTO(BE119),GOTO(BE136))","v":true},{"$f":"IF(OR(MID('Condition Monitoring Report'!$F$3,2,2)=\"90\",MID('Condition Monitoring Report'!$F$3,2,2)=\"98\"),GOTO(BF119),GOTO(BF136))","v":true},{"$f":"IF(OR(MID('Condition Monitoring Report'!$F$3,2,2)=\"90\",MID('Condition Monitoring Report'!$F$3,2,2)=\"98\"),GOTO(BG119),GOTO(BG136))","v":true},{"$f":"IF(OR(MID('Condition Monitoring Report'!$F$3,2,2)=\"90\",MID('Condition Monitoring Report'!$F$3,2,2)=\"98\"),GOTO(BH119),GOTO(BH136))","v":true},{"$f":"IF(OR(MID('Condition Monitoring Report'!$F$3,2,2)=\"90\",MID('Condition Monitoring Report'!$F$3,2,2)=\"98\"),GOTO(BI119),GOTO(BI136))","v":true},{"$f":"IF(OR(MID('Condition Monitoring Report'!$F$3,2,2)=\"90\",MID('Condition Monitoring Report'!$F$3,2,2)=\"98\"),GOTO(BJ119),GOTO(BJ136))","v":true},{"$f":"IF(OR(MID('Condition Monitoring Report'!$F$3,2,2)=\"90\",MID('Condition Monitoring Report'!$F$3,2,2)=\"98\"),GOTO(BK119),GOTO(BK136))","v":true},{"$f":"IF(OR(MID('Condition Monitoring Report'!$F$3,2,2)=\"90\",MID('Condition Monitoring Report'!$F$3,2,2)=\"98\"),GOTO(BL119),GOTO(BL136))","v":true},{"$f":"IF(OR(MID('Condition Monitoring Report'!$F$3,2,2)=\"90\",MID('Condition Monitoring Report'!$F$3,2,2)=\"98\"),GOTO(BM119),GOTO(BM136))","v":true},{"$f":"IF(OR(MID('Condition Monitoring Report'!$F$3,2,2)=\"90\",MID('Condition Monitoring Report'!$F$3,2,2)=\"98\"),GOTO(BN119),GOTO(BN136))","v":true}]
[null,null,null,null,null,null,null,null,"South Indian Ocean",null,null,"Mobilgard 300",null,null,null,null,null,null,null,null,null,null,null,null,null,null,null,5,860,13,null,null,"Ring 5",null,"S35MC",{"$f":"CLEAR()","v":true},{"$f":"RETURN()","v":true},2,38,151,88,null,"Cancel",null,null,null,null,null,null,null,null,null,null,null,{"$f":"DIALOG.BOX(CLCoatSelection2nd)","v":4},{"$f":"DIALOG.BOX(CLCoatSelection2nd)","v":4},{"$f":"DIALOG.BOX(CLCoatSelection2nd)","v":4},{"$f":"DIALOG.BOX(CLCoatSelection2nd)","v":4},{"$f":"DIALOG.BOX(CLCoatSelection2nd)","v":4},{"$f":"DIALOG.BOX(CLCoatSelection2nd)","v":4},{"$f":"DIALOG.BOX(CLCoatSelection2nd)","v":4},{"$f":"DIALOG.BOX(CLCoatSelection2nd)","v":4},{"$f":"DIALOG.BOX(CLCoatSelection2nd)","v":4},{"$f":"DIALOG.BOX(CLCoatSelection2nd)","v":4},{"$f":"DIALOG.BOX(CLCoatSelection2nd)","v":4},{"$f":"DIALOG.BOX(CLCoatSelection2nd)","v":4}]
[null,null,null,null,null,null,null,null,"South Pacific",null,null,"Mobilgard 300/RHY3532",null,null,null,null,null,null,null,null,null,null,null,null,null,null,"CLGrooves",null,null,null,null,null,null,null,"S35MC-C9",{"$f":"SELECT('Condition Monitoring Report'!$E$41:$P$42)","v":true},null,null,null,null,null,null,null,null,null,null,null,null,null,null,null,null,null,null,{"$f":"IF(BC119=(4),GOTO(BC122),GOTO(BC130))","v":true},{"$f":"IF(BD119=(4),GOTO(BD122),GOTO(BD130))","v":true},{"$f":"IF(BE119=(4),GOTO(BE122),GOTO(BE130))","v":true},{"$f":"IF(BF119=(4),GOTO(BF122),GOTO(BF130))","v":true},{"$f":"IF(BG119=(4),GOTO(BG122),GOTO(BG130))","v":true},{"$f":"IF(BH119=(4),GOTO(BH122),GOTO(BH130))","v":true},{"$f":"IF(BI119=(4),GOTO(BI122),GOTO(BI130))","v":true},{"$f":"IF(BJ119=(4),GOTO(BJ122),GOTO(BJ130))","v":true},{"$f":"IF(BK119=(4),GOTO(BK122),GOTO(BK130))","v":true},{"$f":"IF(BL119=(4),GOTO(BL122),GOTO(BL130))","v":true},{"$f":"IF(BM119=(4),GOTO(BM122),GOTO(BM130))","v":true},{"$f":"IF(BN119=(4),GOTO(BN122),GOTO(BN130))","v":true},null,"DiaBoxCrownType7to12"]
[null,null,null,null,null,null,null,null,null,null,null,"Mobilgard 5100",null,null,null,null,null,null,null,null,null,null,null,null,null,null,{"$f":"ECHO(FALSE)","v":true},null,null,null,null,null,null,null,"S35MC-C9.2",{"$f":"CLEAR()","v":true},null,null,null,null,null,null,null,null,null,null,null,null,null,null,null,null,null,null,{"$f":"IF('Condition Monitoring Report'!Q117=FALSE,GOTO(BC130),GOTO(BC122))","v":false},{"$f":"IF('Condition Monitoring Report'!R117=FALSE,GOTO(BD130),GOTO(BD122))","v":false},{"$f":"IF('Condition Monitoring Report'!S117=FALSE,GOTO(BE130),GOTO(BE122))","v":false},{"$f":"IF('Condition Monitoring Report'!T117=FALSE,GOTO(BF130),GOTO(BF122))","v":false},{"$f":"IF('Condition Monitoring Report'!U117=FALSE,GOTO(BG130),GOTO(BG122))","v":false},{"$f":"IF('Condition Monitoring Report'!V117=FALSE,GOTO(BH130),GOTO(BH122))","v":false},{"$f":"IF('Condition Monitoring Report'!W119=FALSE,GOTO(BI130),GOTO(BI122))","v":false},{"$f":"IF('Condition Monitoring Report'!X119=FALSE,GOTO(BJ130),GOTO(BJ122))","v":false},{"$f":"IF('Condition Monitoring Report'!Y119=FALSE,GOTO(BK130),GOTO(BK122))","v":false},{"$f":"IF('Condition Monitoring Report'!Z119=FALSE,GOTO(BL130),GOTO(BL122))","v":false},{"$f":"IF('Condition Monitoring Report'!AA119=FALSE,GOTO(BM130),GOTO(BM122))","v":false},{"$f":"IF('Condition Monitoring Report'!AB119=FALSE,GOTO(BN130),GOTO(BN122))","v":false},null,null,null,null,1288,212,"Crown Type Cylinder 7 to 12"]
[null,null,null,null,null,null,null,null,null,null,null,"Mobilgard 560 VS",null,null,null,null,null,null,null,null,null,null,null,null,null,null,{"$f":"DIALOG.BOX(DiaBoxCLGrooves)","v":false},null,null,null,868,212,"CL Grooves",null,"S35ME-B",{"$f":"SELECT('Condition Monitoring Report'!$Q$33:$AB$34)","v":true},"EngineType(Cylinder Condition Report)",null,null,null,386,180,"Crown Type",null,null,null,null,null,null,null,null,null,null,null,{"$f":"IF(AND($AR$153=TRUE,$AR$154=TRUE),ALERT(\"Make only one selection\"),IF(AND($AR$153=FALSE,$AR$154=FALSE),ALERT(\"Make one selection\"),GOTO(BC123)))","v":true},{"$f":"IF(AND($AR$153=TRUE,$AR$154=TRUE),ALERT(\"Make only one selection\"),IF(AND($AR$153=FALSE,$AR$154=FALSE),ALERT(\"Make one selection\"),GOTO(BD123)))","v":true},{"$f":"IF(AND($AR$153=TRUE,$AR$154=TRUE),ALERT(\"Make only one selection\"),IF(AND($AR$153=FALSE,$AR$154=FALSE),ALERT(\"Make one selection\"),GOTO(BE123)))","v":true},{"$f":"IF(AND($AR$153=TRUE,$AR$154=TRUE),ALERT(\"Make only one selection\"),IF(AND($AR$153=FALSE,$AR$154=FALSE),ALERT(\"Make one selection\"),GOTO(BF123)))","v":true},{"$f":"IF(AND($AR$153=TRUE,$AR$154=TRUE),ALERT(\"Make only one selection\"),IF(AND($AR$153=FALSE,$AR$154=FALSE),ALERT(\"Make one selection\"),GOTO(BG123)))","v":true},{"$f":"IF(AND($AR$153=TRUE,$AR$154=TRUE),ALERT(\"Make only one selection\"),IF(AND($AR$153=FALSE,$AR$154=FALSE),ALERT(\"Make one selection\"),GOTO(BH123)))","v":true},{"$f":"IF(AND($AR$153=TRUE,$AR$154=TRUE),ALERT(\"Make only one selection\"),IF(AND($AR$153=FALSE,$AR$154=FALSE),ALERT(\"Make one selection\"),GOTO(BI123)))","v":true},{"$f":"IF(AND($AR$153=TRUE,$AR$154=TRUE),ALERT(\"Make only one selection\"),IF(AND($AR$153=FALSE,$AR$154=FALSE),ALERT(\"Make one selection\"),GOTO(BJ123)))","v":true},{"$f":"IF(AND($AR$153=TRUE,$AR$154=TRUE),ALERT(\"Make only one selection\"),IF(AND($AR$153=FALSE,$AR$154=FALSE),ALERT(\"Make one selection\"),GOTO(BK123)))","v":true},{"$f":"IF(AND($AR$153=TRUE,$AR$154=TRUE),ALERT(\"Make only one selection\"),IF(AND($AR$153=FALSE,$AR$154=FALSE),ALERT(\"Make one selection\"),GOTO(BL123)))","v":true},{"$f":"IF(AND($AR$153=TRUE,$AR$154=TRUE),ALERT(\"Make only one selection\"),IF(AND($AR$153=FALSE,$AR$154=FALSE),ALERT(\"Make one selection\"),GOTO(BM123)))","v":true},{"$f":"IF(AND($AR$153=TRUE,$AR$154=TRUE),ALERT(\"Make only one selection\"),IF(AND($AR$153=FALSE,$AR$154=FALSE),ALERT(\"Make one selection\"),GOTO(BN123)))","v":true},null,6,10,28,205,18,null,"HTL Oros            (High Top Land)"]
[null,null,null,null,null,null,null,null,null,null,null,"Mobilgard 570",null,null,null,null,null,null,null,null,null,null,null,null,null,null,{"$f":"SELECT(!$M$30)","v":true},6,10,28,205,18,null,"6 pcs 45-67.5-90","S35ME-B9",{"$f":"CLEAR()","v":true},{"$f":"ECHO(FALSE)","v":true},6,10,6,365,18,null,"SHTL Oros         (Semi High Top Land)",null,null,null,null,null,null,null,null,null,null,{"$f":"IF(AND($AR$153=TRUE,$AR$154=TRUE),GOTO(BC119),IF(AND($AR$153=FALSE,$AR$154=FALSE),GOTO(BC119),GOTO(BC124)))","v":true},{"$f":"IF(AND($AR$153=TRUE,$AR$154=TRUE),GOTO(BD119),IF(AND($AR$153=FALSE,$AR$154=FALSE),GOTO(BD119),GOTO(BD124)))","v":true},{"$f":"IF(AND($AR$153=TRUE,$AR$154=TRUE),GOTO(BE119),IF(AND($AR$153=FALSE,$AR$154=FALSE),GOTO(BE119),GOTO(BE124)))","v":true},{"$f":"IF(AND($AR$153=TRUE,$AR$154=TRUE),GOTO(BF119),IF(AND($AR$153=FALSE,$AR$154=FALSE),GOTO(BF119),GOTO(BF124)))","v":true},{"$f":"IF(AND($AR$153=TRUE,$AR$154=TRUE),GOTO(BG119),IF(AND($AR$153=FALSE,$AR$154=FALSE),GOTO(BG119),GOTO(BG124)))","v":true},{"$f":"IF(AND($AR$153=TRUE,$AR$154=TRUE),GOTO(BH119),IF(AND($AR$153=FALSE,$AR$154=FALSE),GOTO(BH119),GOTO(BH124)))","v":true},{"$f":"IF(AND($AR$153=TRUE,$AR$154=TRUE),GOTO(BI119),IF(AND($AR$153=FALSE,$AR$154=FALSE),GOTO(BI119),GOTO(BI124)))","v":true},{"$f":"IF(AND($AR$153=TRUE,$AR$154=TRUE),GOTO(BJ119),IF(AND($AR$153=FALSE,$AR$154=FALSE),GOTO(BJ119),GOTO(BJ124)))","v":true},{"$f":"IF(AND($AR$153=TRUE,$AR$154=TRUE),GOTO(BK119),IF(AND($AR$153=FALSE,$AR$154=FALSE),GOTO(BK119),GOTO(BK124)))","v":true},{"$f":"IF(AND($AR$153=TRUE,$AR$154=TRUE),GOTO(BL119),IF(AND($AR$153=FALSE,$AR$154=FALSE),GOTO(BL119),GOTO(BL124)))","v":true},{"$f":"IF(AND($AR$153=TRUE,$AR$154=TRUE),GOTO(BM119),IF(AND($AR$153=FALSE,$AR$154=FALSE),GOTO(BM119),GOTO(BM124)))","v":true},{"$f":"IF(AND($AR$153=TRUE,$AR$154=TRUE),GOTO(BN119),IF(AND($AR$153=FALSE,$AR$154=FALSE),GOTO(BN119),GOTO(BN124)))","v":true},null,22,10,46,205,162,"CrownType",1]
[null,null,null,null,null,null,null,null,"WeatherCondition",null,null,"Mobilgard L540",null,null,null,null,null,null,null,null,null,null,null,null,null,null,{"$f":"IF((AA122)=FALSE,GOTO(AA132),GOTO(AA125))","v":true},22,10,46,205,144,"CLGrooves",4,"S35ME-B9.1-TII",{"$f":"PROTECT.DOCUMENT(TRUE,,\"opera\",TRUE)","v":true},{"$f":"DIALOG.BOX(DiaBoxEngineType)","v":3},22,10,24,365,123,"CrownType",5,null,null,null,null,null,null,null,null,null,null,{"$f":"IF($AR$153=TRUE,VLOOKUP(MID('Condition Monitoring Report'!$F$3,2,2),TypeCLvalues,2),VLOOKUP(MID('Condition Monitoring Report'!$F$3,2,2),TypeCLvalues,3))","v":5.5},{"$f":"IF($AR$153=TRUE,VLOOKUP(MID('Condition Monitoring Report'!$F$3,2,2),TypeCLvalues,2),VLOOKUP(MID('Condition Monitoring Report'!$F$3,2,2),TypeCLvalues,3))","v":5},{"$f":"IF($AR$153=TRUE,VLOOKUP(MID('Condition Monitoring Report'!$F$3,2,2),TypeCLvalues,2),VLOOKUP(MID('Condition Monitoring Report'!$F$3,2,2),TypeCLvalues,3))","v":4},{"$f":"IF($AR$153=TRUE,VLOOKUP(MID('Condition Monitoring Report'!$F$3,2,2),TypeCLvalues,2),VLOOKUP(MID('Condition Monitoring Report'!$F$3,2,2),TypeCLvalues,3))","v":5},{"$f":"IF($AR$153=TRUE,VLOOKUP(MID('Condition Monitoring Report'!$F$3,2,2),TypeCLvalues,2),VLOOKUP(MID('Condition Monitoring Report'!$F$3,2,2),TypeCLvalues,3))","v":4.5},{"$f":"IF($AR$153=TRUE,VLOOKUP(MID('Condition Monitoring Report'!$F$3,2,2),TypeCLvalues,2),VLOOKUP(MID('Condition Monitoring Report'!$F$3,2,2),TypeCLvalues,3))","v":4.5},{"$f":"IF($AR$153=TRUE,VLOOKUP(MID('Condition Monitoring Report'!$F$3,2,2),TypeCLvalues,2),VLOOKUP(MID('Condition Monitoring Report'!$F$3,2,2),TypeCLvalues,3))","v":4.5},{"$f":"IF($AR$153=TRUE,VLOOKUP(MID('Condition Monitoring Report'!$F$3,2,2),TypeCLvalues,2),VLOOKUP(MID('Condition Monitoring Report'!$F$3,2,2),TypeCLvalues,3))","v":5},{"$f":"IF($AR$153=TRUE,VLOOKUP(MID('Condition Monitoring Report'!$F$3,2,2),TypeCLvalues,2),VLOOKUP(MID('Condition Monitoring Report'!$F$3,2,2),TypeCLvalues,3))","v":5},{"$f":"IF($AR$153=TRUE,VLOOKUP(MID('Condition Monitoring Report'!$F$3,2,2),TypeCLvalues,2),VLOOKUP(MID('Condition Monitoring Report'!$F$3,2,2),TypeCLvalues,3))","v":4.5},{"$f":"IF($AR$153=TRUE,VLOOKUP(MID('Condition Monitoring Report'!$F$3,2,2),TypeCLvalues,2),VLOOKUP(MID('Condition Monitoring Report'!$F$3,2,2),TypeCLvalues,3))","v":5.5},{"$f":"IF($AR$153=TRUE,VLOOKUP(MID('Condition Monitoring Report'!$F$3,2,2),TypeCLvalues,2),VLOOKUP(MID('Condition Monitoring Report'!$F$3,2,2),TypeCLvalues,3))","v":5},null,6,222,28,205,18,null,"HTL Oros            (High Top Land)"]
[null,null,null,null,null,null,null,null,"Fair",null,null,"Mobilgard L560",null,null,null,null,null,null,null,null,null,null,null,null,null,null,{"$f":"IF(ISBLANK(AH123)=(TRUE),FORMULA(\"\"),FORMULA(AH123))","v":true},6,222,28,205,18,null,"6 pcs 45-67.5-90","S35ME-B9.2",{"$f":"DIALOG.BOX(DiaBoxEngineType)","v":3},{"$f":"SELECT(!$F$3)","v":true},1,290,152,88,null,"OK",null,null,null,null,null,null,null,null,null,null,null,{"$f":"SELECT('Condition Monitoring Report'!E41)","v":true},{"$f":"SELECT('Condition Monitoring Report'!F41)","v":true},{"$f":"SELECT('Condition Monitoring Report'!G41)","v":true},{"$f":"SELECT('Condition Monitoring Report'!H41)","v":true},{"$f":"SELECT('Condition Monitoring Report'!I41)","v":true},{"$f":"SELECT('Condition Monitoring Report'!J41)","v":true},{"$f":"SELECT('Condition Monitoring Report'!K41)","v":true},{"$f":"SELECT('Condition Monitoring Report'!L41)","v":true},{"$f":"SELECT('Condition Monitoring Report'!M41)","v":true},{"$f":"SELECT('Condition Monitoring Report'!N41)","v":true},{"$f":"SELECT('Condition Monitoring Report'!O41)","v":true},{"$f":"SELECT('Condition Monitoring Report'!P41)","v":true},null,22,222,46,205,180,"CrownType",1]
[null,null,null,null,null,null,null,null,"Fresh",null,null,"Navigo 100MCL",null,null,null,null,null,null,null,null,null,null,null,null,null,null,{"$f":"SELECT(!$M$31)","v":true},22,222,46,205,162,"CLGrooves",4,"S35ME-B9.2-TII",{"$f":"SELECT(!$F$3)","v":true},{"$f":"IF((AK124)=FALSE,GOTO(AK128),GOTO(AK127))","v":true},2,194,152,88,null,"Cancel",null,null,null,null,null,null,null,null,null,null,null,{"$f":"FORMULA(BC124)","v":true},{"$f":"FORMULA(BD124)","v":true},{"$f":"FORMULA(BE124)","v":true},{"$f":"FORMULA(BF124)","v":true},{"$f":"FORMULA(BG124)","v":true},{"$f":"FORMULA(BH124)","v":true},{"$f":"FORMULA(BI124)","v":true},{"$f":"FORMULA(BJ124)","v":true},{"$f":"FORMULA(BK124)","v":true},{"$f":"FORMULA(BL124)","v":true},{"$f":"FORMULA(BM124)","v":true},{"$f":"FORMULA(BN124)","v":true},null,6,435,28,205,18,null,"HTL Pot Piston  (High Top Land)"]
[null,null,null,null,null,null,null,null,"Stormy",null,null,"Navigo 40 MCL",null,null,null,null,null,null,null,null,null,null,null,null,null,null,{"$f":"IF(ISBLANK(AH125)=(TRUE),FORMULA(\"\"),FORMULA(AH125))","v":true},6,435,28,205,18,null,"6 pcs 45-67.5-90","S35ME-B9.3",{"$f":"IF((AJ125)=FALSE,GOTO(AJ129),GOTO(AJ128))","v":true},{"$f":"IF(ISBLANK(AR12)=(TRUE),FORMULA(\"\"),FORMULA(AR12))","v":true},null,null,null,null,null,null,null,null,null,null,null,null,null,null,null,null,null,{"$f":"SELECT('Condition Monitoring Report'!Q33)","v":true},{"$f":"SELECT('Condition Monitoring Report'!R33)","v":true},{"$f":"SELECT('Condition Monitoring Report'!S33)","v":true},{"$f":"SELECT('Condition Monitoring Report'!T33)","v":true},{"$f":"SELECT('Condition Monitoring Report'!U33)","v":true},{"$f":"SELECT('Condition Monitoring Report'!V33)","v":true},{"$f":"SELECT('Condition Monitoring Report'!W33)","v":true},{"$f":"SELECT('Condition Monitoring Report'!X33)","v":true},{"$f":"SELECT('Condition Monitoring Report'!Y33)","v":true},{"$f":"SELECT('Condition Monitoring Report'!Z33)","v":true},{"$f":"SELECT('Condition Monitoring Report'!AA33)","v":true},{"$f":"SELECT('Condition Monitoring Report'!AB33)","v":true},null,22,435,46,205,180,"CrownType",2]
[null,null,null,null,null,null,null,null,null,null,null,"Navigo 50 MCL",null,null,null,null,null,null,null,null,null,null,null,null,null,null,{"$f":"SELECT(!$M$32)","v":true},22,435,46,205,162,"CLGrooves",4,"S35ME-B9.3-TII",{"$f":"IF(ISBLANK($AR$12)=(TRUE),FORMULA(\"\"),FORMULA($AR$12))","v":true},{"$f":"RETURN()","v":true},null,null,null,null,null,null,null,null,null,null,null,null,null,null,null,null,null,{"$f":"FORMULA(\"TRUE\")","v":true},{"$f":"FORMULA(\"TRUE\")","v":true},{"$f":"FORMULA(\"TRUE\")","v":true},true,true,true,true,true,true,true,true,true,null,6,647,28,205,18,null,"HTL Valley         (High Top Land)"]
[null,null,null,null,null,null,null,null,null,null,null,"Navigo 70 MCL AW",null,null,null,null,null,null,null,null,null,null,null,null,null,null,{"$f":"IF(ISBLANK(AH127)=(TRUE),FORMULA(\"\"),FORMULA(AH127))","v":true},6,647,28,205,18,null,"6 pcs 45-67.5-90","S35ME-B9.5-TII",{"$f":"RETURN()","v":true},null,null,null,null,228,180,"ACC factor",null,null,null,null,null,null,null,null,null,null,null,{"$f":"GOTO(BC147)","v":true},{"$f":"GOTO(BD147)","v":true},{"$f":"GOTO(BE147)","v":true},{"$f":"GOTO(BF147)","v":true},{"$f":"GOTO(BG147)","v":true},{"$f":"GOTO(BH147)","v":true},{"$f":"GOTO(BI147)","v":true},{"$f":"GOTO(BJ147)","v":true},{"$f":"GOTO(BK147)","v":true},{"$f":"GOTO(BL147)","v":true},{"$f":"GOTO(BM147)","v":true},{"$f":"GOTO(BN147)","v":true},null,22,647,46,205,180,"CrownType",3]
[null,null,null,null,null,null,null,null,null,null,null,"Navigo 70MCL",null,null,null,null,null,null,null,null,null,null,null,null,null,null,{"$f":"SELECT(!$M$33)","v":true},22,647,46,205,162,"CLGrooves",4,"S40MC-C9",null,"To be populated with lookup values",6,10,6,205,18,null,"0.34",null,null,null,null,null,null,null,null,null,null,{"$f":"SELECT('Condition Monitoring Report'!Q33)","v":true},{"$f":"SELECT('Condition Monitoring Report'!R33)","v":true},{"$f":"SELECT('Condition Monitoring Report'!S33)","v":true},{"$f":"SELECT('Condition Monitoring Report'!T33)","v":true},{"$f":"SELECT('Condition Monitoring Report'!U33)","v":true},{"$f":"SELECT('Condition Monitoring Report'!V33)","v":true},{"$f":"SELECT('Condition Monitoring Report'!W33)","v":true},{"$f":"SELECT('Condition Monitoring Report'!X33)","v":true},{"$f":"SELECT('Condition Monitoring Report'!Y33)","v":true},{"$f":"SELECT('Condition Monitoring Report'!Z33)","v":true},{"$f":"SELECT('Condition Monitoring Report'!AA33)","v":true},{"$f":"SELECT('Condition Monitoring Report'!AB33)","v":true},null,1,761,183,88,null,"OK"]
[null,null,null,null,null,null,null,null,null,null,null,"Navigo 70MCL 1",null,null,null,null,null,null,null,null,null,null,null,null,null,null,{"$f":"IF(ISBLANK(AH129)=(TRUE),FORMULA(\"\"),FORMULA(AH129))","v":true},1,762,184,88,null,"OK",null,"S40MC-C9.2",null,"ACCfactor(Cylinder Condition Report)",22,10,24,205,126,"ACCfactor",35,null,null,null,null,null,null,null,null,null,null,{"$f":"CLEAR()","v":true},{"$f":"CLEAR()","v":true},{"$f":"CLEAR()","v":true},{"$f":"CLEAR()","v":true},{"$f":"CLEAR()","v":true},{"$f":"CLEAR()","v":true},{"$f":"CLEAR()","v":true},{"$f":"CLEAR()","v":true},{"$f":"CLEAR()","v":true},{"$f":"CLEAR()","v":true},{"$f":"CLEAR()","v":true},{"$f":"CLEAR()","v":true},null,2,663,183,88,null,"Cancel"]
[null,null,null,null,null,null,null,null,"PistonSkirt",null,null,"Neptuno 70",null,null,null,null,null,null,null,null,null,null,null,null,null,null,{"$f":"RETURN()","v":true},2,664,184,88,null,"Cancel",null,"S40ME-B",null,{"$f":"ECHO(FALSE)","v":true},1,133,151,88,null,"OK",null,null,null,null,null,null,null,null,null,null,null,{"$f":"SELECT('Condition Monitoring Report'!Q34)","v":true},{"$f":"SELECT('Condition Monitoring Report'!R34)","v":true},{"$f":"SELECT('Condition Monitoring Report'!S34)","v":true},{"$f":"SELECT('Condition Monitoring Report'!T34)","v":true},{"$f":"SELECT('Condition Monitoring Report'!U34)","v":true},{"$f":"SELECT('Condition Monitoring Report'!V34)","v":true},{"$f":"SELECT('Condition Monitoring Report'!W34)","v":true},{"$f":"SELECT('Condition Monitoring Report'!X34)","v":true},{"$f":"SELECT('Condition Monitoring Report'!Y34)","v":true},{"$f":"SELECT('Condition Monitoring Report'!Z34)","v":true},{"$f":"SELECT('Condition Monitoring Report'!AA34)","v":true},{"$f":"SELECT('Condition Monitoring Report'!AB34)","v":true},null,5,10,13,null,null,"Crown 7"]
[null,null,null,null,null,null,null,null,"Bronze R     (Bronze Ring)",null,null,"Nile Marine BN70/50",null,null,null,null,null,null,null,null,null,null,null,null,null,null,null,5,10,13,null,null,"Ring 1",null,"S40ME-B9",null,{"$f":"DIALOG.BOX(DiaBoxACCfactor)","v":3},2,38,151,88,null,"Cancel",null,null,null,null,null,null,null,null,null,null,null,{"$f":"CLEAR()","v":true},{"$f":"CLEAR()","v":true},{"$f":"CLEAR()","v":true},{"$f":"CLEAR()","v":true},{"$f":"CLEAR()","v":true},{"$f":"CLEAR()","v":true},{"$f":"CLEAR()","v":true},{"$f":"CLEAR()","v":true},{"$f":"CLEAR()","v":true},{"$f":"CLEAR()","v":true},{"$f":"CLEAR()","v":true},{"$f":"CLEAR()","v":true},null,5,223,13,null,null,"Crown 8"]
[null,null,null,null,null,null,null,null,"Cast Iron    (Cast Iron)",null,null,"PAZLEX 50",null,null,null,null,null,null,null,null,null,null,null,null,null,null,null,5,223,13,null,null,"Ring 2",null,"S40ME-B9.1-TII",null,{"$f":"SELECT(!$O$5)","v":true},null,null,null,null,null,null,null,null,null,null,null,null,null,null,null,null,null,{"$f":"PROTECT.DOCUMENT(TRUE,,\"opera\",TRUE)","v":true},{"$f":"PROTECT.DOCUMENT(TRUE,,\"opera\",TRUE)","v":true},{"$f":"PROTECT.DOCUMENT(TRUE,,\"opera\",TRUE)","v":true},true,true,true,true,true,true,true,true,true,null,5,435,13,null,null,"Crown 9"]
[null,null,null,null,null,null,null,null,"Molypden     (Molypdenum)",null,null,"Petrocyl 70",null,null,null,null,null,null,null,null,null,null,null,null,null,null,null,5,435,13,null,null,"Ring 3",null,"S40ME-B9.2",null,{"$f":"IF((AK133)=FALSE,GOTO(AK137),GOTO(AK136))","v":true},null,null,null,null,null,null,null,null,null,null,null,null,null,null,null,null,null,{"$f":"RETURN()","v":true},{"$f":"RETURN()","v":true},{"$f":"RETURN()","v":true},{"$f":"RETURN()","v":true},{"$f":"RETURN()","v":true},{"$f":"RETURN()","v":true},{"$f":"RETURN()","v":true},{"$f":"RETURN()","v":true},{"$f":"RETURN()","v":true},{"$f":"RETURN()","v":true},{"$f":"RETURN()","v":true},{"$f":"RETURN()","v":true},null,5,647,13,null,null,"Crown 10"]
[null,null,null,null,null,null,null,null,null,null,null,"Petromar DCL 7050",null,null,null,null,null,null,null,null,null,null,null,null,null,null,null,5,647,13,null,null,"Ring 4",null,"S40ME-B9.2-TII",null,{"$f":"IF(ISBLANK($AR$130)=(TRUE),FORMULA(\"\"),FORMULA($AR$130))","v":true},null,null,null,228,180,"Lub. Quill Position",null,null,null,null,null,null,null,null,null,null,null,{"$f":"ECHO(FALSE)","v":true},{"$f":"ECHO(FALSE)","v":true},{"$f":"ECHO(FALSE)","v":true},true,true,true,true,true,true,true,true,true,null,6,859,28,205,18,null,"SHTL Oros         (Semi High Top Land)"]
[null,null,null,null,null,null,null,null,null,null,null,"Petronas SILUB 570",null,null,null,null,null,null,null,null,null,null,null,null,null,null,null,null,null,null,null,null,null,null,"S40ME-B9.3",null,{"$f":"RETURN()","v":true},6,10,6,205,18,null,"Frame position",null,null,null,null,null,null,null,null,null,null,{"$f":"IF(AND('Condition Monitoring Report'!Q33=FALSE,'Condition Monitoring Report'!Q34=FALSE),GOTO(BC138),GOTO(BC144))","v":true},{"$f":"IF(AND('Condition Monitoring Report'!R33=FALSE,'Condition Monitoring Report'!R34=FALSE),GOTO(BD138),GOTO(BD144))","v":true},{"$f":"IF(AND('Condition Monitoring Report'!S33=FALSE,'Condition Monitoring Report'!S34=FALSE),GOTO(BE138),GOTO(BE144))","v":true},{"$f":"IF(AND('Condition Monitoring Report'!T33=FALSE,'Condition Monitoring Report'!T34=FALSE),GOTO(BF138),GOTO(BF144))","v":true},{"$f":"IF(AND('Condition Monitoring Report'!U33=FALSE,'Condition Monitoring Report'!U34=FALSE),GOTO(BG138),GOTO(BG144))","v":true},{"$f":"IF(AND('Condition Monitoring Report'!V33=FALSE,'Condition Monitoring Report'!V34=FALSE),GOTO(BH138),GOTO(BH144))","v":true},{"$f":"IF(AND('Condition Monitoring Report'!W33=FALSE,'Condition Monitoring Report'!W34=FALSE),GOTO(BI138),GOTO(BI144))","v":true},{"$f":"IF(AND('Condition Monitoring Report'!X33=FALSE,'Condition Monitoring Report'!X34=FALSE),GOTO(BJ138),GOTO(BJ144))","v":true},{"$f":"IF(AND('Condition Monitoring Report'!Y33=FALSE,'Condition Monitoring Report'!Y34=FALSE),GOTO(BK138),GOTO(BK144))","v":true},{"$f":"IF(AND('Condition Monitoring Report'!Z33=FALSE,'Condition Monitoring Report'!Z34=FALSE),GOTO(BL138),GOTO(BL144))","v":true},{"$f":"IF(AND('Condition Monitoring Report'!AA33=FALSE,'Condition Monitoring Report'!AA34=FALSE),GOTO(BM138),GOTO(BM144))","v":true},{"$f":"IF(AND('Condition Monitoring Report'!AB33=FALSE,'Condition Monitoring Report'!AB34=FALSE),GOTO(BN138),GOTO(BN144))","v":true},null,22,859,46,205,198,"CrownType",5]
[null,null,null,null,null,null,null,null,null,null,"ACCfactor","Petroshield 70",null,null,null,null,null,null,null,null,null,null,null,null,null,null,null,null,null,null,null,null,null,null,"S40ME-B9.3-TII",null,null,22,10,24,205,126,"LubQuillPosition",3,null,null,null,null,null,null,null,null,null,null,{"$f":"SELECT('Condition Monitoring Report'!E41)","v":true},{"$f":"SELECT('Condition Monitoring Report'!F41)","v":true},{"$f":"SELECT('Condition Monitoring Report'!G41)","v":true},{"$f":"SELECT('Condition Monitoring Report'!H41)","v":true},{"$f":"SELECT('Condition Monitoring Report'!I41)","v":true},{"$f":"SELECT('Condition Monitoring Report'!J41)","v":true},{"$f":"SELECT('Condition Monitoring Report'!K41)","v":true},{"$f":"SELECT('Condition Monitoring Report'!L41)","v":true},{"$f":"SELECT('Condition Monitoring Report'!M41)","v":true},{"$f":"SELECT('Condition Monitoring Report'!N41)","v":true},{"$f":"SELECT('Condition Monitoring Report'!O41)","v":true},{"$f":"SELECT('Condition Monitoring Report'!P41)","v":true},null,6,1071,28,205,18,null,"LTL Pot Piston   (High Top Land)"]
[null,null,null,null,null,null,null,null,null,null,0,"Salyx 570",null,null,null,null,null,null,null,null,null,null,null,null,null,null,null,null,null,null,null,null,null,null,"S40ME-B9.5-TII",null,null,1,133,151,88,null,"OK",null,null,null,null,null,null,null,null,null,null,null,{"$f":"CLEAR()","v":true},{"$f":"CLEAR()","v":true},{"$f":"CLEAR()","v":true},{"$f":"CLEAR()","v":true},{"$f":"CLEAR()","v":true},{"$f":"CLEAR()","v":true},{"$f":"CLEAR()","v":true},{"$f":"CLEAR()","v":true},{"$f":"CLEAR()","v":true},{"$f":"CLEAR()","v":true},{"$f":"CLEAR()","v":true},{"$f":"CLEAR()","v":true},null,22,1071,46,205,198,"CrownType",4]
[null,null,null,null,null,null,null,null,null,null,0.01,"Sealub Cylcare DCA 5040H",null,null,null,null,null,null,null,null,null,null,null,null,null,"RingType","Broken",null,null,null,null,null,null,null,"S42MC",null,"To be populated with lookup values",2,38,151,88,null,"Cancel",null,null,null,null,null,null,null,null,null,null,null,{"$f":"SELECT('Condition Monitoring Report'!E42)","v":true},{"$f":"SELECT('Condition Monitoring Report'!F42)","v":true},{"$f":"SELECT('Condition Monitoring Report'!G42)","v":true},{"$f":"SELECT('Condition Monitoring Report'!H42)","v":true},{"$f":"SELECT('Condition Monitoring Report'!I42)","v":true},{"$f":"SELECT('Condition Monitoring Report'!J42)","v":true},{"$f":"SELECT('Condition Monitoring Report'!K42)","v":true},{"$f":"SELECT('Condition Monitoring Report'!L42)","v":true},{"$f":"SELECT('Condition Monitoring Report'!M42)","v":true},{"$f":"SELECT('Condition Monitoring Report'!N42)","v":true},{"$f":"SELECT('Condition Monitoring Report'!O42)","v":true},{"$f":"SELECT('Condition Monitoring Report'!P42)","v":true},null,5,859,13,null,null,"Crown 11"]
[null,null,null,null,null,null,null,null,null,null,0.02,"Sealub Cylcare EHP 5055",null,null,null,null,null,null,null,null,null,null,null,null,null,{"$f":"ECHO(FALSE)","v":true},{"$f":"ECHO(FALSE)","v":true},null,null,null,null,null,null,null,"S46MC",null,"PistonSkirt(Cylinder Condition Report)",null,null,null,null,null,null,null,null,null,null,null,null,null,null,null,null,null,{"$f":"CLEAR()","v":true},{"$f":"CLEAR()","v":true},{"$f":"CLEAR()","v":true},{"$f":"CLEAR()","v":true},{"$f":"CLEAR()","v":true},{"$f":"CLEAR()","v":true},{"$f":"CLEAR()","v":true},{"$f":"CLEAR()","v":true},{"$f":"CLEAR()","v":true},{"$f":"CLEAR()","v":true},{"$f":"CLEAR()","v":true},{"$f":"CLEAR()","v":true},null,5,1071,13,null,null,"Crown 12"]
[null,null,null,null,null,null,null,null,null,null,0.03,"Sealub Cylcare EPH5070",null,null,null,null,null,null,null,null,null,null,null,null,null,{"$f":"DIALOG.BOX(DiaBoxRingType)","v":9},{"$f":"DIALOG.BOX(DiaBoxBroken)","v":9},null,null,null,870,212,"Broken",null,"S46MC-C",null,{"$f":"ECHO(FALSE)","v":true},null,null,null,null,null,null,null,null,null,null,null,null,null,null,null,null,null,{"$f":"PROTECT.DOCUMENT(TRUE,,\"opera\",TRUE)","v":true},{"$f":"PROTECT.DOCUMENT(TRUE,,\"opera\",TRUE)","v":true},{"$f":"PROTECT.DOCUMENT(TRUE,,\"opera\",TRUE)","v":true},true,true,true,true,true,true,true,true,true]
[null,null,null,null,null,null,null,null,null,null,0.04,"Servo Marine 7050",null,null,null,null,null,null,null,null,null,null,null,null,null,{"$f":"SELECT(!$P$30)","v":true},{"$f":"SELECT(!$O$30)","v":true},6,10,28,205,18,null,"No","S46ME-B",null,{"$f":"DIALOG.BOX(DiaBoxPistonSkirt)","v":3},null,null,null,278,180,"Meas. Tool",null,null,null,null,null,null,null,null,null,null,null,{"$f":"RETURN()","v":true},{"$f":"RETURN()","v":true},{"$f":"RETURN()","v":true},{"$f":"RETURN()","v":true},{"$f":"RETURN()","v":true},{"$f":"RETURN()","v":true},{"$f":"RETURN()","v":true},{"$f":"RETURN()","v":true},{"$f":"RETURN()","v":true},{"$f":"RETURN()","v":true},{"$f":"RETURN()","v":true},{"$f":"RETURN()","v":true}]
[null,null,null,null,null,null,null,null,null,null,0.05,"Servo Marine ME 7050",null,null,null,null,null,null,null,null,null,null,null,null,null,{"$f":"IF((Z142)=FALSE,GOTO(Z152),GOTO(Z145))","v":true},{"$f":"IF((AA142)=FALSE,GOTO(AA152),GOTO(AA145))","v":true},22,10,46,205,144,"Broken",1,"S46ME-B8.1-TII",null,{"$f":"SELECT(!$G$43)","v":true},6,10,6,255,18,null,"LDM     (Liner Diameter Measuring)",null,null,null,null,null,null,null,null,null,null,{"$f":"VLOOKUP(MID('Condition Monitoring Report'!$F$3,2,2),TypeCLvalues,2)","v":3},{"$f":"VLOOKUP(MID('Condition Monitoring Report'!$F$3,2,2),TypeCLvalues,2)","v":2.5},{"$f":"VLOOKUP(MID('Condition Monitoring Report'!$F$3,2,2),TypeCLvalues,2)","v":3},{"$f":"VLOOKUP(MID('Condition Monitoring Report'!$F$3,2,2),TypeCLvalues,2)","v":2.5},{"$f":"VLOOKUP(MID('Condition Monitoring Report'!$F$3,2,2),TypeCLvalues,2)","v":2.5},{"$f":"VLOOKUP(MID('Condition Monitoring Report'!$F$3,2,2),TypeCLvalues,2)","v":2.5},{"$f":"VLOOKUP(MID('Condition Monitoring Report'!$F$3,2,2),TypeCLvalues,2)","v":2.5},{"$f":"VLOOKUP(MID('Condition Monitoring Report'!$F$3,2,2),TypeCLvalues,2)","v":2.5},{"$f":"VLOOKUP(MID('Condition Monitoring Report'!$F$3,2,2),TypeCLvalues,2)","v":2.5},{"$f":"VLOOKUP(MID('Condition Monitoring Report'!$F$3,2,2),TypeCLvalues,2)","v":2.5},{"$f":"VLOOKUP(MID('Condition Monitoring Report'!$F$3,2,2),TypeCLvalues,2)","v":3.5},{"$f":"VLOOKUP(MID('Condition Monitoring Report'!$F$3,2,2),TypeCLvalues,2)","v":3.5}]
[null,null,null,null,null,null,null,null,null,null,0.06,"Sharlu Marine Haven Cyl 50",null,null,null,null,null,null,null,null,null,null,null,null,null,{"$f":"IF(ISBLANK(AH183)=(TRUE),FORMULA(\"\"),FORMULA(AH183))","v":true},{"$f":"IF(ISBLANK(AH143)=(TRUE),FORMULA(\"\"),FORMULA(AH143))","v":true},6,222,28,205,18,null,"Yes","S46ME-B8.2",null,{"$f":"IF((AK143)=FALSE,GOTO(AK147),GOTO(AK146))","v":true},22,10,24,255,126,"MeasTool",1,null,null,null,null,null,null,null,null,null,null,{"$f":"SELECT('Condition Monitoring Report'!E41)","v":true},{"$f":"SELECT('Condition Monitoring Report'!F41)","v":true},{"$f":"SELECT('Condition Monitoring Report'!G41)","v":true},{"$f":"SELECT('Condition Monitoring Report'!H41)","v":true},{"$f":"SELECT('Condition Monitoring Report'!I41)","v":true},{"$f":"SELECT('Condition Monitoring Report'!J41)","v":true},{"$f":"SELECT('Condition Monitoring Report'!K41)","v":true},{"$f":"SELECT('Condition Monitoring Report'!L41)","v":true},{"$f":"SELECT('Condition Monitoring Report'!M41)","v":true},{"$f":"SELECT('Condition Monitoring Report'!N41)","v":true},{"$f":"SELECT('Condition Monitoring Report'!O41)","v":true},{"$f":"SELECT('Condition Monitoring Report'!P41)","v":true}]
[null,null,null,null,null,null,null,null,null,null,7.0000000000000007E-2,"Shem Mar Oil 70",null,null,null,null,null,null,null,null,null,null,null,null,null,{"$f":"SELECT(!$P$31)","v":true},{"$f":"SELECT(!$O$31)","v":true},22,222,46,205,162,"Broken",3,"S46ME-B8.2-TII",null,{"$f":"IF(ISBLANK($AR$116)=(TRUE),FORMULA(\"\"),FORMULA(LEFT($AR$116,8)))","v":true},1,133,151,88,null,"OK",null,null,null,null,null,null,null,null,null,null,null,{"$f":"FORMULA(BC144)","v":true},{"$f":"FORMULA(BD144)","v":true},{"$f":"FORMULA(BE144)","v":true},{"$f":"FORMULA(BF144)","v":true},{"$f":"FORMULA(BG144)","v":true},{"$f":"FORMULA(BH144)","v":true},{"$f":"FORMULA(BI144)","v":true},{"$f":"FORMULA(BJ144)","v":true},{"$f":"FORMULA(BK144)","v":true},{"$f":"FORMULA(BL144)","v":true},{"$f":"FORMULA(BM144)","v":true},{"$f":"FORMULA(BN144)","v":true}]
[null,null,null,null,null,null,null,null,null,null,0.08,"Silub 570",null,null,null,null,null,null,null,null,null,null,null,null,null,{"$f":"IF(ISBLANK(AH185)=(TRUE),FORMULA(\"\"),FORMULA(AH185))","v":true},{"$f":"IF(ISBLANK(AH145)=(TRUE),FORMULA(\"\"),FORMULA(AH145))","v":true},6,435,28,205,18,null,"No","S46ME-B8.3",null,{"$f":"RETURN()","v":true},2,38,151,88,null,"Cancel",null,null,null,null,null,null,null,null,null,null,null,{"$f":"VLOOKUP(MID('Condition Monitoring Report'!$F$3,2,2),TypeCLvalues,4)","v":1.1000000000000001},{"$f":"VLOOKUP(MID('Condition Monitoring Report'!$F$3,2,2),TypeCLvalues,4)","v":2},{"$f":"VLOOKUP(MID('Condition Monitoring Report'!$F$3,2,2),TypeCLvalues,4)","v":2},{"$f":"VLOOKUP(MID('Condition Monitoring Report'!$F$3,2,2),TypeCLvalues,4)","v":2},{"$f":"VLOOKUP(MID('Condition Monitoring Report'!$F$3,2,2),TypeCLvalues,4)","v":2.2000000000000002},{"$f":"VLOOKUP(MID('Condition Monitoring Report'!$F$3,2,2),TypeCLvalues,4)","v":0.9},{"$f":"VLOOKUP(MID('Condition Monitoring Report'!$F$3,2,2),TypeCLvalues,4)","v":2.2000000000000002},{"$f":"VLOOKUP(MID('Condition Monitoring Report'!$F$3,2,2),TypeCLvalues,4)","v":2},{"$f":"VLOOKUP(MID('Condition Monitoring Report'!$F$3,2,2),TypeCLvalues,4)","v":2},{"$f":"VLOOKUP(MID('Condition Monitoring Report'!$F$3,2,2),TypeCLvalues,4)","v":2.2000000000000002},{"$f":"VLOOKUP(MID('Condition Monitoring Report'!$F$3,2,2),TypeCLvalues,4)","v":2.2000000000000002},{"$f":"VLOOKUP(MID('Condition Monitoring Report'!$F$3,2,2),TypeCLvalues,4)","v":2}]
[null,null,null,null,null,null,null,null,null,null,0.09,"Super DCL",null,null,null,null,null,null,null,null,null,null,null,null,null,{"$f":"SELECT(!$P$32)","v":true},{"$f":"SELECT(!$O$32)","v":true},22,435,46,205,162,"Broken",1,"S46ME-B8.3-TII",null,null,null,null,null,null,null,null,null,null,null,null,null,null,null,null,null,null,null,{"$f":"SELECT('Condition Monitoring Report'!E42)","v":true},{"$f":"SELECT('Condition Monitoring Report'!F42)","v":true},{"$f":"SELECT('Condition Monitoring Report'!G42)","v":true},{"$f":"SELECT('Condition Monitoring Report'!H42)","v":true},{"$f":"SELECT('Condition Monitoring Report'!I42)","v":true},{"$f":"SELECT('Condition Monitoring Report'!J42)","v":true},{"$f":"SELECT('Condition Monitoring Report'!K42)","v":true},{"$f":"SELECT('Condition Monitoring Report'!L42)","v":true},{"$f":"SELECT('Condition Monitoring Report'!M42)","v":true},{"$f":"SELECT('Condition Monitoring Report'!N42)","v":true},{"$f":"SELECT('Condition Monitoring Report'!O42)","v":true},{"$f":"SELECT('Condition Monitoring Report'!P42)","v":true}]
[null,null,null,null,null,null,null,null,null,null,0.1,"Supermar 70 Plus",null,null,null,null,null,null,null,null,null,null,null,null,null,{"$f":"IF(ISBLANK(AH187)=(TRUE),FORMULA(\"\"),FORMULA(AH187))","v":true},{"$f":"IF(ISBLANK(AH147)=(TRUE),FORMULA(\"\"),FORMULA(AH147))","v":true},6,647,28,205,18,null,"Unkn.","S46ME-B8.5-TII",null,null,null,null,null,null,null,null,null,null,null,null,null,null,null,null,null,null,null,{"$f":"FORMULA(BC147)","v":true},{"$f":"FORMULA(BD147)","v":true},{"$f":"FORMULA(BE147)","v":true},{"$f":"FORMULA(BF147)","v":true},{"$f":"FORMULA(BG147)","v":true},{"$f":"FORMULA(BH147)","v":true},{"$f":"FORMULA(BI147)","v":true},{"$f":"FORMULA(BJ147)","v":true},{"$f":"FORMULA(BK147)","v":true},{"$f":"FORMULA(BL147)","v":true},{"$f":"FORMULA(BM147)","v":true},{"$f":"FORMULA(BN147)","v":true}]
[null,null,null,null,null,null,null,null,null,null,0.11,"Supermar Cyl40",null,null,null,null,null,null,null,null,null,null,null,null,null,{"$f":"SELECT(!$P$33)","v":true},{"$f":"SELECT(!$O$33)","v":true},22,647,46,205,162,"Broken",2,"S50MC",null,"To be populated with lookup values","CL coat select (2nd ring)",null,null,null,null,null,null,null,null,null,null,null,null,null,null,null,null,{"$f":"SELECT(!$F$3)","v":true},{"$f":"SELECT(!$F$3)","v":true},{"$f":"SELECT(!$F$3)","v":true},{"$f":"SELECT(!$F$3)","v":true},{"$f":"SELECT(!$F$3)","v":true},{"$f":"SELECT(!$F$3)","v":true},{"$f":"SELECT(!$F$3)","v":true},{"$f":"SELECT(!$F$3)","v":true},{"$f":"SELECT(!$F$3)","v":true},{"$f":"SELECT(!$F$3)","v":true},{"$f":"SELECT(!$F$3)","v":true},{"$f":"SELECT(!$F$3)","v":true}]
[null,null,null,null,null,null,null,null,null,null,0.12,"Talusia HR70",null,null,null,null,null,null,null,null,null,null,null,null,null,{"$f":"IF(ISBLANK(AH189)=(TRUE),FORMULA(\"\"),FORMULA(AH189))","v":true},{"$f":"IF(ISBLANK(AH149)=(TRUE),FORMULA(\"\"),FORMULA(AH149))","v":true},1,764,183,88,null,"OK",null,"S50MC-C",null,"CrownType(Cylinder Condition Report)",null,null,null,448,114,null,null,null,null,null,null,null,null,null,null,null,null,{"$f":"PROTECT.DOCUMENT(TRUE,,\"opera\",TRUE)","v":true},{"$f":"PROTECT.DOCUMENT(TRUE,,\"opera\",TRUE)","v":true},{"$f":"PROTECT.DOCUMENT(TRUE,,\"opera\",TRUE)","v":true},true,true,true,true,true,true,true,true,true]
[null,null,null,null,null,null,null,null,null,null,0.13,"Talusia LS40",null,null,null,null,null,null,null,null,null,null,null,null,null,{"$f":"RETURN()","v":true},{"$f":"RETURN()","v":true},2,666,183,88,null,"Cancel",null,"S50MCE",null,{"$f":"ECHO(FALSE)","v":true},5,10,6,null,null,"For engine type 90 or 98 select piston ring coating type:",null,null,null,null,null,null,null,null,null,null,null,{"$f":"RETURN()","v":true},{"$f":"RETURN()","v":true},{"$f":"RETURN()","v":true},{"$f":"RETURN()","v":true},{"$f":"RETURN()","v":true},{"$f":"RETURN()","v":true},{"$f":"RETURN()","v":true},{"$f":"RETURN()","v":true},{"$f":"RETURN()","v":true},{"$f":"RETURN()","v":true},{"$f":"RETURN()","v":true},{"$f":"RETURN()","v":true}]
[null,null,null,null,null,null,null,null,null,null,0.14000000000000001,"Talusia Universal 100",null,null,null,null,null,null,null,null,null,null,null,null,null,null,null,5,10,13,null,null,"Ring 1",null,"S50ME-B",null,{"$f":"DIALOG.BOX(DiaBoxCrownType)","v":3},13,50,35,null,null,"None hard coating",true]
[null,null,null,null,null,null,null,null,null,null,0.15,"Taro Special",null,null,null,null,null,null,null,null,null,null,null,null,null,null,null,5,223,13,null,null,"Ring 2",null,"S50ME-B7",null,{"$f":"SELECT(!$C$43)","v":true},13,null,null,null,null,"Hard coating",false]
[null,null,null,null,null,null,null,null,null,null,0.16,"Taro Special 50",null,null,null,null,null,null,null,null,null,null,null,null,null,null,null,5,435,13,null,null,"Ring 3",null,"S50ME-B8",null,{"$f":"IF((AK153)=FALSE,GOTO(AK157),GOTO(AK156))","v":true},1,338,82,88,null,"OK"]
[null,null,null,null,null,null,null,null,null,null,0.17,"Taro Special HT 100",null,null,null,"½",null,null,null,null,null,null,null,null,null,null,null,5,647,13,null,null,"Ring 4",null,"S50ME-B8.1-TII",null,{"$f":"IF(ISBLANK($AR$123)=(TRUE),FORMULA(\"\"),FORMULA(LEFT($AR$123,8)))","v":true},2,238,82,88,null,"Cancel"]
[null,null,null,null,null,null,null,null,null,null,0.18,"Taro Special HT 55",null,null,null,null,null,null,null,null,null,null,null,null,null,null,null,null,null,null,null,null,null,null,"S50ME-B8.2",null,{"$f":"RETURN()","v":true}]
[null,null,null,null,null,null,null,null,null,null,0.19,"Taro Special HT LS 40",null,null,null,null,null,null,null,null,null,null,null,null,null,null,null,null,null,null,null,null,null,null,"S50ME-B8.2-TII",null,null,null,null,null,null,null,null,null,null,null,null,null,null,null,null,null,null,null,"POP nominal+max dimension (2nd, unit 1)","POP nominal+max dimension (2nd, unit 2)","POP nominal+max dimension (2nd, unit 3)","POP nominal+max dimension (2nd, unit 4)","POP nominal+max dimension (2nd, unit 5)","POP nominal+max dimension (2nd, unit 6)","POP nominal+max dimension (2nd, unit 7)","POP nominal+max dimension (2nd, unit 8)","POP nominal+max dimension (2nd, unit 9)","POP nominal+max dimension (2nd, unit 10)","POP nominal+max dimension (2nd, unit 11)","POP nominal+max dimension (2nd, unit 12)"]
[null,null,null,null,null,null,null,null,null,null,0.2,"Taro Special HT70",null,null,null,null,null,null,null,null,null,null,null,null,null,null,null,null,null,null,null,null,null,null,"S50ME-B8.3",null,null,null,null,null,null,null,null,null,null,null,null,null,null,null,null,null,null,null,{"$f":"ECHO(FALSE)","v":true},{"$f":"ECHO(FALSE)","v":true},{"$f":"ECHO(FALSE)","v":true},true,true,true,true,true,true,true,true,true]
[null,null,null,null,null,null,null,null,null,null,0.21,"Texas Texmarine 700",null,null,null,null,null,null,null,null,null,null,null,null,null,null,"CoatingLowerSide",null,null,null,null,null,null,null,"S50ME-B8.3-TII",null,null,null,null,null,null,null,null,null,null,null,null,null,null,null,null,null,null,null,{"$f":"PROTECT.DOCUMENT(FALSE,,\"opera\",FALSE)","v":true},{"$f":"PROTECT.DOCUMENT(FALSE,,\"opera\",FALSE)","v":true},{"$f":"PROTECT.DOCUMENT(FALSE,,\"opera\",FALSE)","v":true},true,true,true,true,true,true,true,true,true]
[null,null,null,null,null,null,null,null,null,null,0.22,"Universal Hi-Tech Marine EN7050",null,null,null,null,null,null,null,null,null,null,null,null,null,null,{"$f":"ECHO(FALSE)","v":true},null,null,null,null,null,null,null,"S50ME-B9",null,null,null,null,null,null,null,null,null,null,null,null,null,null,null,null,null,null,null,{"$f":"SELECT('Condition Monitoring Report'!E41:E42)","v":true},{"$f":"SELECT('Condition Monitoring Report'!F41:F42)","v":true},{"$f":"SELECT('Condition Monitoring Report'!G41:G42)","v":true},{"$f":"SELECT('Condition Monitoring Report'!H41:H42)","v":true},{"$f":"SELECT('Condition Monitoring Report'!I41:I42)","v":true},{"$f":"SELECT('Condition Monitoring Report'!J41:J42)","v":true},{"$f":"SELECT('Condition Monitoring Report'!K41:K42)","v":true},{"$f":"SELECT('Condition Monitoring Report'!L41:L42)","v":true},{"$f":"SELECT('Condition Monitoring Report'!M41:M42)","v":true},{"$f":"SELECT('Condition Monitoring Report'!N41:N42)","v":true},{"$f":"SELECT('Condition Monitoring Report'!O41:O42)","v":true},{"$f":"SELECT('Condition Monitoring Report'!P41:P42)","v":true}]
[null,null,null,null,null,null,null,null,null,null,0.23,null,null,null,null,null,null,null,null,null,null,null,null,null,null,null,{"$f":"DIALOG.BOX(DiaBoxCoatingLowerSide)","v":9},null,null,null,866,212,"Coating Lower Side",null,"S50ME-B9.1-TII",null,null,null,null,null,null,null,null,null,null,null,null,null,null,null,null,null,null,null,{"$f":"CLEAR()","v":true},{"$f":"CLEAR()","v":true},{"$f":"CLEAR()","v":true},{"$f":"CLEAR()","v":true},{"$f":"CLEAR()","v":true},{"$f":"CLEAR()","v":true},{"$f":"CLEAR()","v":true},{"$f":"CLEAR()","v":true},{"$f":"CLEAR()","v":true},{"$f":"CLEAR()","v":true},{"$f":"CLEAR()","v":true},{"$f":"CLEAR()","v":true}]
[null,null,null,null,null,null,null,null,null,null,0.24,null,null,null,null,null,null,null,null,null,null,null,null,null,null,null,{"$f":"SELECT(!$F$30)","v":true},6,10,28,205,18,null,"Chrome","S50ME-B9.2",null,null,null,null,null,null,null,null,null,null,null,null,null,null,null,null,null,null,null,{"$f":"SELECT('Condition Monitoring Report'!Q33)","v":true},{"$f":"SELECT('Condition Monitoring Report'!R33)","v":true},{"$f":"SELECT('Condition Monitoring Report'!S33)","v":true},{"$f":"SELECT('Condition Monitoring Report'!T33)","v":true},{"$f":"SELECT('Condition Monitoring Report'!U33)","v":true},{"$f":"SELECT('Condition Monitoring Report'!V33)","v":true},{"$f":"SELECT('Condition Monitoring Report'!W33)","v":true},{"$f":"SELECT('Condition Monitoring Report'!X33)","v":true},{"$f":"SELECT('Condition Monitoring Report'!Y33)","v":true},{"$f":"SELECT('Condition Monitoring Report'!Z33)","v":true},{"$f":"SELECT('Condition Monitoring Report'!AA33)","v":true},{"$f":"SELECT('Condition Monitoring Report'!AB33)","v":true}]
[null,null,null,null,null,null,null,null,null,null,0.25,null,null,null,null,null,null,null,null,null,null,null,null,null,null,null,{"$f":"IF((AA162)=FALSE,GOTO(AA172),GOTO(AA165))","v":true},22,10,46,205,162,"CoatingLowerSide",1,"S50ME-B9.2-TII",null,null,null,null,null,null,null,null,null,null,null,null,null,null,null,null,null,null,null,{"$f":"CLEAR()","v":true},{"$f":"CLEAR()","v":true},{"$f":"CLEAR()","v":true},{"$f":"CLEAR()","v":true},{"$f":"CLEAR()","v":true},{"$f":"CLEAR()","v":true},{"$f":"CLEAR()","v":true},{"$f":"CLEAR()","v":true},{"$f":"CLEAR()","v":true},{"$f":"CLEAR()","v":true},{"$f":"CLEAR()","v":true},{"$f":"CLEAR()","v":true}]
[null,null,null,null,null,null,null,null,null,null,0.26,null,null,null,null,null,null,null,null,null,null,null,null,null,null,null,{"$f":"IF(ISBLANK(AH163)=(TRUE),FORMULA(\"\"),FORMULA(AH163))","v":true},6,222,28,205,18,null,"Chrome","S50ME-B9.3",null,null,null,null,null,null,null,null,null,null,null,null,null,null,null,null,null,null,null,{"$f":"IF(ISBLANK('Condition Monitoring Report'!$F$3)=(TRUE),ALERT(\"Make an engine selection first\"),GOTO(BC173))","v":true},{"$f":"IF(ISBLANK('Condition Monitoring Report'!$F$3)=(TRUE),ALERT(\"Make an engine selection first\"),GOTO(BD173))","v":true},{"$f":"IF(ISBLANK('Condition Monitoring Report'!$F$3)=(TRUE),ALERT(\"Make an engine selection first\"),GOTO(BE173))","v":true},{"$f":"IF(ISBLANK('Condition Monitoring Report'!$F$3)=(TRUE),ALERT(\"Make an engine selection first\"),GOTO(BF173))","v":true},{"$f":"IF(ISBLANK('Condition Monitoring Report'!$F$3)=(TRUE),ALERT(\"Make an engine selection first\"),GOTO(BG173))","v":true},{"$f":"IF(ISBLANK('Condition Monitoring Report'!$F$3)=(TRUE),ALERT(\"Make an engine selection first\"),GOTO(BH173))","v":true},{"$f":"IF(ISBLANK('Condition Monitoring Report'!$F$3)=(TRUE),ALERT(\"Make an engine selection first\"),GOTO(BI173))","v":true},{"$f":"IF(ISBLANK('Condition Monitoring Report'!$F$3)=(TRUE),ALERT(\"Make an engine selection first\"),GOTO(BJ173))","v":true},{"$f":"IF(ISBLANK('Condition Monitoring Report'!$F$3)=(TRUE),ALERT(\"Make an engine selection first\"),GOTO(BK173))","v":true},{"$f":"IF(ISBLANK('Condition Monitoring Report'!$F$3)=(TRUE),ALERT(\"Make an engine selection first\"),GOTO(BL173))","v":true},{"$f":"IF(ISBLANK('Condition Monitoring Report'!$F$3)=(TRUE),ALERT(\"Make an engine selection first\"),GOTO(BM173))","v":true},{"$f":"IF(ISBLANK('Condition Monitoring Report'!$F$3)=(TRUE),ALERT(\"Make an engine selection first\"),GOTO(BN173))","v":true}]
[null,null,null,null,null,null,null,null,null,null,0.27,null,null,null,null,null,null,null,null,null,null,null,null,null,null,null,{"$f":"SELECT(!$F$31)","v":true},22,222,46,205,180,"CoatingLowerSide",1,"S50ME-B9.3-GI-TII",null,null,null,null,null,null,null,null,null,null,null,null,null,null,null,null,null,null,null,{"$f":"SELECT('Condition Monitoring Report'!Q34)","v":true},{"$f":"SELECT('Condition Monitoring Report'!R34)","v":false},{"$f":"SELECT('Condition Monitoring Report'!S34)","v":false},{"$f":"SELECT('Condition Monitoring Report'!T34)","v":false},{"$f":"SELECT('Condition Monitoring Report'!U34)","v":true},{"$f":"SELECT('Condition Monitoring Report'!V34)","v":true},{"$f":"SELECT('Condition Monitoring Report'!W34)","v":true},{"$f":"SELECT('Condition Monitoring Report'!X34)","v":false},{"$f":"SELECT('Condition Monitoring Report'!Y34)","v":false},{"$f":"SELECT('Condition Monitoring Report'!Z34)","v":true},{"$f":"SELECT('Condition Monitoring Report'!AA34)","v":true},{"$f":"SELECT('Condition Monitoring Report'!AB34)","v":false}]
[null,null,null,null,null,null,null,null,null,null,0.28000000000000003,null,null,null,null,null,null,null,null,null,null,null,null,null,null,null,{"$f":"IF(ISBLANK(AH165)=(TRUE),FORMULA(\"\"),FORMULA(AH165))","v":true},6,435,28,205,18,null,"Chrome","S50ME-B9.3-LGI-TII",null,null,null,null,null,null,null,null,null,null,null,null,null,null,null,null,null,null,null,{"$f":"CLEAR()","v":true},{"$f":"CLEAR()","v":true},{"$f":"CLEAR()","v":true},{"$f":"CLEAR()","v":true},{"$f":"CLEAR()","v":true},{"$f":"CLEAR()","v":true},{"$f":"CLEAR()","v":true},{"$f":"CLEAR()","v":true},{"$f":"CLEAR()","v":true},{"$f":"CLEAR()","v":true},{"$f":"CLEAR()","v":true},{"$f":"CLEAR()","v":true}]
[null,null,null,null,null,null,null,null,null,null,0.28999999999999998,null,null,null,null,null,null,null,null,null,null,null,null,null,null,null,{"$f":"SELECT(!$F$32)","v":true},22,435,46,205,180,"CoatingLowerSide",1,"S50ME-B9.3-TII",null,null,null,null,null,null,null,null,null,null,null,null,null,null,null,null,null,null,null,{"$f":"FORMULA.GOTO('Condition Monitoring Report'!$F$3)","v":true},{"$f":"FORMULA.GOTO('Condition Monitoring Report'!$F$3)","v":true},{"$f":"FORMULA.GOTO('Condition Monitoring Report'!$F$3)","v":true},{"$f":"FORMULA.GOTO('Condition Monitoring Report'!$F$3)","v":true},{"$f":"FORMULA.GOTO('Condition Monitoring Report'!$F$3)","v":true},{"$f":"FORMULA.GOTO('Condition Monitoring Report'!$F$3)","v":true},{"$f":"FORMULA.GOTO('Condition Monitoring Report'!$F$3)","v":true},{"$f":"FORMULA.GOTO('Condition Monitoring Report'!$F$3)","v":true},{"$f":"FORMULA.GOTO('Condition Monitoring Report'!$F$3)","v":true},{"$f":"FORMULA.GOTO('Condition Monitoring Report'!$F$3)","v":true},{"$f":"FORMULA.GOTO('Condition Monitoring Report'!$F$3)","v":true},{"$f":"FORMULA.GOTO('Condition Monitoring Report'!$F$3)","v":true}]
[null,null,null,null,null,null,null,null,null,null,0.3,null,null,null,null,null,null,null,null,null,null,null,null,null,null,null,{"$f":"IF(ISBLANK(AH167)=(TRUE),FORMULA(\"\"),FORMULA(AH167))","v":true},6,647,28,205,18,null,"Chrome","S50ME-B9.3-TII",null,null,null,null,null,null,null,null,null,null,null,null,null,null,null,null,null,null,null,{"$f":"VSCROLL(1,TRUE)","v":true},{"$f":"VSCROLL(1,TRUE)","v":true},{"$f":"VSCROLL(1,TRUE)","v":true},true,true,true,true,true,true,true,true,true]
[null,null,null,null,null,null,null,null,null,null,0.31,null,null,null,null,null,null,null,null,null,null,null,null,null,null,null,{"$f":"SELECT(!$F$33)","v":true},22,647,46,205,180,"CoatingLowerSide",1,"S50ME-B9.5-GI-TII",null,null,null,null,null,null,null,null,null,null,null,null,null,null,null,null,null,null,null,{"$f":"HSCROLL(1,TRUE)","v":true},{"$f":"HSCROLL(1,TRUE)","v":true},{"$f":"HSCROLL(1,TRUE)","v":true},true,true,true,true,true,true,true,true,true]
[null,null,null,null,null,null,null,null,null,null,0.32,null,null,null,null,null,null,null,null,null,null,null,null,null,null,null,{"$f":"IF(ISBLANK(AH169)=(TRUE),FORMULA(\"\"),FORMULA(AH169))","v":true},1,762,183,88,null,"OK",null,"S50ME-B9.5-TII",null,null,null,null,null,null,null,null,null,null,null,null,null,null,null,null,null,null,null,{"$f":"PROTECT.DOCUMENT(TRUE,,\"opera\",TRUE)","v":true},{"$f":"PROTECT.DOCUMENT(TRUE,,\"opera\",TRUE)","v":true},{"$f":"PROTECT.DOCUMENT(TRUE,,\"opera\",TRUE)","v":true},true,true,true,true,true,true,true,true,true]
[null,null,null,null,null,null,null,null,null,null,0.33,null,null,null,null,null,null,null,null,null,null,null,null,null,null,null,{"$f":"RETURN()","v":true},2,664,183,88,null,"Cancel",null,"S50ME-C",null,null,null,null,null,null,null,null,null,null,null,null,null,null,null,null,null,null,null,{"$f":"RETURN()","v":true},{"$f":"RETURN()","v":true},{"$f":"RETURN()","v":true},{"$f":"RETURN()","v":true},{"$f":"RETURN()","v":true},{"$f":"RETURN()","v":true},{"$f":"RETURN()","v":true},{"$f":"RETURN()","v":true},{"$f":"RETURN()","v":true},{"$f":"RETURN()","v":true},{"$f":"RETURN()","v":true},{"$f":"RETURN()","v":true}]
[null,null,null,null,null,null,null,null,null,null,0.34,null,null,null,null,null,null,null,null,null,null,null,null,null,null,null,null,5,10,13,null,null,"Ring 1",null,"S50ME-C7",null,null,null,null,null,null,null,null,null,null,null,null,null,null,null,null,null,null,null,{"$f":"ACTIVATE(\"Condition Monitoring Report\")","v":true},{"$f":"ACTIVATE(\"Condition Monitoring Report\")","v":true},{"$f":"ACTIVATE(\"Condition Monitoring Report\")","v":true},true,true,true,true,true,true,true,true,true]
[null,null,null,null,null,null,null,null,null,null,0.35,null,null,null,null,null,null,null,null,null,null,null,null,null,null,null,null,5,223,13,null,null,"Ring 2",null,"S50ME-C8",null,null,null,null,null,null,null,null,null,null,null,null,null,null,null,null,null,null,null,{"$f":"IF(AND('Condition Monitoring Report'!Q33=FALSE,'Condition Monitoring Report'!Q34=FALSE),GOTO(BC175),GOTO(BC181))","v":true},{"$f":"IF(AND('Condition Monitoring Report'!R33=FALSE,'Condition Monitoring Report'!R34=FALSE),GOTO(BD175),GOTO(BD181))","v":true},{"$f":"IF(AND('Condition Monitoring Report'!S33=FALSE,'Condition Monitoring Report'!S34=FALSE),GOTO(BE175),GOTO(BE181))","v":true},{"$f":"IF(AND('Condition Monitoring Report'!T33=FALSE,'Condition Monitoring Report'!T34=FALSE),GOTO(BF175),GOTO(BF181))","v":true},{"$f":"IF(AND('Condition Monitoring Report'!U33=FALSE,'Condition Monitoring Report'!U34=FALSE),GOTO(BG175),GOTO(BG181))","v":true},{"$f":"IF(AND('Condition Monitoring Report'!V33=FALSE,'Condition Monitoring Report'!V34=FALSE),GOTO(BH175),GOTO(BH181))","v":true},{"$f":"IF(AND('Condition Monitoring Report'!W33=FALSE,'Condition Monitoring Report'!W34=FALSE),GOTO(BI175),GOTO(BI181))","v":true},{"$f":"IF(AND('Condition Monitoring Report'!X33=FALSE,'Condition Monitoring Report'!X34=FALSE),GOTO(BJ175),GOTO(BJ181))","v":true},{"$f":"IF(AND('Condition Monitoring Report'!Y33=FALSE,'Condition Monitoring Report'!Y34=FALSE),GOTO(BK175),GOTO(BK181))","v":true},{"$f":"IF(AND('Condition Monitoring Report'!Z33=FALSE,'Condition Monitoring Report'!Z34=FALSE),GOTO(BL175),GOTO(BL181))","v":true},{"$f":"IF(AND('Condition Monitoring Report'!AA33=FALSE,'Condition Monitoring Report'!AA34=FALSE),GOTO(BM175),GOTO(BM181))","v":true},{"$f":"IF(AND('Condition Monitoring Report'!AB33=FALSE,'Condition Monitoring Report'!AB34=FALSE),GOTO(BN175),GOTO(BN181))","v":true}]
[null,null,null,null,null,null,null,null,null,null,0.36,null,null,null,null,null,null,null,null,null,null,null,null,null,null,null,null,5,435,13,null,null,"Ring 3",null,"S50ME-C8.1",null,null,null,null,null,null,null,null,null,null,null,null,null,null,null,null,null,null,null,{"$f":"SELECT('Condition Monitoring Report'!E41)","v":true},{"$f":"SELECT('Condition Monitoring Report'!F41)","v":true},{"$f":"SELECT('Condition Monitoring Report'!G41)","v":true},{"$f":"SELECT('Condition Monitoring Report'!H41)","v":true},{"$f":"SELECT('Condition Monitoring Report'!I41)","v":true},{"$f":"SELECT('Condition Monitoring Report'!J41)","v":true},{"$f":"SELECT('Condition Monitoring Report'!K41)","v":true},{"$f":"SELECT('Condition Monitoring Report'!L41)","v":true},{"$f":"SELECT('Condition Monitoring Report'!M41)","v":true},{"$f":"SELECT('Condition Monitoring Report'!N41)","v":true},{"$f":"SELECT('Condition Monitoring Report'!O41)","v":true},{"$f":"SELECT('Condition Monitoring Report'!P41)","v":true}]
[null,null,null,null,null,null,null,null,null,null,0.37,null,null,null,null,null,null,null,null,null,null,null,null,null,null,null,null,5,647,13,null,null,"Ring 4",null,"S50ME-C8.1-GI-TII",null,null,null,null,null,null,null,null,null,null,null,null,null,null,null,null,null,null,null,{"$f":"CLEAR()","v":true},{"$f":"CLEAR()","v":true},{"$f":"CLEAR()","v":true},{"$f":"CLEAR()","v":true},{"$f":"CLEAR()","v":true},{"$f":"CLEAR()","v":true},{"$f":"CLEAR()","v":true},{"$f":"CLEAR()","v":true},{"$f":"CLEAR()","v":true},{"$f":"CLEAR()","v":true},{"$f":"CLEAR()","v":true},{"$f":"CLEAR()","v":true}]
[null,null,null,null,null,null,null,null,null,null,0.38,null,null,null,null,null,null,null,null,null,null,null,null,null,null,null,null,null,null,null,null,null,null,null,"S50ME-C8.1-TII",null,null,null,null,null,null,null,null,null,null,null,null,null,null,null,null,null,null,null,{"$f":"SELECT('Condition Monitoring Report'!E42)","v":true},{"$f":"SELECT('Condition Monitoring Report'!F42)","v":true},{"$f":"SELECT('Condition Monitoring Report'!G42)","v":true},{"$f":"SELECT('Condition Monitoring Report'!H42)","v":true},{"$f":"SELECT('Condition Monitoring Report'!I42)","v":true},{"$f":"SELECT('Condition Monitoring Report'!J42)","v":true},{"$f":"SELECT('Condition Monitoring Report'!K42)","v":true},{"$f":"SELECT('Condition Monitoring Report'!L42)","v":true},{"$f":"SELECT('Condition Monitoring Report'!M42)","v":true},{"$f":"SELECT('Condition Monitoring Report'!N42)","v":true},{"$f":"SELECT('Condition Monitoring Report'!O42)","v":true},{"$f":"SELECT('Condition Monitoring Report'!P42)","v":true}]
[null,null,null,null,null,null,null,null,null,null,0.39,null,null,null,null,null,null,null,null,null,null,null,null,null,null,null,null,null,null,null,null,null,null,null,"S50ME-C8.2",null,null,null,null,null,null,null,null,null,null,null,null,null,null,null,null,null,null,null,{"$f":"CLEAR()","v":true},{"$f":"CLEAR()","v":true},{"$f":"CLEAR()","v":true},{"$f":"CLEAR()","v":true},{"$f":"CLEAR()","v":true},{"$f":"CLEAR()","v":true},{"$f":"CLEAR()","v":true},{"$f":"CLEAR()","v":true},{"$f":"CLEAR()","v":true},{"$f":"CLEAR()","v":true},{"$f":"CLEAR()","v":true},{"$f":"CLEAR()","v":true}]
[null,null,null,null,null,null,null,null,null,null,0.4,null,null,null,null,null,null,null,null,null,null,null,null,null,null,null,null,null,null,null,null,null,null,null,"S50ME-C8.2-GI",null,null,null,null,null,null,null,null,null,null,null,null,null,null,null,null,null,null,null,{"$f":"PROTECT.DOCUMENT(TRUE,,\"opera\",TRUE)","v":true},{"$f":"PROTECT.DOCUMENT(TRUE,,\"opera\",TRUE)","v":true},{"$f":"PROTECT.DOCUMENT(TRUE,,\"opera\",TRUE)","v":true},true,true,true,true,true,true,true,true,true]
[null,null,null,null,null,null,null,null,null,null,0.41,null,null,null,null,null,null,null,null,null,null,null,null,null,null,null,null,null,null,null,null,null,null,null,"S50ME-C8.2-GI-T2",null,null,null,null,null,null,null,null,null,null,null,null,null,null,null,null,null,null,null,{"$f":"RETURN()","v":true},{"$f":"RETURN()","v":true},{"$f":"RETURN()","v":true},{"$f":"RETURN()","v":true},{"$f":"RETURN()","v":true},{"$f":"RETURN()","v":true},{"$f":"RETURN()","v":true},{"$f":"RETURN()","v":true},{"$f":"RETURN()","v":true},{"$f":"RETURN()","v":true},{"$f":"RETURN()","v":true},{"$f":"RETURN()","v":true}]
[null,null,null,null,null,null,null,null,null,null,0.42,null,null,null,null,null,null,null,null,null,null,null,null,null,null,null,null,null,null,null,null,null,null,null,"S50ME-C8.2-GI-TII",null,null,null,null,null,null,null,null,null,null,null,null,null,null,null,null,null,null,null,{"$f":"VLOOKUP(MID('Condition Monitoring Report'!$F$3,2,2),TypePOPvalues,2)","v":3},{"$f":"VLOOKUP(MID('Condition Monitoring Report'!$F$3,2,2),TypePOPvalues,2)","v":3},{"$f":"VLOOKUP(MID('Condition Monitoring Report'!$F$3,2,2),TypePOPvalues,2)","v":3},{"$f":"VLOOKUP(MID('Condition Monitoring Report'!$F$3,2,2),TypePOPvalues,2)","v":3},{"$f":"VLOOKUP(MID('Condition Monitoring Report'!$F$3,2,2),TypePOPvalues,2)","v":3},{"$f":"VLOOKUP(MID('Condition Monitoring Report'!$F$3,2,2),TypePOPvalues,2)","v":3},{"$f":"VLOOKUP(MID('Condition Monitoring Report'!$F$3,2,2),TypePOPvalues,2)","v":3},{"$f":"VLOOKUP(MID('Condition Monitoring Report'!$F$3,2,2),TypePOPvalues,2)","v":3},{"$f":"VLOOKUP(MID('Condition Monitoring Report'!$F$3,2,2),TypePOPvalues,2)","v":3},{"$f":"VLOOKUP(MID('Condition Monitoring Report'!$F$3,2,2),TypePOPvalues,2)","v":3},{"$f":"VLOOKUP(MID('Condition Monitoring Report'!$F$3,2,2),TypePOPvalues,2)","v":3},{"$f":"VLOOKUP(MID('Condition Monitoring Report'!$F$3,2,2),TypePOPvalues,2)","v":3}]
[null,null,null,null,null,null,null,null,null,null,0.43,null,null,null,null,null,null,null,null,null,null,null,null,null,null,null,null,null,null,null,870,212,"Ring Type",null,"S50ME-C8.2-TII",null,null,null,null,null,null,null,null,null,null,null,null,null,null,null,null,null,null,null,{"$f":"SELECT('Condition Monitoring Report'!E41)","v":true},{"$f":"SELECT('Condition Monitoring Report'!F41)","v":true},{"$f":"SELECT('Condition Monitoring Report'!G41)","v":true},{"$f":"SELECT('Condition Monitoring Report'!H41)","v":true},{"$f":"SELECT('Condition Monitoring Report'!I41)","v":true},{"$f":"SELECT('Condition Monitoring Report'!J41)","v":true},{"$f":"SELECT('Condition Monitoring Report'!K41)","v":true},{"$f":"SELECT('Condition Monitoring Report'!L41)","v":true},{"$f":"SELECT('Condition Monitoring Report'!M41)","v":true},{"$f":"SELECT('Condition Monitoring Report'!N41)","v":true},{"$f":"SELECT('Condition Monitoring Report'!O41)","v":true},{"$f":"SELECT('Condition Monitoring Report'!P41)","v":true}]
[null,null,null,null,null,null,null,null,null,null,0.44,null,null,null,null,null,null,null,null,null,null,null,null,null,null,null,null,6,10,28,205,18,null,"High","S50ME-C8.2-TIII",null,null,null,null,null,null,null,null,null,null,null,null,null,null,null,null,null,null,null,{"$f":"FORMULA(BC181)","v":true},{"$f":"FORMULA(BD181)","v":true},{"$f":"FORMULA(BE181)","v":true},{"$f":"FORMULA(BF181)","v":true},{"$f":"FORMULA(BG181)","v":true},{"$f":"FORMULA(BH181)","v":true},{"$f":"FORMULA(BI181)","v":true},{"$f":"FORMULA(BJ181)","v":true},{"$f":"FORMULA(BK181)","v":true},{"$f":"FORMULA(BL181)","v":true},{"$f":"FORMULA(BM181)","v":true},{"$f":"FORMULA(BN181)","v":true}]
[null,null,null,null,null,null,null,null,null,null,0.45,null,null,null,null,null,null,null,null,null,null,null,null,null,null,null,null,22,10,46,205,144,"RingType",1,"S50ME-C8.5-TII",null,null,null,null,null,null,null,null,null,null,null,null,null,null,null,null,null,null,null,{"$f":"VLOOKUP(MID('Condition Monitoring Report'!$F$3,2,2),TypePOPvalues,4)","v":10},{"$f":"VLOOKUP(MID('Condition Monitoring Report'!$F$3,2,2),TypePOPvalues,4)","v":9},{"$f":"VLOOKUP(MID('Condition Monitoring Report'!$F$3,2,2),TypePOPvalues,4)","v":9},{"$f":"VLOOKUP(MID('Condition Monitoring Report'!$F$3,2,2),TypePOPvalues,4)","v":9},{"$f":"VLOOKUP(MID('Condition Monitoring Report'!$F$3,2,2),TypePOPvalues,4)","v":10},{"$f":"VLOOKUP(MID('Condition Monitoring Report'!$F$3,2,2),TypePOPvalues,4)","v":10},{"$f":"VLOOKUP(MID('Condition Monitoring Report'!$F$3,2,2),TypePOPvalues,4)","v":10},{"$f":"VLOOKUP(MID('Condition Monitoring Report'!$F$3,2,2),TypePOPvalues,4)","v":9},{"$f":"VLOOKUP(MID('Condition Monitoring Report'!$F$3,2,2),TypePOPvalues,4)","v":9},{"$f":"VLOOKUP(MID('Condition Monitoring Report'!$F$3,2,2),TypePOPvalues,4)","v":10},{"$f":"VLOOKUP(MID('Condition Monitoring Report'!$F$3,2,2),TypePOPvalues,4)","v":10},{"$f":"VLOOKUP(MID('Condition Monitoring Report'!$F$3,2,2),TypePOPvalues,4)","v":9}]
[null,null,null,null,null,null,null,null,null,null,0.46,null,null,null,null,null,null,null,null,null,null,null,null,null,null,null,null,6,222,28,205,18,null,"High","S50ME-T9",null,null,null,null,null,null,null,null,null,null,null,null,null,null,null,null,null,null,null,{"$f":"SELECT('Condition Monitoring Report'!E42)","v":true},{"$f":"SELECT('Condition Monitoring Report'!F42)","v":true},{"$f":"SELECT('Condition Monitoring Report'!G42)","v":true},{"$f":"SELECT('Condition Monitoring Report'!H42)","v":true},{"$f":"SELECT('Condition Monitoring Report'!I42)","v":true},{"$f":"SELECT('Condition Monitoring Report'!J42)","v":true},{"$f":"SELECT('Condition Monitoring Report'!K42)","v":true},{"$f":"SELECT('Condition Monitoring Report'!L42)","v":true},{"$f":"SELECT('Condition Monitoring Report'!M42)","v":true},{"$f":"SELECT('Condition Monitoring Report'!N42)","v":true},{"$f":"SELECT('Condition Monitoring Report'!O42)","v":true},{"$f":"SELECT('Condition Monitoring Report'!P42)","v":true}]
[null,null,null,null,null,null,null,null,null,null,0.47,null,null,null,null,null,null,null,null,null,null,null,null,null,null,null,null,22,222,46,205,162,"RingType",1,"S60MC",null,null,null,null,null,null,null,null,null,null,null,null,null,null,null,null,null,null,null,{"$f":"FORMULA(BC184)","v":true},{"$f":"FORMULA(BD184)","v":true},{"$f":"FORMULA(BE184)","v":true},{"$f":"FORMULA(BF184)","v":true},{"$f":"FORMULA(BG184)","v":true},{"$f":"FORMULA(BH184)","v":true},{"$f":"FORMULA(BI184)","v":true},{"$f":"FORMULA(BJ184)","v":true},{"$f":"FORMULA(BK184)","v":true},{"$f":"FORMULA(BL184)","v":true},{"$f":"FORMULA(BM184)","v":true},{"$f":"FORMULA(BN184)","v":true}]
[null,null,null,null,null,null,null,null,null,null,0.48,null,null,null,null,null,null,null,null,null,null,null,null,null,null,null,null,6,435,28,205,18,null,"Low","S60MC-C",null,null,null,null,null,null,null,null,null,null,null,null,null,null,null,null,null,null,null,{"$f":"SELECT(!$F$3)","v":true},{"$f":"SELECT(!$F$3)","v":true},{"$f":"SELECT(!$F$3)","v":true},{"$f":"SELECT(!$F$3)","v":true},{"$f":"SELECT(!$F$3)","v":true},{"$f":"SELECT(!$F$3)","v":true},{"$f":"SELECT(!$F$3)","v":true},{"$f":"SELECT(!$F$3)","v":true},{"$f":"SELECT(!$F$3)","v":true},{"$f":"SELECT(!$F$3)","v":true},{"$f":"SELECT(!$F$3)","v":true},{"$f":"SELECT(!$F$3)","v":true}]
[null,null,null,null,null,null,null,null,null,null,0.49,null,null,null,null,null,null,null,null,null,null,null,null,null,null,null,null,22,435,46,205,162,"RingType",2,"S60MCE",null,null,null,null,null,null,null,null,null,null,null,null,null,null,null,null,null,null,null,{"$f":"PROTECT.DOCUMENT(TRUE,,\"opera\",TRUE)","v":true},{"$f":"PROTECT.DOCUMENT(TRUE,,\"opera\",TRUE)","v":true},{"$f":"PROTECT.DOCUMENT(TRUE,,\"opera\",TRUE)","v":true},true,true,true,true,true,true,true,true,true]
[null,null,null,null,null,null,null,null,null,null,0.5,null,null,null,null,null,null,null,null,null,null,null,null,null,null,null,null,6,647,28,205,18,null,"Low","S60ME6",null,null,null,null,null,null,null,null,null,null,null,null,null,null,null,null,null,null,null,{"$f":"RETURN()","v":true},{"$f":"RETURN()","v":true},{"$f":"RETURN()","v":true},{"$f":"RETURN()","v":true},{"$f":"RETURN()","v":true},{"$f":"RETURN()","v":true},{"$f":"RETURN()","v":true},{"$f":"RETURN()","v":true},{"$f":"RETURN()","v":true},{"$f":"RETURN()","v":true},{"$f":"RETURN()","v":true},{"$f":"RETURN()","v":true}]
[null,null,null,null,null,null,null,null,null,null,0.51,null,null,null,null,null,null,null,null,null,null,null,null,null,null,null,null,22,647,46,205,162,"RingType",2,"S60ME-B8"]
[null,null,null,null,null,null,null,null,null,null,0.52,null,null,null,null,null,null,null,null,null,null,null,null,null,null,null,null,1,764,183,88,null,"OK",null,"S60ME-B8.2"]
[null,null,null,null,null,null,null,null,null,null,0.53,null,null,null,null,null,null,null,null,null,null,null,null,null,null,null,null,2,666,183,88,null,"Cancel",null,"S60ME-B8.2-TII"]
[null,null,null,null,null,null,null,null,null,null,0.54,null,null,null,null,null,null,null,null,null,null,null,null,null,null,null,null,5,10,13,null,null,"Ring 1",null,"S60ME-B8.3"]
[null,null,null,null,null,null,null,null,null,null,0.55000000000000004,null,null,null,null,null,null,null,null,null,null,null,null,null,null,null,null,5,223,13,null,null,"Ring 2",null,"S60ME-B8.3-TII"]
[null,null,null,null,null,null,null,null,null,null,0.56000000000000005,null,null,null,null,null,null,null,null,null,null,null,null,null,null,null,null,5,435,13,null,null,"Ring 3",null,"S60ME-C"]
[null,null,null,null,null,null,null,null,null,null,0.56999999999999995,null,null,null,null,null,null,null,null,null,null,null,null,null,null,null,null,5,647,13,null,null,"Ring 4",null,"S60ME-C7"]
[null,null,null,null,null,null,null,null,null,null,0.57999999999999996,null,null,null,null,null,null,null,null,null,null,null,null,null,null,null,null,null,null,null,null,null,null,null,"S60ME-C7.1"]
[null,null,null,null,null,null,null,null,null,null,0.59,null,null,null,null,null,null,null,null,null,null,null,null,null,null,null,null,null,null,null,null,null,null,null,"S60ME-C7.1-TII"]
[null,null,null,null,null,null,null,null,null,null,0.6,null,null,null,null,null,null,null,null,null,null,null,null,null,null,null,null,null,null,null,null,null,null,null,"S60ME-C8"]
[null,null,null,null,null,null,null,null,null,null,null,null,null,null,null,null,null,null,null,null,null,null,null,null,null,null,null,null,null,null,null,null,null,null,"S60ME-C8.1-GI-T2"]
[null,null,null,null,null,null,null,null,null,null,null,null,null,null,null,null,null,null,null,null,null,null,null,null,null,null,null,null,null,null,null,null,null,null,"S60ME-C8.1-TII"]
[null,null,null,null,null,null,null,null,null,null,null,null,null,null,null,null,null,null,null,null,null,null,null,null,null,null,null,null,null,null,null,null,null,null,"S60ME-C8.2"]
[null,null,null,null,null,null,null,null,null,null,null,null,null,null,null,null,null,null,null,null,null,null,null,null,null,null,null,null,null,null,null,null,null,null,"S60ME-C8.2-GI-T2"]
[null,null,null,null,null,null,null,null,null,null,null,null,null,null,null,null,null,null,null,null,null,null,null,null,null,null,null,null,null,null,null,null,null,null,"S60ME-C8.2-TII"]
[null,null,null,null,null,null,null,null,null,null,null,null,null,null,null,null,null,null,null,null,null,null,null,null,null,null,null,null,null,null,null,null,null,null,"S60ME-C8.2-TIII"]
[null,null,null,null,null,null,null,null,null,null,null,null,null,null,null,null,null,null,null,null,null,null,null,null,null,null,null,null,null,null,null,null,null,null,"S60ME-C8.5-TII"]
[null,null,null,null,null,null,null,null,null,null,null,null,null,null,null,null,null,null,null,null,null,null,null,null,null,null,null,null,null,null,null,null,null,null,"S60ME-C8-TII"]
[null,null,null,null,null,null,null,null,null,null,null,null,null,null,null,null,null,null,null,null,null,null,null,null,null,null,null,null,null,null,null,null,null,null,"S60ME-GI7"]
[null,null,null,null,null,null,null,null,null,null,null,null,null,null,null,null,null,null,null,null,null,null,null,null,null,null,null,null,null,null,null,null,null,null,"S60ME-GI8"]
[null,null,null,null,null,null,null,null,null,null,null,null,null,null,null,null,null,null,null,null,null,null,null,null,null,null,null,null,null,null,null,null,null,null,"S65MC-C"]
[null,null,null,null,null,null,null,null,null,null,null,null,null,null,null,null,null,null,null,null,null,null,null,null,null,null,null,null,null,null,null,null,null,null,"S65MC-C8"]
[null,null,null,null,null,null,null,null,null,null,null,null,null,null,null,null,null,null,null,null,null,null,null,null,null,null,null,null,null,null,null,null,null,null,"S65MC-C8.2"]
[null,null,null,null,null,null,null,null,null,null,null,null,null,null,null,null,null,null,null,null,null,null,null,null,null,null,null,null,null,null,null,null,null,null,"S65ME-C"]
[null,null,null,null,null,null,null,null,null,null,null,null,null,null,null,null,null,null,null,null,null,null,null,null,null,null,null,null,null,null,null,null,null,null,"S65ME-C7"]
[null,null,null,null,null,null,null,null,null,null,null,null,null,null,null,null,null,null,null,null,null,null,null,null,null,null,null,null,null,null,null,null,null,null,"S65ME-C8"]
[null,null,null,null,null,null,null,null,null,null,null,null,null,null,null,null,null,null,null,null,null,null,null,null,null,null,null,null,null,null,null,null,null,null,"S65ME-C8.1-GI-T2"]
[null,null,null,null,null,null,null,null,null,null,null,null,null,null,null,null,null,null,null,null,null,null,null,null,null,null,null,null,null,null,null,null,null,null,"S65ME-C8.1-TII"]
[null,null,null,null,null,null,null,null,null,null,null,null,null,null,null,null,null,null,null,null,null,null,null,null,null,null,null,null,null,null,null,null,null,null,"S65ME-C8.2"]
[null,null,null,null,null,null,null,null,null,null,null,null,null,null,null,null,null,null,null,null,null,null,null,null,null,null,null,null,null,null,null,null,null,null,"S65ME-C8.2-GI-T2"]
[null,null,null,null,null,null,null,null,null,null,null,null,null,null,null,null,null,null,null,null,null,null,null,null,null,null,null,null,null,null,null,null,null,null,"S65ME-C8.2-TII"]
[null,null,null,null,null,null,null,null,null,null,null,null,null,null,null,null,null,null,null,null,null,null,null,null,null,null,null,null,null,null,null,null,null,null,"S65ME-GI8"]
[null,null,null,null,null,null,null,null,null,null,null,null,null,null,null,null,null,null,null,null,null,null,null,null,null,null,null,null,null,null,null,null,null,null,"S70MC"]
[null,null,null,null,null,null,null,null,null,null,null,null,null,null,null,null,null,null,null,null,null,null,null,null,null,null,null,null,null,null,null,null,null,null,"S70MC-C"]
[null,null,null,null,null,null,null,null,null,null,null,null,null,null,null,null,null,null,null,null,null,null,null,null,null,null,null,null,null,null,null,null,null,null,"S70MCE"]
[null,null,null,null,null,null,null,null,null,null,null,null,null,null,null,null,null,null,null,null,null,null,null,null,null,null,null,null,null,null,null,null,null,null,"S70ME-C"]
[null,null,null,null,null,null,null,null,null,null,null,null,null,null,null,null,null,null,null,null,null,null,null,null,null,null,null,null,null,null,null,null,null,null,"S70ME-C7"]
[null,null,null,null,null,null,null,null,null,null,null,null,null,null,null,null,null,null,null,null,null,null,null,null,null,null,null,null,null,null,null,null,null,null,"S70ME-C7.1-GI-TII"]
[null,null,null,null,null,null,null,null,null,null,null,null,null,null,null,null,null,null,null,null,null,null,null,null,null,null,null,null,null,null,null,null,null,null,"S70ME-C7.1-TII"]
[null,null,null,null,null,null,null,null,null,null,null,null,null,null,null,null,null,null,null,null,null,null,null,null,null,null,null,null,null,null,null,null,null,null,"S70ME-C8"]
[null,null,null,null,null,null,null,null,null,null,null,null,null,null,null,null,null,null,null,null,null,null,null,null,null,null,null,null,null,null,null,null,null,null,"S70ME-C8.1"]
[null,null,null,null,null,null,null,null,null,null,null,null,null,null,null,null,null,null,null,null,null,null,null,null,null,null,null,null,null,null,null,null,null,null,"S70ME-C8.1-GI-T2"]
[null,null,null,null,null,null,null,null,null,null,null,null,null,null,null,null,null,null,null,null,null,null,null,null,null,null,null,null,null,null,null,null,null,null,"S70ME-C8.1-TII"]
[null,null,null,null,null,null,null,null,null,null,null,null,null,null,null,null,null,null,null,null,null,null,null,null,null,null,null,null,null,null,null,null,null,null,"S70ME-C8.2"]
[null,null,null,null,null,null,null,null,null,null,null,null,null,null,null,null,null,null,null,null,null,null,null,null,null,null,null,null,null,null,null,null,null,null,"S70ME-C8.2-GI-T2"]
[null,null,null,null,null,null,null,null,null,null,null,null,null,null,null,null,null,null,null,null,null,null,null,null,null,null,null,null,null,null,null,null,null,null,"S70ME-C8.2-GI-TII"]
[null,null,null,null,null,null,null,null,null,null,null,null,null,null,null,null,null,null,null,null,null,null,null,null,null,null,null,null,null,null,null,null,null,null,"S70ME-C8.2-TII"]
[null,null,null,null,null,null,null,null,null,null,null,null,null,null,null,null,null,null,null,null,null,null,null,null,null,null,null,null,null,null,null,null,null,null,"S70ME-C8.5-TII"]
[null,null,null,null,null,null,null,null,null,null,null,null,null,null,null,null,null,null,null,null,null,null,null,null,null,null,null,null,null,null,null,null,null,null,"S70ME-GI7"]
[null,null,null,null,null,null,null,null,null,null,null,null,null,null,null,null,null,null,null,null,null,null,null,null,null,null,null,null,null,null,null,null,null,null,"S70ME-GI8"]
[null,null,null,null,null,null,null,null,null,null,null,null,null,null,null,null,null,null,null,null,null,null,null,null,null,null,null,null,null,null,null,null,null,null,"S80MC"]
[null,null,null,null,null,null,null,null,null,null,null,null,null,null,null,null,null,null,null,null,null,null,null,null,null,null,null,null,null,null,null,null,null,null,"S80MC-C"]
[null,null,null,null,null,null,null,null,null,null,null,null,null,null,null,null,null,null,null,null,null,null,null,null,null,null,null,null,null,null,null,null,null,null,"S80MCE"]
[null,null,null,null,null,null,null,null,null,null,null,null,null,null,null,null,null,null,null,null,null,null,null,null,null,null,null,null,null,null,null,null,null,null,"S80ME-C"]
[null,null,null,null,null,null,null,null,null,null,null,null,null,null,null,null,null,null,null,null,null,null,null,null,null,null,null,null,null,null,null,null,null,null,"S80ME-C7"]
[null,null,null,null,null,null,null,null,null,null,null,null,null,null,null,null,null,null,null,null,null,null,null,null,null,null,null,null,null,null,null,null,null,null,"S80ME-C8"]
[null,null,null,null,null,null,null,null,null,null,null,null,null,null,null,null,null,null,null,null,null,null,null,null,null,null,null,null,null,null,null,null,null,null,"S80ME-C8.1-TII"]
[null,null,null,null,null,null,null,null,null,null,null,null,null,null,null,null,null,null,null,null,null,null,null,null,null,null,null,null,null,null,null,null,null,null,"S80ME-C8.2"]
[null,null,null,null,null,null,null,null,null,null,null,null,null,null,null,null,null,null,null,null,null,null,null,null,null,null,null,null,null,null,null,null,null,null,"S80ME-C8.2-GI-T2"]
[null,null,null,null,null,null,null,null,null,null,null,null,null,null,null,null,null,null,null,null,null,null,null,null,null,null,null,null,null,null,null,null,null,null,"S80ME-C8.2-TII"]
[null,null,null,null,null,null,null,null,null,null,null,null,null,null,null,null,null,null,null,null,null,null,null,null,null,null,null,null,null,null,null,null,null,null,"S80ME-C9"]
[null,null,null,null,null,null,null,null,null,null,null,null,null,null,null,null,null,null,null,null,null,null,null,null,null,null,null,null,null,null,null,null,null,null,"S80ME-C9.1-TII"]
[null,null,null,null,null,null,null,null,null,null,null,null,null,null,null,null,null,null,null,null,null,null,null,null,null,null,null,null,null,null,null,null,null,null,"S80ME-C9.2"]
[null,null,null,null,null,null,null,null,null,null,null,null,null,null,null,null,null,null,null,null,null,null,null,null,null,null,null,null,null,null,null,null,null,null,"S80ME-C9.2-GI-T2"]
[null,null,null,null,null,null,null,null,null,null,null,null,null,null,null,null,null,null,null,null,null,null,null,null,null,null,null,null,null,null,null,null,null,null,"S80ME-C9.2-TII"]
[null,null,null,null,null,null,null,null,null,null,null,null,null,null,null,null,null,null,null,null,null,null,null,null,null,null,null,null,null,null,null,null,null,null,"S80ME-C9.2-TIII"]
[null,null,null,null,null,null,null,null,null,null,null,null,null,null,null,null,null,null,null,null,null,null,null,null,null,null,null,null,null,null,null,null,null,null,"S80ME-C9.4"]
[null,null,null,null,null,null,null,null,null,null,null,null,null,null,null,null,null,null,null,null,null,null,null,null,null,null,null,null,null,null,null,null,null,null,"S80ME-C9.4-TII"]
[null,null,null,null,null,null,null,null,null,null,null,null,null,null,null,null,null,null,null,null,null,null,null,null,null,null,null,null,null,null,null,null,null,null,"S90MC-C"]
[null,null,null,null,null,null,null,null,null,null,null,null,null,null,null,null,null,null,null,null,null,null,null,null,null,null,null,null,null,null,null,null,null,null,"S90MC-T"]
[null,null,null,null,null,null,null,null,null,null,null,null,null,null,null,null,null,null,null,null,null,null,null,null,null,null,null,null,null,null,null,null,null,null,"S90ME-C"]
[null,null,null,null,null,null,null,null,null,null,null,null,null,null,null,null,null,null,null,null,null,null,null,null,null,null,null,null,null,null,null,null,null,null,"S90ME-C10.2-TII"]
[null,null,null,null,null,null,null,null,null,null,null,null,null,null,null,null,null,null,null,null,null,null,null,null,null,null,null,null,null,null,null,null,null,null,"S90ME-C10.5-GI-TII"]
[null,null,null,null,null,null,null,null,null,null,null,null,null,null,null,null,null,null,null,null,null,null,null,null,null,null,null,null,null,null,null,null,null,null,"S90ME-C10.5-TII"]
[null,null,null,null,null,null,null,null,null,null,null,null,null,null,null,null,null,null,null,null,null,null,null,null,null,null,null,null,null,null,null,null,null,null,"S90ME-C7"]
[null,null,null,null,null,null,null,null,null,null,null,null,null,null,null,null,null,null,null,null,null,null,null,null,null,null,null,null,null,null,null,null,null,null,"S90ME-C8"]
[null,null,null,null,null,null,null,null,null,null,null,null,null,null,null,null,null,null,null,null,null,null,null,null,null,null,null,null,null,null,null,null,null,null,"S90ME-C8.1-TII"]
[null,null,null,null,null,null,null,null,null,null,null,null,null,null,null,null,null,null,null,null,null,null,null,null,null,null,null,null,null,null,null,null,null,null,"S90ME-C8.2"]
[null,null,null,null,null,null,null,null,null,null,null,null,null,null,null,null,null,null,null,null,null,null,null,null,null,null,null,null,null,null,null,null,null,null,"S90ME-C8.2-TII"]
[null,null,null,null,null,null,null,null,null,null,null,null,null,null,null,null,null,null,null,null,null,null,null,null,null,null,null,null,null,null,null,null,null,null,"S90ME-C9"]
[null,null,null,null,null,null,null,null,null,null,null,null,null,null,null,null,null,null,null,null,null,null,null,null,null,null,null,null,null,null,null,null,null,null,"S90ME-C9.1"]
[null,null,null,null,null,null,null,null,null,null,null,null,null,null,null,null,null,null,null,null,null,null,null,null,null,null,null,null,null,null,null,null,null,null,"S90ME-C9.2"]
[null,null,null,null,null,null,null,null,null,null,null,null,null,null,null,null,null,null,null,null,null,null,null,null,null,null,null,null,null,null,null,null,null,null,"S90ME-C9.2-TII"]

{"sheet":"Condition Monitoring Report","index":2,"n_rows":321,"n_cols":37,"rows_kept":321,"cut":false,"hidden":false,"merged":[[43,0,43,1],[44,0,44,3],[38,0,38,1],[30,16,31,27],[17,16,17,18],[17,24,17,27],[17,19,17,22],[28,16,28,18],[28,19,28,22],[28,24,28,27],[43,4,43,15],[57,4,57,15],[108,24,109,24],[113,24,114,24],[32,0,33,3],[56,0,56,3],[46,21,46,22],[47,21,47,22],[40,16,40,28],[47,19,47,20],[34,0,34,1],[35,0,35,1],[36,0,36,1],[37,0,37,1],[47,0,47,3],[45,0,45,3],[61,0,61,3],[46,23,46,24],[46,19,46,20],[68,1,69,15],[59,0,59,3],[62,0,62,1],[58,0,58,3],[62,4,62,15],[60,0,60,3],[86,18,86,19],[91,24,92,24],[96,24,97,24],[79,20,80,21],[81,20,82,21],[31,0,31,3],[0,0,0,15],[2,13,2,14],[3,5,3,6],[3,10,3,11],[20,4,20,15],[20,0,20,1],[25,0,25,1],[27,0,27,1],[21,0,22,3],[35,16,35,17],[18,0,18,3],[305,16,305,19],[305,20,305,21],[19,16,20,27],[19,0,19,1],[28,0,28,1],[46,0,46,3],[30,0,30,3],[26,0,26,1],[23,0,23,1],[57,0,57,1],[24,0,24,1],[39,0,39,1],[41,0,41,3],[42,0,42,3]]}
["Condition Monitoring Report (Port inspection)",null,null,null,null,null,null,null,null,null,null,null,null,null,null,null,null,null,null,null,null,null,null,null,null,"Version number:","1.0.0.0"]
["Vessel:",{"$f":"IF(ISBLANK('Cylinder Condition Report'!B2)=TRUE,\"\",'Cylinder Condition Report'!B2)","v":""},null,null,null,"IMO no:",{"$f":"IF(ISBLANK('Cylinder Condition Report'!G2)=TRUE,\"\",'Cylinder Condition Report'!G2)","v":""},"Eng. builder:",null,{"$f":"IF(ISBLANK('Cylinder Condition Report'!J2)=TRUE,\"\",'Cylinder Condition Report'!J2)","v":""},"Eng. no.:",null,{"$f":"IF(ISBLANK('Cylinder Condition Report'!M2)=TRUE,\"\",'Cylinder Condition Report'!M2)","v":""},"Checked by:",null,{"$f":"IF(ISBLANK('Cylinder Condition Report'!P2)=TRUE,\"\",'Cylinder Condition Report'!P2)","v":""}]
["No. of cylinders:",null,{"$f":"IF(ISBLANK('Cylinder Condition Report'!C3)=TRUE,\"\",'Cylinder Condition Report'!C3)","v":""},"Eng. type:",null,null,null,null,"Eng. hrs.:",null,{"$f":"IF(ISBLANK('Cylinder Condition Report'!J3)=TRUE,\"\",'Cylinder Condition Report'!J3)","v":""},"Date (yyyy-mm-dd):",null,{"$f":"IF(ISBLANK('Cylinder Condition Report'!M3)=TRUE,\"\",'Cylinder Condition Report'!M3)","v":""}]
["Hours since last inspection:"]
["Voyage info"]
["Normal engine load %:",null,null,{"$f":"IF(ISBLANK('Cylinder Condition Report'!L4)=TRUE,\"\",'Cylinder Condition Report'!L4)","v":""},"Lub. control:",null,{"$f":"IF(ISBLANK('Cylinder Condition Report'!G5)=TRUE,\"\",'Cylinder Condition Report'!G5)","v":""},"Lubricator:",null,null,{"$f":"IF(ISBLANK('Cylinder Condition Report'!L5)=TRUE,\"\",'Cylinder Condition Report'!L5)","v":""},"ACC factor:",null,{"$f":"IF(ISBLANK('Cylinder Condition Report'!O5)=TRUE,\"\",'Cylinder Condition Report'!O5)","v":""},"Sulph. %:",{"$f":"IF(ISBLANK('Cylinder Condition Report'!P6)=TRUE,\"\",'Cylinder Condition Report'!P6)","v":""}]
["Cyl. oil type:",null,null,null,null,{"$f":"IF(ISBLANK('Cylinder Condition Report'!F6)=TRUE,\"\",'Cylinder Condition Report'!F6)","v":""},"Cyl. oil cons. (l/24 hrs):",null,null,{"$f":"IF(ISBLANK('Cylinder Condition Report'!J6)=TRUE,\"\",'Cylinder Condition Report'!J6)","v":""},"at load %",{"$f":"IF(ISBLANK('Cylinder Condition Report'!M6)=TRUE,\"\",'Cylinder Condition Report'!M6)","v":""},"Min. feed rate, g/kWh:",null,null,{"$f":"IF(ISBLANK('Cylinder Condition Report'!D5)=TRUE,\"\",'Cylinder Condition Report'!D5)","v":""}]
["Piston Rings"]
[]
[]
[]
[]
[]
[]
[]
[]
[]
[null,null,null,null,null,null,null,null,null,null,null,null,null,null,null,null,"Top ring measurement",null,null,"Top ring measurement",null,null,null,null,"Top ring measurement"]
["Cylinder No.",null,null,null,1,2,3,4,5,6,7,8,9,10,11,12,1,2,3,4,5,6,7,8,9,10,11,12]
["Ring hours",null,null,null,null,null,null,null,null,null,null,null,null,null,null,null,"Below entries according to tickmarks for CL and POP objects cell E22 to P23. True = ticked, False or blank = unticked. Used for various code/actions which depends on user choise on CL or POP."]
[null,null,null,null,"Leakage grooves"]
["Top ring measurement",null,null,null,"CL    ","CL    ","CL    ","CL    ","CL    ","CL    ","CL    ","CL    ","CL    ","CL    ","CL    ","CL    "]
[null,null,null,null,"POP ","POP ","POP ","POP ","POP ","POP ","POP ","POP ","POP ","POP ","POP ","POP "]
["Coating type"]
["No. of CL grooves"]
["Leakage groove 1 (mm)"]
["Leakage groove 2 (mm)"]
["Leakage groove 3 (mm)"]
["Remaining round, Y/N",null,null,null,null,null,null,null,null,null,null,null,null,null,null,null,"2nd ring measurement",null,null,"2nd ring measurement",null,null,null,null,"2nd ring measurement"]
["Nominal dimension (mm)",null,null,null,null,null,null,null,null,null,null,null,null,null,null,null,1,2,3,4,5,6,7,8,9,10,11,12]
["Min/max. dimension (mm)",null,null,null,null,null,null,null,null,null,null,null,null,null,null,null,"Below entries according to tickmarks for CL and POP objects cell E33 to P34. True = ticked, False or blank = unticked. Used for various code/actions which depends on user choise on CL or POP."]
["Wear rate (mm/1000 ring hours)",null,null,null,{"$f":"IF(OR(ISBLANK(E26)=TRUE,ISBLANK(E20)=TRUE),\"\",(IF(Q22=TRUE,(E30-AVERAGE(E26:E28))/E20*1000,IF(Q23=TRUE,(E30-AVERAGE(E26:E28))/E20*1000*-1,\"\"))))","v":""},{"$f":"IF(OR(ISBLANK(F26)=TRUE,ISBLANK(F20)=TRUE),\"\",(IF(R22=TRUE,(F30-AVERAGE(F26:F28))/F20*1000,IF(R23=TRUE,(F30-AVERAGE(F26:F28))/F20*1000*-1,\"\"))))","v":""},"","","","","","","","","",""]
["2nd ring measurement",null,null,null,"CL    ","CL    ","CL    ","CL    ","CL    ","CL    ","CL    ","CL    ","CL    ","CL    ","CL    ","CL    "]
[null,null,null,null,"POP ","POP ","POP ","POP ","POP ","POP ","POP ","POP ","POP ","POP ","POP ","POP "]
["Coating type"]
["No. of CL grooves",null,null,null,null,null,null,null,null,null,null,null,null,null,null,null,"Groove clearance measuring position"]
["Leakage groove 1 (mm)",null,null,null,null,null,null,null,null,null,null,null,null,null,null,null,"Exhaust:",false]
["Leakage groove 2 (mm)",null,null,null,null,null,null,null,null,null,null,null,null,null,null,null,"Maneouvre:"]
["Leakage groove 3 (mm)"]
["Remaining round, Y/N"]
["Nominal dimension (mm)",null,null,null,null,null,null,null,null,null,null,null,null,null,null,null,"Piston Ring Wear - CL/POP GRAPH"]
["Min/max. dimension (mm)",null,null,null,null,null,null,null,null,null,null,null,null,null,null,null,"General X values for horisont. curves","Hrs. since LO = 0","Hrs. since LO+1000"]
["Wear rate (mm/1000 ring hours)",null,null,null,{"$f":"IF(OR(ISBLANK(E37)=TRUE,ISBLANK(E20)=TRUE),\"\",(IF(Q33=TRUE,(E41-AVERAGE(E37:E39))/E20*1000,IF(Q34=TRUE,(E41-AVERAGE(E37:E39))/E20*1000*-1,\"\"))))","v":""},{"$f":"IF(OR(ISBLANK(F37)=TRUE,ISBLANK(F20)=TRUE),\"\",(IF(R33=TRUE,(F41-AVERAGE(F37:F39))/F20*1000,IF(R34=TRUE,(F41-AVERAGE(F37:F39))/F20*1000*-1,\"\"))))","v":""},"","","","","","","","","","","General X for POP nom + max curves",{"$f":"IF(R46=-10,-10,0)","v":-10},{"$f":"IF(R48=-10,-10,R48+1000)","v":-10},"Graf CL Min at 0","Graf CL Min at LO+50","Graf CL Nom. Dim. at 0","Graf CL Nom. Dim. at LO+50","Graf POP Max at 0","Graf POP Max at LO+50","Graf POP Nom. Dim. at 0","Graf POP Nom. Dim. at LO+50","Graf POP pt. A (= nom. at 1000 hrs + 0.6)","Graf POP pt. B (= max. dim. at overh. int.)"]
[null,null,null,null,"Piston rings",null,null,null,null,null,null,null,null,null,null,null,"General X for CL nom + min curves",{"$f":"IF(R50=-10,-10,0)","v":-10},{"$f":"IF(R52=-10,-10,R52+1000)","v":-10},{"$f":"IF(OR($Q$22=TRUE,$R$22=TRUE,$S$22=TRUE,$T$22=TRUE,$U$22=TRUE,$V$22=TRUE,$W$22=TRUE,$X$22=TRUE,$Y$22=TRUE,$Z$22=TRUE,$AA$22=TRUE,$AB$22=TRUE,$Q$33=TRUE,$R$33=TRUE,$S$33=TRUE,$T$33=TRUE,$U$33=TRUE,$V$33=TRUE,$W$33=TRUE,$X$33=TRUE,$Y$33=TRUE,$Z$33=TRUE,$AA$33=TRUE,$AB$33=TRUE),VLOOKUP(MID('Condition Monitoring Report'!$F$3,2,2),TypeCLvalues,4),\"\")","v":""},{"$f":"IF(OR($Q$22=TRUE,$R$22=TRUE,$S$22=TRUE,$T$22=TRUE,$U$22=TRUE,$V$22=TRUE,$W$22=TRUE,$X$22=TRUE,$Y$22=TRUE,$Z$22=TRUE,$AA$22=TRUE,$AB$22=TRUE,$Q$33=TRUE,$R$33=TRUE,$S$33=TRUE,$T$33=TRUE,$U$33=TRUE,$V$33=TRUE,$W$33=TRUE,$X$33=TRUE,$Y$33=TRUE,$Z$33=TRUE,$AA$33=TRUE,$AB$33=TRUE),VLOOKUP(MID('Condition Monitoring Report'!$F$3,2,2),TypeCLvalues,4),\"\")","v":""},{"$f":"IF(OR($Q$22=TRUE,$R$22=TRUE,$S$22=TRUE,$T$22=TRUE,$U$22=TRUE,$V$22=TRUE,$W$22=TRUE,$X$22=TRUE,$Y$22=TRUE,$Z$22=TRUE,$AA$22=TRUE,$AB$22=TRUE,$Q$33=TRUE,$R$33=TRUE,$S$33=TRUE,$T$33=TRUE,$U$33=TRUE,$V$33=TRUE,$W$33=TRUE,$X$33=TRUE,$Y$33=TRUE,$Z$33=TRUE,$AA$33=TRUE,$AB$33=TRUE),VLOOKUP(MID('Condition Monitoring Report'!$F$3,2,2),TypeCLvalues,2),\"\")","v":""},{"$f":"IF(OR($Q$22=TRUE,$R$22=TRUE,$S$22=TRUE,$T$22=TRUE,$U$22=TRUE,$V$22=TRUE,$W$22=TRUE,$X$22=TRUE,$Y$22=TRUE,$Z$22=TRUE,$AA$22=TRUE,$AB$22=TRUE,$Q$33=TRUE,$R$33=TRUE,$S$33=TRUE,$T$33=TRUE,$U$33=TRUE,$V$33=TRUE,$W$33=TRUE,$X$33=TRUE,$Y$33=TRUE,$Z$33=TRUE,$AA$33=TRUE,$AB$33=TRUE),VLOOKUP(MID('Condition Monitoring Report'!$F$3,2,2),TypeCLvalues,2),\"\")","v":""},{"$f":"IF(OR($Q$23=TRUE,$R$23=TRUE,$S$23=TRUE,$T$23=TRUE,$U$23=TRUE,$V$23=TRUE,$W$23=TRUE,$X$23=TRUE,$Y$23=TRUE,$Z$23=TRUE,$AA$23=TRUE,$AB$23=TRUE,$Q$34=TRUE,$R$34=TRUE,$S$34=TRUE,$T$34=TRUE,$U$34=TRUE,$V$34=TRUE,$W$34=TRUE,$X$34=TRUE,$Y$34=TRUE,$Z$34=TRUE,$AA$34=TRUE,$AB$34=TRUE),VLOOKUP(MID('Condition Monitoring Report'!$F$3,2,2),TypePOPvalues,4),\"\")","v":""},{"$f":"IF(OR($Q$23=TRUE,$R$23=TRUE,$S$23=TRUE,$T$23=TRUE,$U$23=TRUE,$V$23=TRUE,$W$23=TRUE,$X$23=TRUE,$Y$23=TRUE,$Z$23=TRUE,$AA$23=TRUE,$AB$23=TRUE,$Q$34=TRUE,$R$34=TRUE,$S$34=TRUE,$T$34=TRUE,$U$34=TRUE,$V$34=TRUE,$W$34=TRUE,$X$34=TRUE,$Y$34=TRUE,$Z$34=TRUE,$AA$34=TRUE,$AB$34=TRUE),VLOOKUP(MID('Condition Monitoring Report'!$F$3,2,2),TypePOPvalues,4),\"\")","v":""},{"$f":"IF(OR($Q$23=TRUE,$R$23=TRUE,$S$23=TRUE,$T$23=TRUE,$U$23=TRUE,$V$23=TRUE,$W$23=TRUE,$X$23=TRUE,$Y$23=TRUE,$Z$23=TRUE,$AA$23=TRUE,$AB$23=TRUE,$Q$34=TRUE,$R$34=TRUE,$S$34=TRUE,$T$34=TRUE,$U$34=TRUE,$V$34=TRUE,$W$34=TRUE,$X$34=TRUE,$Y$34=TRUE,$Z$34=TRUE,$AA$34=TRUE,$AB$34=TRUE),VLOOKUP(MID('Condition Monitoring Report'!$F$3,2,2),TypePOPvalues,2),\"\")","v":""},{"$f":"IF(OR($Q$23=TRUE,$R$23=TRUE,$S$23=TRUE,$T$23=TRUE,$U$23=TRUE,$V$23=TRUE,$W$23=TRUE,$X$23=TRUE,$Y$23=TRUE,$Z$23=TRUE,$AA$23=TRUE,$AB$23=TRUE,$Q$34=TRUE,$R$34=TRUE,$S$34=TRUE,$T$34=TRUE,$U$34=TRUE,$V$34=TRUE,$W$34=TRUE,$X$34=TRUE,$Y$34=TRUE,$Z$34=TRUE,$AA$34=TRUE,$AB$34=TRUE),VLOOKUP(MID('Condition Monitoring Report'!$F$3,2,2),TypePOPvalues,2),\"\")","v":""}]
["Coating thickness ring 1 (1/1000 mm)",null,null,null,null,null,null,null,null,null,null,null,null,null,null,null,"POP reference","X","Y",null,null,null,null,null,null,null,null,{"$f":"IF(Z44=\"\",\"\",Z44+0.6)","v":""}]
["Coating thickness ring 2 (1/1000 mm)",null,null,null,null,null,null,null,null,null,null,null,null,null,null,null,"POP (pt. 0 hrs)",{"$f":"IF(Z44=\"\",-10,0)","v":-10},{"$f":"IF(Z44=\"\",-10,Z44)","v":-10},null,null,null,null,null,null,null,null,null,{"$f":"IF(X44=\"\",\"\",X44)","v":""}]
["Coating thickness ring 3 (1/1000 mm)",null,null,null,null,null,null,null,null,null,null,null,null,null,null,null,"POP (pt. A) at firm 1000 hours:",{"$f":"IF(AB45=\"\",-10,1000)","v":-10},{"$f":"IF(AB45=\"\",-10,AB45)","v":-10},"CL reference curve points",null,"CL reference curve points",null,"Nominel CL references for 90+98 hard-coat"]
["Coating thickness ring 4 (1/1000 mm)",null,null,null,null,null,null,null,null,null,null,null,null,null,null,null,"POP (pt. B)",{"$f":"IF(AC46=\"\",-10,VLOOKUP(LEFT($F$3,20),$Q$89:$R$304,2))","v":-10},{"$f":"IF(AC46=\"\",-10,AC46)","v":-10},"for 90 hard-coat",null,"for 98 hard-coat",null,"Graf CL Nom. 90 Hard at 0","Graf CL Nom. 90 Hard+50"]
["Ring grooves & Piston crown",null,null,null,null,null,null,null,null,null,null,null,null,null,null,null,"CL reference","X","Y","X","Y","X","Y",{"$f":"IF(AND(MID(F3,2,2)=\"90\",OR($Q$22=TRUE,$R$22=TRUE,$S$22=TRUE,$T$22=TRUE,$U$22=TRUE,$V$22=TRUE,$W$22=TRUE,$X$22=TRUE,$Y$22=TRUE,$Z$22=TRUE,$AA$22=TRUE,$AB$22=TRUE,$Q$33=TRUE,$R$33=TRUE,$S$33=TRUE,$T$33=TRUE,$U$33=TRUE,$V$33=TRUE,$W$33=TRUE,$X$33=TRUE,$Y$33=TRUE,$Z$33=TRUE,$AA$33=TRUE,$AB$33=TRUE)),VLOOKUP(MID('Condition Monitoring Report'!$F$3,2,2),TypeCLvalues,3),\"\")","v":""},{"$f":"IF(AND(MID(F3,2,2)=\"90\",OR($Q$22=TRUE,$R$22=TRUE,$S$22=TRUE,$T$22=TRUE,$U$22=TRUE,$V$22=TRUE,$W$22=TRUE,$X$22=TRUE,$Y$22=TRUE,$Z$22=TRUE,$AA$22=TRUE,$AB$22=TRUE,$Q$33=TRUE,$R$33=TRUE,$S$33=TRUE,$T$33=TRUE,$U$33=TRUE,$V$33=TRUE,$W$33=TRUE,$X$33=TRUE,$Y$33=TRUE,$Z$33=TRUE,$AA$33=TRUE,$AB$33=TRUE)),VLOOKUP(MID('Condition Monitoring Report'!$F$3,2,2),TypeCLvalues,3),\"\")","v":""}]
[null,null,null,null,null,null,null,null,null,null,null,null,null,null,null,null,"CL (pt. 0 hrs)",{"$f":"IF(V44=\"\",-10,0)","v":-10},{"$f":"IF(V44=\"\",-10,V44)","v":-10},{"$f":"IF(X49=\"\",-10,0)","v":-10},{"$f":"IF(X49=\"\",-10,X49)","v":-10},{"$f":"IF(X51=\"\",-10,0)","v":-10},{"$f":"IF(X51=\"\",-10,X51)","v":-10},"Graf CL Nom. 98 Hard at 0","Graf CL Nom. 98 Hard+50"]
[null,null,null,null,null,null,null,null,null,null,null,null,null,null,null,null,"CL (pt. C) at firm 1000 hours:",{"$f":"IF(V44=\"\",-10,1000)","v":-10},{"$f":"IF(V44=\"\",-10,V44-0.3)","v":-10},{"$f":"IF(X49=\"\",-10,1000)","v":-10},{"$f":"IF(X49=\"\",-10,X49-0.3)","v":-10},{"$f":"IF(X51=\"\",-10,1000)","v":-10},{"$f":"IF(X51=\"\",-10,X51-0.3)","v":-10},{"$f":"IF(AND(MID(F3,2,2)=\"98\",OR($Q$22=TRUE,$R$22=TRUE,$S$22=TRUE,$T$22=TRUE,$U$22=TRUE,$V$22=TRUE,$W$22=TRUE,$X$22=TRUE,$Y$22=TRUE,$Z$22=TRUE,$AA$22=TRUE,$AB$22=TRUE,$Q$33=TRUE,$R$33=TRUE,$S$33=TRUE,$T$33=TRUE,$U$33=TRUE,$V$33=TRUE,$W$33=TRUE,$X$33=TRUE,$Y$33=TRUE,$Z$33=TRUE,$AA$33=TRUE,$AB$33=TRUE)),VLOOKUP(MID('Condition Monitoring Report'!$F$3,2,2),TypeCLvalues,3),\"\")","v":""},{"$f":"IF(AND(MID(F3,2,2)=\"98\",OR($Q$22=TRUE,$R$22=TRUE,$S$22=TRUE,$T$22=TRUE,$U$22=TRUE,$V$22=TRUE,$W$22=TRUE,$X$22=TRUE,$Y$22=TRUE,$Z$22=TRUE,$AA$22=TRUE,$AB$22=TRUE,$Q$33=TRUE,$R$33=TRUE,$S$33=TRUE,$T$33=TRUE,$U$33=TRUE,$V$33=TRUE,$W$33=TRUE,$X$33=TRUE,$Y$33=TRUE,$Z$33=TRUE,$AA$33=TRUE,$AB$33=TRUE)),VLOOKUP(MID('Condition Monitoring Report'!$F$3,2,2),TypeCLvalues,3),\"\")","v":""}]
[null,"Ring groove clearance, H",null,null,null,null,null,null,null,"Piston crown burning",null,null,null,null,null,null,"CL (pt. D)",{"$f":"IF(U44=\"\",-10,VLOOKUP(LEFT($F$3,20),$Q$89:$R$304,2))","v":-10},{"$f":"IF(U44=\"\",-10,U44)","v":-10},{"$f":"IF(X49=\"\",-10,IF(U44=\"\",-10,VLOOKUP(LEFT($F$3,7),$Q$89:$R$304,2)))","v":-10},{"$f":"IF(X49=\"\",-10,U44)","v":-10},{"$f":"IF(X51=\"\",-10,IF(U44=\"\",-10,VLOOKUP(LEFT($F$3,7),$Q$89:$R$304,2)))","v":-10},{"$f":"IF(X51=\"\",-10,U44)","v":-10}]
[null,"Measured at Exhaust side (Exh.)",null,null,null,null,null,null,null,"Measuring positions to be",null,null,null,null,null,null,"(X pt. = run hours) Y points = :","Average CL value","Average POP value","X=run hrs, Y=:","Ave. CL, 2nd ring","Ave. POP, 2nd ring"]
[null,"or Manoeuvre side (Man.)",null,null,null,null,null,null,null,"indicated in degrees (0° - 360°)",null,null,null,null,null,null,"Unit 1",{"$f":"IF(AND($Q$22=TRUE,ISBLANK($E$26)=(FALSE)),AVERAGE($E$26:$E$28),-10)","v":-10},{"$f":"IF(AND($Q$23=TRUE,ISBLANK($E$26)=(FALSE)),AVERAGE($E$26:$E$28),-10)","v":-10},"Unit 1",{"$f":"IF(AND($Q$33=TRUE,ISBLANK($E$37)=(FALSE)),AVERAGE($E$37:$E$39),-10)","v":-10},{"$f":"IF(AND($Q$34=TRUE,ISBLANK($E$37)=(FALSE)),AVERAGE($E$37:$E$39),-10)","v":-10}]
[null,null,null,null,null,null,null,null,null,null,null,null,null,null,null,null,"Unit 2",{"$f":"IF(AND($R$22=TRUE,ISBLANK($F$26)=(FALSE)),AVERAGE($F$26:$F$28),-10)","v":-10},{"$f":"IF(AND($R$23=TRUE,ISBLANK($F$26)=(FALSE)),AVERAGE($F$26:$F$28),-10)","v":-10},"Unit 2",{"$f":"IF(AND($R$33=TRUE,ISBLANK($F$37)=(FALSE)),AVERAGE($F$37:$F$39),-10)","v":-10},{"$f":"IF(AND($R$34=TRUE,ISBLANK($F$37)=(FALSE)),AVERAGE($F$37:$F$39),-10)","v":-10}]
[null,null,null,null,null,null,null,null,null,null,null,null,null,null,null,null,"Unit 3",{"$f":"IF(AND($S$22=TRUE,ISBLANK($G$26)=(FALSE)),AVERAGE($G$26:$G$28),-10)","v":-10},{"$f":"IF(AND($S$23=TRUE,ISBLANK($G$26)=(FALSE)),AVERAGE($G$26:$G$28),-10)","v":-10},"Unit 3",{"$f":"IF(AND($S$33=TRUE,ISBLANK($G$37)=(FALSE)),AVERAGE($G$37:$G$39),-10)","v":-10},{"$f":"IF(AND($S$34=TRUE,ISBLANK($G$37)=(FALSE)),AVERAGE($G$37:$G$39),-10)","v":-10}]
["Crown hours",null,null,null,null,null,null,null,null,null,null,null,null,null,null,null,"Unit 4",{"$f":"IF(AND($T$22=TRUE,ISBLANK($H$26)=(FALSE)),AVERAGE($H$26:$H$28),-10)","v":-10},{"$f":"IF(AND($T$23=TRUE,ISBLANK($H$26)=(FALSE)),AVERAGE($H$26:$H$28),-10)","v":-10},"Unit 4",{"$f":"IF(AND($T$33=TRUE,ISBLANK($H$37)=(FALSE)),AVERAGE($H$37:$H$39),-10)","v":-10},{"$f":"IF(AND($T$34=TRUE,ISBLANK($H$37)=(FALSE)),AVERAGE($H$37:$H$39),-10)","v":-10}]
["Measuring position:",null,"Exh.:","Man.:","Ring grooves",null,null,null,null,null,null,null,null,null,null,null,"Unit 5",{"$f":"IF(AND($U$22=TRUE,ISBLANK($I$26)=(FALSE)),AVERAGE($I$26:$I$28),-10)","v":-10},{"$f":"IF(AND($U$23=TRUE,ISBLANK($I$26)=(FALSE)),AVERAGE($I$26:$I$28),-10)","v":-10},"Unit 5",{"$f":"IF(AND($U$33=TRUE,ISBLANK($I$37)=(FALSE)),AVERAGE($I$37:$I$39),-10)","v":-10},{"$f":"IF(AND($U$34=TRUE,ISBLANK($I$37)=(FALSE)),AVERAGE($I$37:$I$39),-10)","v":-10}]
["Groove no. 1 clearance (mm)",null,null,null,null,null,null,null,null,null,null,null,null,null,null,null,"Unit 6",{"$f":"IF(AND($V$22=TRUE,ISBLANK($J$26)=(FALSE)),AVERAGE($J$26:$J$28),-10)","v":-10},{"$f":"IF(AND($V$23=TRUE,ISBLANK($J$26)=(FALSE)),AVERAGE($J$26:$J$28),-10)","v":-10},"Unit 6",{"$f":"IF(AND($V$33=TRUE,ISBLANK($J$37)=(FALSE)),AVERAGE($J$37:$J$39),-10)","v":-10},{"$f":"IF(AND($V$34=TRUE,ISBLANK($J$37)=(FALSE)),AVERAGE($J$37:$J$39),-10)","v":-10}]
["Groove no. 2 clearance (mm)",null,null,null,null,null,null,null,null,null,null,null,null,null,null,null,"Unit 7",{"$f":"IF(AND($W$22=TRUE,ISBLANK($K$26)=(FALSE)),AVERAGE($K$26:$K$28),-10)","v":-10},{"$f":"IF(AND($W$23=TRUE,ISBLANK($K$26)=(FALSE)),AVERAGE($K$26:$K$28),-10)","v":-10},"Unit 7",{"$f":"IF(AND($W$33=TRUE,ISBLANK($K$37)=(FALSE)),AVERAGE($K$37:$K$39),-10)","v":-10},{"$f":"IF(AND($W$34=TRUE,ISBLANK($K$37)=(FALSE)),AVERAGE($K$37:$K$39),-10)","v":-10}]
["Groove no. 3 clearance (mm)",null,null,null,null,null,null,null,null,null,null,null,null,null,null,null,"Unit 8",{"$f":"IF(AND($X$22=TRUE,ISBLANK($L$26)=(FALSE)),AVERAGE($L$26:$L$28),-10)","v":-10},{"$f":"IF(AND($X$23=TRUE,ISBLANK($L$26)=(FALSE)),AVERAGE($L$26:$L$28),-10)","v":-10},"Unit 8",{"$f":"IF(AND($X$33=TRUE,ISBLANK($L$37)=(FALSE)),AVERAGE($L$37:$L$39),-10)","v":-10},{"$f":"IF(AND($X$34=TRUE,ISBLANK($L$37)=(FALSE)),AVERAGE($L$37:$L$39),-10)","v":-10}]
["Groove no. 4 clearance (mm)",null,null,null,null,null,null,null,null,null,null,null,null,null,null,null,"Unit 9",{"$f":"IF(AND($Y$22=TRUE,ISBLANK($M$26)=(FALSE)),AVERAGE($M$26:$M$28),-10)","v":-10},{"$f":"IF(AND($Y$23=TRUE,ISBLANK($M$26)=(FALSE)),AVERAGE($M$26:$M$28),-10)","v":-10},"Unit 9",{"$f":"IF(AND($Y$33=TRUE,ISBLANK($M$37)=(FALSE)),AVERAGE($M$37:$M$39),-10)","v":-10},{"$f":"IF(AND($Y$34=TRUE,ISBLANK($M$37)=(FALSE)),AVERAGE($M$37:$M$39),-10)","v":-10}]
[null,null,null,null,"Piston crown",null,null,null,null,null,null,null,null,null,null,null,"Unit 10",{"$f":"IF(AND($Z$22=TRUE,ISBLANK($N$26)=(FALSE)),AVERAGE($N$26:$N$28),-10)","v":-10},{"$f":"IF(AND($Z$23=TRUE,ISBLANK($N$26)=(FALSE)),AVERAGE($N$26:$N$28),-10)","v":-10},"Unit 10",{"$f":"IF(AND($Z$33=TRUE,ISBLANK($N$37)=(FALSE)),AVERAGE($N$37:$N$37),-10)","v":-10},{"$f":"IF(AND($Z$34=TRUE,ISBLANK($N$37)=(FALSE)),AVERAGE($N$37:$N$39),-10)","v":-10}]
["Crown type",null,null,null,null,null,null,null,null,null,null,null,null,null,null,null,"Unit 11",{"$f":"IF(AND($AA$22=TRUE,ISBLANK($O$26)=(FALSE)),AVERAGE($O$26:$O$28),-10)","v":-10},{"$f":"IF(AND($AA$23=TRUE,ISBLANK($O$26)=(FALSE)),AVERAGE($O$26:$O$28),-10)","v":-10},"Unit 11",{"$f":"IF(AND($AA$33=TRUE,ISBLANK($O$37)=(FALSE)),AVERAGE($O$37:$O$39),-10)","v":-10},{"$f":"IF(AND($AA$34=TRUE,ISBLANK($O$37)=(FALSE)),AVERAGE($O$37:$O$39),-10)","v":-10}]
["Top land, height (mm)",null,null,null,null,null,null,null,null,null,null,null,null,null,null,null,"Unit 12",{"$f":"IF(AND($AB$22=TRUE,ISBLANK($P$26)=(FALSE)),AVERAGE($P$26:$P$28),-10)","v":-10},{"$f":"IF(AND($AB$23=TRUE,ISBLANK($P$26)=(FALSE)),AVERAGE($P$26:$P$28),-10)","v":-10},"Unit 12",{"$f":"IF(AND($AB$33=TRUE,ISBLANK($P$37)=(FALSE)),AVERAGE($P$37:$P$39),-10)","v":-10},{"$f":"IF(AND($AB$34=TRUE,ISBLANK($P$37)=(FALSE)),AVERAGE($P$37:$P$39),-10)","v":-10}]
["Piston skirt"]
["Max burning (mm)",null,null,null,null,null,null,null,null,null,null,null,null,null,null,null,"OBS: In the above+below a value of -10 is used whenever data for either CL or POP (or engine type) is not present. This is done in order not"]
["Position (degrees)",null,null,null,null,null,null,null,null,null,null,null,null,null,null,null,"to show any graph lines and/or meas. points for either CL or POP (or coating etc.) if these values are not present. If a default minus value is not "]
["Remarks:",null,null,null,null,null,null,null,null,null,null,null,null,null,null,null,"used, together with fixed x-axis and y-axis minimum = 0.0, both meas. points with Y = 0 and nom/min-max curves are"]
[null,null,null,null,null,null,null,null,null,null,null,null,null,null,null,null,"shown on the x-axis (for Y = 0)."]
[null,null,null,null,null,null,null,null,null,null,null,null,null,null,null,"Rel. 2014-09-22"]
[]
[]
[null,null,null,null,null,null,null,null,null,null,null,null,null,null,null,null,null,null,null,null,"Piston Ring Wear - Coating Graph",null,null,null,"Data conversion from 1/1000 mm to mm - used as Y pt. in Coating graph"]
[null,null,null,null,null,null,null,null,null,null,null,null,null,null,null,null,null,null,null,null,null,null,"X","Y",null,"Unit 1","Unit 2","Unit 3","Unit 4","Unit 5","Unit 6","Unit 7","Unit 8","Unit 9","Unit 10","Unit 11","Unit 12"]
[null,null,null,null,null,null,null,null,null,null,null,null,null,null,null,null,null,null,null,null,"Thick coating, 0 run hours:",null,{"$f":"IF($F$3=\"\",-10,0)","v":-10},{"$f":"IF($F$3=\"\",-10,0.8)","v":-10},"Ring 1",{"$f":"IF(E45=\"\",-10,E45/1000)","v":-10},{"$f":"IF(F45=\"\",-10,F45/1000)","v":-10},-10,-10,-10,-10,-10,-10,-10,-10,-10,-10]
[null,null,null,null,null,null,null,null,null,null,null,null,null,null,null,null,null,null,null,null,"Thin coating, 0 run hours:",null,{"$f":"IF($F$3=\"\",-10,0)","v":-10},{"$f":"IF($F$3=\"\",-10,0.6)","v":-10},"Ring 2",{"$f":"IF(E46=\"\",-10,E46/1000)","v":-10},-10,-10,-10,-10,-10,-10,-10,-10,-10,-10,-10]
[null,null,null,null,null,null,null,null,null,null,null,null,null,null,null,null,null,null,null,null,"Thick coating, 1000 run hours, Pt. A:",null,{"$f":"IF($F$3=\"\",-10,1000)","v":-10},{"$f":"IF($F$3=\"\",-10,0.5)","v":-10},"Ring 3",{"$f":"IF(E47=\"\",-10,E47/1000)","v":-10},-10,-10,-10,-10,-10,-10,-10,-10,-10,-10,-10]
[null,null,null,null,null,null,null,null,null,null,null,null,null,null,null,null,null,null,null,null,"Thin coating, 1000 run hours, Pt. B:",null,{"$f":"IF($F$3=\"\",-10,1000)","v":-10},{"$f":"IF($F$3=\"\",-10,0.3)","v":-10},"Ring 4",{"$f":"IF(E48=\"\",-10,E48/1000)","v":-10},-10,-10,-10,-10,-10,-10,-10,-10,-10,-10,-10]
[null,null,null,null,null,null,null,null,null,null,null,null,null,null,null,null,null,null,null,null,"Thick coating, worn out at X run hours acc. to guiding overhaul table:"]
[null,null,null,null,null,null,null,null,null,null,null,null,null,null,null,null,null,null,null,null,null,null,{"$f":"IF($F$3=\"\",-10,VLOOKUP(LEFT($F$3,20),$Q$89:$R$304,2))","v":-10},{"$f":"IF($F$3=\"\",-10,0)","v":-10}]
[null,null,null,null,null,null,null,null,null,null,null,null,null,null,null,null,null,null,null,null,"Thin coating, worn out at X run hours\n acc. to guiding overhaul table:"]
[null,null,null,null,null,null,null,null,null,null,null,null,null,null,null,null,null,null,null,null,null,null,{"$f":"IF($F$3=\"\",-10,VLOOKUP(LEFT($F$3,20),$Q$89:$R$304,2))","v":-10},{"$f":"IF($F$3=\"\",-10,0)","v":-10}]
[]
[]
[]
[null,null,null,null,null,null,null,null,null,null,null,null,null,null,null,null,"Guiding overhaul intervals SL09-509/SBJ - look up table",null,"Ring Groove Clearance, nom. values",null,null,null,null,null,"Ring Groove Clearance Graph"]
[null,null,null,null,null,null,null,null,null,null,null,null,null,null,null,null,"Engine type","Overhaul hours","Nom.","Max.",null,null,null,null,null,"X","Y"]
[null,null,null,null,null,null,null,null,null,null,null,null,null,null,null,null,"G40ME-B9.2",12000,0.38,0.88]
[null,null,null,null,null,null,null,null,null,null,null,null,null,null,null,null,"G50ME-B9.2",16000,0.38,0.88,null,null,null,null,"Max Ring Groove, 0 run hours",{"$f":"IF($F$3=\"\",-10,0)","v":-10},{"$f":"IF($F$3=\"\",-10,VLOOKUP(LEFT($F$3,20),$Q$89:$T$304,4))","v":-10}]
[null,null,null,null,null,null,null,null,null,null,null,null,null,null,null,null,"G50ME-B9.2-TII",16000,0.38,0.88]
[null,null,null,null,null,null,null,null,null,null,null,null,null,null,null,null,"G50ME-B9.3-TII",16000,0.38,0.88,null,null,null,null,"Max Ring Groove, at X run hours acc. to guid. overhaul+1000"]
[null,null,null,null,null,null,null,null,null,null,null,null,null,null,null,null,"G60ME-C9.2",16000,0.43,0.93,null,null,null,null,null,{"$f":"IF($F$3=\"\",-10,VLOOKUP(LEFT($F$3,20),$Q$89:$R$304,2)+1000)","v":-10},{"$f":"IF($F$3=\"\",-10,AA90)","v":-10}]
[null,null,null,null,null,null,null,null,null,null,null,null,null,null,null,null,"G60ME-C9.2-TII",16000,0.43,0.93]
[null,null,null,null,null,null,null,null,null,null,null,null,null,null,null,null,"G70ME-C9.2",16000,0.43,0.93,null,null,null,null,"Nominel Ring Groove, 0 run hours",{"$f":"IF($F$3=\"\",-10,0)","v":-10},{"$f":"IF($F$3=\"\",-10,VLOOKUP(LEFT($F$3,20),$Q$89:$T$304,3))","v":-10}]
[null,null,null,null,null,null,null,null,null,null,null,null,null,null,null,null,"G80ME-C9.2",24000,0.48,0.98]
[null,null,null,null,null,null,null,null,null,null,null,null,null,null,null,null,"G80ME-C9.2-TII",24000,0.48,0.98,null,null,null,null,"Nominel Ring Groove, at X run hours acc. to guid. overhaul+1000"]
[null,null,null,null,null,null,null,null,null,null,null,null,null,null,null,null,"K50MC-S",16000,0.38,0.88,null,null,null,null,null,{"$f":"IF($F$3=\"\",-10,VLOOKUP(LEFT($F$3,20),$Q$89:$R$304,2)+1000)","v":-10},{"$f":"IF($F$3=\"\",-10,AA95)","v":-10}]
[null,null,null,null,null,null,null,null,null,null,null,null,null,null,null,null,"K60MC",16000,0.43,0.93]
[null,null,null,null,null,null,null,null,null,null,null,null,null,null,null,null,"K60MC-S",16000,0.43,0.93,null,null,null,null,"Reference (K98: top ring only)",{"$f":"IF($F$3=\"\",-10,0)","v":-10},{"$f":"IF($F$3=\"\",-10,AA95)","v":-10}]
[null,null,null,null,null,null,null,null,null,null,null,null,null,null,null,null,"K70MC-S",16000,0.43,0.93,null,null,null,null,"curve",{"$f":"IF($F$3=\"\",-10,Z93)","v":-10},{"$f":"IF($F$3=\"\",-10,AA93)","v":-10}]
[null,null,null,null,null,null,null,null,null,null,null,null,null,null,null,null,"K80MC",16000,0.48,0.98]
[null,null,null,null,null,null,null,null,null,null,null,null,null,null,null,null,"K80MC-C",16000,0.48,0.98]
[null,null,null,null,null,null,null,null,null,null,null,null,null,null,null,null,"K80MCE",16000,0.48,0.98,null,null,null,null,"Ring Groove Clearance Graph"]
[null,null,null,null,null,null,null,null,null,null,null,null,null,null,null,null,"K80MC-S",16000,0.48,0.98,null,null,null,null,"K98 engine type RING 2-4","X","Y"]
[null,null,null,null,null,null,null,null,null,null,null,null,null,null,null,null,"K80ME-C",24000,0.48,0.98]
[null,null,null,null,null,null,null,null,null,null,null,null,null,null,null,null,"K80ME-C6",24000,0.48,0.98,null,null,null,null,"Max Ring Groove, 0 run hours",{"$f":"IF(LEFT($F$3,3)=\"K98\",0,-10)","v":-10},{"$f":"IF(LEFT(F3,3)=\"K98\",VLOOKUP(LEFT($F$3,7),$Q$305:V$318,6),-10)","v":-10}]
[null,null,null,null,null,null,null,null,null,null,null,null,null,null,null,null,"K80ME-C9",24000,0.48,0.98]
[null,null,null,null,null,null,null,null,null,null,null,null,null,null,null,null,"K80ME-C9.1-TII",24000,0.48,0.98,null,null,null,null,"Max Ring Groove, at X run hours acc. to guid. overhaul+1000"]
[null,null,null,null,null,null,null,null,null,null,null,null,null,null,null,null,"K80ME-C9.2",24000,0.48,0.98,null,null,null,null,null,{"$f":"IF(LEFT(F3,3)=\"K98\",VLOOKUP(LEFT($F$3,7),$Q$308:$R$321,2)+1000,-10)","v":-10},{"$f":"IF(LEFT($F$3,3)=\"K98\",AA107,-10)","v":-10}]
[null,null,null,null,null,null,null,null,null,null,null,null,null,null,null,null,"K80ME-C9.2-TII",24000,0.48,0.98]
[null,null,null,null,null,null,null,null,null,null,null,null,null,null,null,null,"K90MC",16000,0.48,0.98,null,null,null,null,"Nominel Ring Groove, 0 run hours",{"$f":"IF(LEFT($F$3,3)=\"K98\",0,-10)","v":-10},{"$f":"IF(LEFT(F3,3)=\"K98\",VLOOKUP(LEFT($F$3,7),$Q$305:V$318,5),-10)","v":-10}]
[null,null,null,null,null,null,null,null,null,null,null,null,null,null,null,null,"K90MC-C",16000,0.48,0.98]
[null,null,null,null,null,null,null,null,null,null,null,null,null,null,null,null,"K90MCE",16000,0.48,0.98,null,null,null,null,"Nominel Ring Groove, at X run hours acc. to guid. overhaul+1000"]
[null,null,null,null,null,null,null,null,null,null,null,null,null,null,null,null,"K90MC-S",16000,0.48,0.98,null,null,null,null,null,{"$f":"IF(LEFT(F3,3)=\"K98\",VLOOKUP(LEFT($F$3,7),$Q$308:$R$321,2)+1000,-10)","v":-10},{"$f":"IF(LEFT($F$3,3)=\"K98\",AA112,-10)","v":-10}]
[null,null,null,null,null,null,null,null,null,null,null,null,null,null,null,null,"K90ME",24000,0.48,0.98]
[null,null,null,null,null,null,null,null,null,null,null,null,null,null,null,null,"K90ME6",24000,0.48,0.98]
[null,null,null,null,null,null,null,null,null,null,null,null,null,null,null,null,"K90ME9",24000,0.48,0.98]
[null,null,null,null,null,null,null,null,null,null,null,null,null,null,null,null,"K90ME-C",24000,0.48,0.98]
[null,null,null,null,null,null,null,null,null,null,null,null,null,null,null,null,"K90ME-C6",24000,0.48,0.98]
[null,null,null,null,null,null,null,null,null,null,null,null,null,null,null,null,"K90ME-C6.1-TII",24000,0.48,0.98]
[null,null,null,null,null,null,null,null,null,null,null,null,null,null,null,null,"K90ME-C9",24000,0.48,0.98]
[null,null,null,null,null,null,null,null,null,null,null,null,null,null,null,null,"K98MC",16000,0.6,1.05]
[null,null,null,null,null,null,null,null,null,null,null,null,null,null,null,null,"K98MC-C",16000,0.6,1.05]
[null,null,null,null,null,null,null,null,null,null,null,null,null,null,null,null,"K98MC-S",16000,0.6,1.05]
[null,null,null,null,null,null,null,null,null,null,null,null,null,null,null,null,"K98ME",24000,0.6,1.05]
[null,null,null,null,null,null,null,null,null,null,null,null,null,null,null,null,"K98ME6",24000,0.6,1.05]
[null,null,null,null,null,null,null,null,null,null,null,null,null,null,null,null,"K98ME6.1-TII",24000,0.6,1.05]
[null,null,null,null,null,null,null,null,null,null,null,null,null,null,null,null,"K98ME7",24000,0.6,1.05]
[null,null,null,null,null,null,null,null,null,null,null,null,null,null,null,null,"K98ME7.1",24000,0.6,1.05]
[null,null,null,null,null,null,null,null,null,null,null,null,null,null,null,null,"K98ME7.1-TII",24000,0.6,1.05]
[null,null,null,null,null,null,null,null,null,null,null,null,null,null,null,null,"K98ME-C",24000,0.6,1.05]
[null,null,null,null,null,null,null,null,null,null,null,null,null,null,null,null,"K98ME-C6",24000,0.6,1.05]
[null,null,null,null,null,null,null,null,null,null,null,null,null,null,null,null,"K98ME-C7",24000,0.6,1.05]
[null,null,null,null,null,null,null,null,null,null,null,null,null,null,null,null,"K98ME-C7.1",24000,0.6,1.05]
[null,null,null,null,null,null,null,null,null,null,null,null,null,null,null,null,"K98ME-C7.1-TII",24000,0.6,1.05]
[null,null,null,null,null,null,null,null,null,null,null,null,null,null,null,null,"K108ME-C",24000,0.6,1.05]
[null,null,null,null,null,null,null,null,null,null,null,null,null,null,null,null,"K108ME-C6",24000,0.6,1.05]
[null,null,null,null,null,null,null,null,null,null,null,null,null,null,null,null,"L35MC",12000,0.38,0.88]
[null,null,null,null,null,null,null,null,null,null,null,null,null,null,null,null,"L35MCE",12000,0.38,0.88]
[null,null,null,null,null,null,null,null,null,null,null,null,null,null,null,null,"L42MC",12000,0.38,0.88]
[null,null,null,null,null,null,null,null,null,null,null,null,null,null,null,null,"L42MCE",12000,0.38,0.88]
[null,null,null,null,null,null,null,null,null,null,null,null,null,null,null,null,"L50MC",16000,0.38,0.88]
[null,null,null,null,null,null,null,null,null,null,null,null,null,null,null,null,"L50MCE",16000,0.38,0.88]
[null,null,null,null,null,null,null,null,null,null,null,null,null,null,null,null,"L60MC",16000,0.43,0.93]
[null,null,null,null,null,null,null,null,null,null,null,null,null,null,null,null,"L60MC-C",16000,0.43,0.93]
[null,null,null,null,null,null,null,null,null,null,null,null,null,null,null,null,"L60MC-C7",16000,0.43,0.93]
[null,null,null,null,null,null,null,null,null,null,null,null,null,null,null,null,"L60MC-C8",16000,0.43,0.93]
[null,null,null,null,null,null,null,null,null,null,null,null,null,null,null,null,"L60MC-C8.2",16000,0.43,0.93]
[null,null,null,null,null,null,null,null,null,null,null,null,null,null,null,null,"L60MCE",16000,0.43,0.93]
[null,null,null,null,null,null,null,null,null,null,null,null,null,null,null,null,"L60ME-C",16000,0.43,0.93]
[null,null,null,null,null,null,null,null,null,null,null,null,null,null,null,null,"L60ME-C7",16000,0.43,0.93]
[null,null,null,null,null,null,null,null,null,null,null,null,null,null,null,null,"L60ME-C8",16000,0.43,0.93]
[null,null,null,null,null,null,null,null,null,null,null,null,null,null,null,null,"L60ME-C8.2",16000,0.43,0.93]
[null,null,null,null,null,null,null,null,null,null,null,null,null,null,null,null,"L70MC",16000,0.43,0.93]
[null,null,null,null,null,null,null,null,null,null,null,null,null,null,null,null,"L70MC-C",16000,0.43,0.93]
[null,null,null,null,null,null,null,null,null,null,null,null,null,null,null,null,"L70MC-C7",16000,0.43,0.93]
[null,null,null,null,null,null,null,null,null,null,null,null,null,null,null,null,"L70MC-C8",16000,0.43,0.93]
[null,null,null,null,null,null,null,null,null,null,null,null,null,null,null,null,"L70MC-C8.2-TII",16000,0.43,0.93]
[null,null,null,null,null,null,null,null,null,null,null,null,null,null,null,null,"L70MCE",16000,0.43,0.93]
[null,null,null,null,null,null,null,null,null,null,null,null,null,null,null,null,"L70MC-P",16000,0.43,0.93]
[null,null,null,null,null,null,null,null,null,null,null,null,null,null,null,null,"L70ME-C",16000,0.43,0.93]
[null,null,null,null,null,null,null,null,null,null,null,null,null,null,null,null,"L70ME-C7",16000,0.43,0.93]
[null,null,null,null,null,null,null,null,null,null,null,null,null,null,null,null,"L70ME-C8",16000,0.43,0.93]
[null,null,null,null,null,null,null,null,null,null,null,null,null,null,null,null,"L70ME-C8.1-TII",16000,0.43,0.93]
[null,null,null,null,null,null,null,null,null,null,null,null,null,null,null,null,"L70ME-C8.2",16000,0.43,0.93]
[null,null,null,null,null,null,null,null,null,null,null,null,null,null,null,null,"L80MC",16000,0.48,0.98]
[null,null,null,null,null,null,null,null,null,null,null,null,null,null,null,null,"L80MCE",16000,0.48,0.98]
[null,null,null,null,null,null,null,null,null,null,null,null,null,null,null,null,"L80ME",24000,0.48,0.98]
[null,null,null,null,null,null,null,null,null,null,null,null,null,null,null,null,"L90MC",16000,0.48,0.98]
[null,null,null,null,null,null,null,null,null,null,null,null,null,null,null,null,"L90MC-C",16000,0.48,0.98]
[null,null,null,null,null,null,null,null,null,null,null,null,null,null,null,null,"L90MCE",16000,0.48,0.98]
[null,null,null,null,null,null,null,null,null,null,null,null,null,null,null,null,"L90ME-C",24000,0.48,0.98]
[null,null,null,null,null,null,null,null,null,null,null,null,null,null,null,null,"L90ME-C7",24000,0.48,0.98]
[null,null,null,null,null,null,null,null,null,null,null,null,null,null,null,null,"S26MC",12000,0.38,0.88]
[null,null,null,null,null,null,null,null,null,null,null,null,null,null,null,null,"S26MCE",12000,0.38,0.88]
[null,null,null,null,null,null,null,null,null,null,null,null,null,null,null,null,"S35MC",12000,0.38,0.88]
[null,null,null,null,null,null,null,null,null,null,null,null,null,null,null,null,"S35MC-C9",12000,0.38,0.88]
[null,null,null,null,null,null,null,null,null,null,null,null,null,null,null,null,"S35MC-C9.2",12000,0.38,0.88]
[null,null,null,null,null,null,null,null,null,null,null,null,null,null,null,null,"S35ME-B",12000,0.38,0.88]
[null,null,null,null,null,null,null,null,null,null,null,null,null,null,null,null,"S35ME-B9",12000,0.38,0.88]
[null,null,null,null,null,null,null,null,null,null,null,null,null,null,null,null,"S35ME-B9.1-TII",12000,0.38,0.88]
[null,null,null,null,null,null,null,null,null,null,null,null,null,null,null,null,"S35ME-B9.2",12000,0.38,0.88]
[null,null,null,null,null,null,null,null,null,null,null,null,null,null,null,null,"S40MC-C9",12000,0.38,0.88]
[null,null,null,null,null,null,null,null,null,null,null,null,null,null,null,null,"S40MC-C9.2",12000,0.38,0.88]
[null,null,null,null,null,null,null,null,null,null,null,null,null,null,null,null,"S40ME-B",12000,0.38,0.88]
[null,null,null,null,null,null,null,null,null,null,null,null,null,null,null,null,"S40ME-B9",12000,0.38,0.88]
[null,null,null,null,null,null,null,null,null,null,null,null,null,null,null,null,"S40ME-B9.1-TII",12000,0.38,0.88]
[null,null,null,null,null,null,null,null,null,null,null,null,null,null,null,null,"S40ME-B9.2",12000,0.38,0.88]
[null,null,null,null,null,null,null,null,null,null,null,null,null,null,null,null,"S40ME-B9.2-TII",12000,0.38,0.88]
[null,null,null,null,null,null,null,null,null,null,null,null,null,null,null,null,"S42MC",12000,0.38,0.88]
[null,null,null,null,null,null,null,null,null,null,null,null,null,null,null,null,"S46MC",12000,0.38,0.88]
[null,null,null,null,null,null,null,null,null,null,null,null,null,null,null,null,"S46MC-C",12000,0.38,0.88]
[null,null,null,null,null,null,null,null,null,null,null,null,null,null,null,null,"S46MC-C7",12000,0.38,0.88]
[null,null,null,null,null,null,null,null,null,null,null,null,null,null,null,null,"S46MC-C7.1-TII",12000,0.38,0.88]
[null,null,null,null,null,null,null,null,null,null,null,null,null,null,null,null,"S46MC-C8",12000,0.38,0.88]
[null,null,null,null,null,null,null,null,null,null,null,null,null,null,null,null,"S46MC-C8.1-TII",12000,0.38,0.88]
[null,null,null,null,null,null,null,null,null,null,null,null,null,null,null,null,"S46MC-C8.2",12000,0.38,0.88]
[null,null,null,null,null,null,null,null,null,null,null,null,null,null,null,null,"S46MC-C8.2-TII",12000,0.38,0.88]
[null,null,null,null,null,null,null,null,null,null,null,null,null,null,null,null,"S46ME-B",12000,0.38,0.88]
[null,null,null,null,null,null,null,null,null,null,null,null,null,null,null,null,"S46ME-B8.1-TII",12000,0.38,0.88]
[null,null,null,null,null,null,null,null,null,null,null,null,null,null,null,null,"S46ME-B8.2",12000,0.38,0.88]
[null,null,null,null,null,null,null,null,null,null,null,null,null,null,null,null,"S46ME-B8.2-TII",12000,0.38,0.88]
[null,null,null,null,null,null,null,null,null,null,null,null,null,null,null,null,"S50MC",16000,0.38,0.88]
[null,null,null,null,null,null,null,null,null,null,null,null,null,null,null,null,"S50MC-C",16000,0.38,0.88]
[null,null,null,null,null,null,null,null,null,null,null,null,null,null,null,null,"S50MC-C7",16000,0.38,0.88]
[null,null,null,null,null,null,null,null,null,null,null,null,null,null,null,null,"S50MC-C7.1-TII",16000,0.38,0.88]
[null,null,null,null,null,null,null,null,null,null,null,null,null,null,null,null,"S50MC-C8",16000,0.38,0.88]
[null,null,null,null,null,null,null,null,null,null,null,null,null,null,null,null,"S50MC-C8.1",16000,0.38,0.88]
[null,null,null,null,null,null,null,null,null,null,null,null,null,null,null,null,"S50MC-C8.1-TII",16000,0.38,0.88]
[null,null,null,null,null,null,null,null,null,null,null,null,null,null,null,null,"S50MC-C8.2",16000,0.38,0.88]
[null,null,null,null,null,null,null,null,null,null,null,null,null,null,null,null,"S50MC-C8.2-TII",16000,0.38,0.88]
[null,null,null,null,null,null,null,null,null,null,null,null,null,null,null,null,"S50MCE",16000,0.38,0.88]
[null,null,null,null,null,null,null,null,null,null,null,null,null,null,null,null,"S50ME-B",16000,0.38,0.88]
[null,null,null,null,null,null,null,null,null,null,null,null,null,null,null,null,"S50ME-B7",16000,0.38,0.88]
[null,null,null,null,null,null,null,null,null,null,null,null,null,null,null,null,"S50ME-B8",16000,0.38,0.88]
[null,null,null,null,null,null,null,null,null,null,null,null,null,null,null,null,"S50ME-B8.1-TII",16000,0.38,0.88]
[null,null,null,null,null,null,null,null,null,null,null,null,null,null,null,null,"S50ME-B8.2",16000,0.38,0.88]
[null,null,null,null,null,null,null,null,null,null,null,null,null,null,null,null,"S50ME-B8.2-TII",16000,0.38,0.88]
[null,null,null,null,null,null,null,null,null,null,null,null,null,null,null,null,"S50ME-B9",16000,0.38,0.88]
[null,null,null,null,null,null,null,null,null,null,null,null,null,null,null,null,"S50ME-B9.2-TII",16000,0.38,0.88]
[null,null,null,null,null,null,null,null,null,null,null,null,null,null,null,null,"S50ME-C",16000,0.38,0.88]
[null,null,null,null,null,null,null,null,null,null,null,null,null,null,null,null,"S50ME-C7",16000,0.38,0.88]
[null,null,null,null,null,null,null,null,null,null,null,null,null,null,null,null,"S50ME-C8",16000,0.38,0.88]
[null,null,null,null,null,null,null,null,null,null,null,null,null,null,null,null,"S50ME-C8.1",16000,0.38,0.88]
[null,null,null,null,null,null,null,null,null,null,null,null,null,null,null,null,"S50ME-C8.1-TII",16000,0.38,0.88]
[null,null,null,null,null,null,null,null,null,null,null,null,null,null,null,null,"S50ME-C8.2",16000,0.38,0.88]
[null,null,null,null,null,null,null,null,null,null,null,null,null,null,null,null,"S50ME-C8.2-GI-T2",16000,0.38,0.88]
[null,null,null,null,null,null,null,null,null,null,null,null,null,null,null,null,"S50ME-C8.2-TII",16000,0.38,0.88]
[null,null,null,null,null,null,null,null,null,null,null,null,null,null,null,null,"S60MC",16000,0.43,0.93]
[null,null,null,null,null,null,null,null,null,null,null,null,null,null,null,null,"S60MC-C",16000,0.43,0.93]
[null,null,null,null,null,null,null,null,null,null,null,null,null,null,null,null,"S60MC-C7",16000,0.43,0.93]
[null,null,null,null,null,null,null,null,null,null,null,null,null,null,null,null,"S60MC-C7.1-TII",16000,0.43,0.93]
[null,null,null,null,null,null,null,null,null,null,null,null,null,null,null,null,"S60MC-C8",16000,0.43,0.93]
[null,null,null,null,null,null,null,null,null,null,null,null,null,null,null,null,"S60MC-C8.1",16000,0.43,0.93]
[null,null,null,null,null,null,null,null,null,null,null,null,null,null,null,null,"S60MC-C8.1-TII",16000,0.43,0.93]
[null,null,null,null,null,null,null,null,null,null,null,null,null,null,null,null,"S60MC-C8.2-TII",16000,0.43,0.93]
[null,null,null,null,null,null,null,null,null,null,null,null,null,null,null,null,"S60MCE",16000,0.43,0.93]
[null,null,null,null,null,null,null,null,null,null,null,null,null,null,null,null,"S60ME-B8",16000,0.43,0.93]
[null,null,null,null,null,null,null,null,null,null,null,null,null,null,null,null,"S60ME-B8.2",16000,0.43,0.93]
[null,null,null,null,null,null,null,null,null,null,null,null,null,null,null,null,"S60ME-B8.2-TII",16000,0.43,0.93]
[null,null,null,null,null,null,null,null,null,null,null,null,null,null,null,null,"S60ME-B8.3-TII",16000,0.43,0.93]
[null,null,null,null,null,null,null,null,null,null,null,null,null,null,null,null,"S60ME-C",16000,0.43,0.93]
[null,null,null,null,null,null,null,null,null,null,null,null,null,null,null,null,"S60ME-C7",16000,0.43,0.93]
[null,null,null,null,null,null,null,null,null,null,null,null,null,null,null,null,"S60ME-C8",16000,0.43,0.93]
[null,null,null,null,null,null,null,null,null,null,null,null,null,null,null,null,"S60ME-C8.1-GI-T2",16000,0.43,0.93]
[null,null,null,null,null,null,null,null,null,null,null,null,null,null,null,null,"S60ME-C8.1-TII",16000,0.43,0.93]
[null,null,null,null,null,null,null,null,null,null,null,null,null,null,null,null,"S60ME-C8.2",16000,0.43,0.93]
[null,null,null,null,null,null,null,null,null,null,null,null,null,null,null,null,"S60ME-C8.2-GI-T2",16000,0.43,0.93]
[null,null,null,null,null,null,null,null,null,null,null,null,null,null,null,null,"S60ME-C8.2-TII",16000,0.43,0.93]
[null,null,null,null,null,null,null,null,null,null,null,null,null,null,null,null,"S60ME-GI7",16000,0.43,0.93]
[null,null,null,null,null,null,null,null,null,null,null,null,null,null,null,null,"S60ME-GI8",16000,0.43,0.93]
[null,null,null,null,null,null,null,null,null,null,null,null,null,null,null,null,"S65MC-C8",16000,0.43,0.93]
[null,null,null,null,null,null,null,null,null,null,null,null,null,null,null,null,"S65ME-C",16000,0.43,0.93]
[null,null,null,null,null,null,null,null,null,null,null,null,null,null,null,null,"S65ME-C8",16000,0.43,0.93]
[null,null,null,null,null,null,null,null,null,null,null,null,null,null,null,null,"S65ME-C8.1-GI-T2",16000,0.43,0.93]
[null,null,null,null,null,null,null,null,null,null,null,null,null,null,null,null,"S65ME-C8.1-TII",16000,0.43,0.93]
[null,null,null,null,null,null,null,null,null,null,null,null,null,null,null,null,"S65ME-C8.2",16000,0.43,0.93]
[null,null,null,null,null,null,null,null,null,null,null,null,null,null,null,null,"S65ME-C8.2-GI-T2",16000,0.43,0.93]
[null,null,null,null,null,null,null,null,null,null,null,null,null,null,null,null,"S65ME-GI8",16000,0.43,0.93]
[null,null,null,null,null,null,null,null,null,null,null,null,null,null,null,null,"S70MC",16000,0.43,0.93]
[null,null,null,null,null,null,null,null,null,null,null,null,null,null,null,null,"S70MC-C",16000,0.43,0.93]
[null,null,null,null,null,null,null,null,null,null,null,null,null,null,null,null,"S70MC-C7",16000,0.43,0.93]
[null,null,null,null,null,null,null,null,null,null,null,null,null,null,null,null,"S70MC-C7.1-TII",16000,0.43,0.93]
[null,null,null,null,null,null,null,null,null,null,null,null,null,null,null,null,"S70MC-C8",16000,0.43,0.93]
[null,null,null,null,null,null,null,null,null,null,null,null,null,null,null,null,"S70MC-C8.1-TII",16000,0.43,0.93]
[null,null,null,null,null,null,null,null,null,null,null,null,null,null,null,null,"S70MC-C8.2",16000,0.43,0.93]
[null,null,null,null,null,null,null,null,null,null,null,null,null,null,null,null,"S70MC-C8.2-TII",16000,0.43,0.93]
[null,null,null,null,null,null,null,null,null,null,null,null,null,null,null,null,"S70MCE",16000,0.43,0.93]
[null,null,null,null,null,null,null,null,null,null,null,null,null,null,null,null,"S70ME-C",16000,0.43,0.93]
[null,null,null,null,null,null,null,null,null,null,null,null,null,null,null,null,"S70ME-C7",16000,0.43,0.93]
[null,null,null,null,null,null,null,null,null,null,null,null,null,null,null,null,"S70ME-C8",16000,0.43,0.93]
[null,null,null,null,null,null,null,null,null,null,null,null,null,null,null,null,"S70ME-C8.1",16000,0.43,0.93]
[null,null,null,null,null,null,null,null,null,null,null,null,null,null,null,null,"S70ME-C8.1-GI-T2",16000,0.43,0.93]
[null,null,null,null,null,null,null,null,null,null,null,null,null,null,null,null,"S70ME-C8.1-TII",16000,0.43,0.93]
[null,null,null,null,null,null,null,null,null,null,null,null,null,null,null,null,"S70ME-C8.2",16000,0.43,0.93]
[null,null,null,null,null,null,null,null,null,null,null,null,null,null,null,null,"S70ME-C8.2-GI-T2",16000,0.43,0.93]
[null,null,null,null,null,null,null,null,null,null,null,null,null,null,null,null,"S70ME-C8.2-TII",16000,0.43,0.93]
[null,null,null,null,null,null,null,null,null,null,null,null,null,null,null,null,"S70ME-GI7",16000,0.43,0.93]
[null,null,null,null,null,null,null,null,null,null,null,null,null,null,null,null,"S70ME-GI8",16000,0.43,0.93]
[null,null,null,null,null,null,null,null,null,null,null,null,null,null,null,null,"S80MC",16000,0.48,0.98]
[null,null,null,null,null,null,null,null,null,null,null,null,null,null,null,null,"S80MC-C",16000,0.48,0.98]
[null,null,null,null,null,null,null,null,null,null,null,null,null,null,null,null,"S80MCE",16000,0.48,0.98]
[null,null,null,null,null,null,null,null,null,null,null,null,null,null,null,null,"S80ME-C",24000,0.48,0.98]
[null,null,null,null,null,null,null,null,null,null,null,null,null,null,null,null,"S80ME-C7",24000,0.48,0.98]
[null,null,null,null,null,null,null,null,null,null,null,null,null,null,null,null,"S80ME-C8",24000,0.48,0.98]
[null,null,null,null,null,null,null,null,null,null,null,null,null,null,null,null,"S80ME-C8.1-TII",24000,0.48,0.98]
[null,null,null,null,null,null,null,null,null,null,null,null,null,null,null,null,"S80ME-C8.2",24000,0.48,0.98]
[null,null,null,null,null,null,null,null,null,null,null,null,null,null,null,null,"S80ME-C8.2-GI-T2",24000,0.48,0.98]
[null,null,null,null,null,null,null,null,null,null,null,null,null,null,null,null,"S80ME-C8.2-TII",24000,0.48,0.98]
[null,null,null,null,null,null,null,null,null,null,null,null,null,null,null,null,"S80ME-C9",24000,0.48,0.98]
[null,null,null,null,null,null,null,null,null,null,null,null,null,null,null,null,"S80ME-C9.2",24000,0.48,0.98]
[null,null,null,null,null,null,null,null,null,null,null,null,null,null,null,null,"S80ME-C9.2-GI-T2",24000,0.48,0.98]
[null,null,null,null,null,null,null,null,null,null,null,null,null,null,null,null,"S80ME-C9.2-TII",24000,0.48,0.98]
[null,null,null,null,null,null,null,null,null,null,null,null,null,null,null,null,"S90MC-C",16000,0.48,0.98]
[null,null,null,null,null,null,null,null,null,null,null,null,null,null,null,null,"S90MC-T",16000,0.48,0.98]
[null,null,null,null,null,null,null,null,null,null,null,null,null,null,null,null,"S90ME-C",24000,0.48,0.98]
[null,null,null,null,null,null,null,null,null,null,null,null,null,null,null,null,"S90ME-C7",24000,0.48,0.98]
[null,null,null,null,null,null,null,null,null,null,null,null,null,null,null,null,"S90ME-C8",24000,0.48,0.98]
[null,null,null,null,null,null,null,null,null,null,null,null,null,null,null,null,"S90ME-C8.1-TII",24000,0.48,0.98]
[null,null,null,null,null,null,null,null,null,null,null,null,null,null,null,null,"S90ME-C8.2",24000,0.48,0.98]
[null,null,null,null,null,null,null,null,null,null,null,null,null,null,null,null,"S90ME-C8.2-TII",24000,0.48,0.98]
[null,null,null,null,null,null,null,null,null,null,null,null,null,null,null,null,"S90ME-C9.2",24000,0.48,0.98]
[null,null,null,null,null,null,null,null,null,null,null,null,null,null,null,null,"S90ME-C9.2-TII",24000,0.48,0.98]
[]
[null,null,null,null,null,null,null,null,null,null,null,null,null,null,null,null,"K98 engine type: Ring Groove Clearance, nom. values RING 1",null,null,null,"RING 2-4"]
[null,null,null,null,null,null,null,null,null,null,null,null,null,null,null,null,null,null,"Nom.","Max.","Nom.","Max."]
[null,null,null,null,null,null,null,null,null,null,null,null,null,null,null,null,"K98MC",16000,0.6,1.05,0.5,1]
[null,null,null,null,null,null,null,null,null,null,null,null,null,null,null,null,"K98MC-C",16000,0.6,1.05,0.5,1]
[null,null,null,null,null,null,null,null,null,null,null,null,null,null,null,null,"K98MC-S",16000,0.6,1.05,0.5,1]
[null,null,null,null,null,null,null,null,null,null,null,null,null,null,null,null,"K98ME",24000,0.6,1.05,0.5,1]
[null,null,null,null,null,null,null,null,null,null,null,null,null,null,null,null,"K98ME6",24000,0.6,1.05,0.5,1]
[null,null,null,null,null,null,null,null,null,null,null,null,null,null,null,null,"K98ME6.1-TII",24000,0.6,1.05,0.5,1]
[null,null,null,null,null,null,null,null,null,null,null,null,null,null,null,null,"K98ME7",24000,0.6,1.05,0.5,1]
[null,null,null,null,null,null,null,null,null,null,null,null,null,null,null,null,"K98ME7.1",24000,0.6,1.05,0.5,1]
[null,null,null,null,null,null,null,null,null,null,null,null,null,null,null,null,"K98ME7.1-TII",24000,0.6,1.05,0.5,1]
[null,null,null,null,null,null,null,null,null,null,null,null,null,null,null,null,"K98ME-C",24000,0.6,1.05,0.5,1]
[null,null,null,null,null,null,null,null,null,null,null,null,null,null,null,null,"K98ME-C6",24000,0.6,1.05,0.5,1]
[null,null,null,null,null,null,null,null,null,null,null,null,null,null,null,null,"K98ME-C7",24000,0.6,1.05,0.5,1]
[null,null,null,null,null,null,null,null,null,null,null,null,null,null,null,null,"K98ME-C7.1",24000,0.6,1.05,0.5,1]
[null,null,null,null,null,null,null,null,null,null,null,null,null,null,null,null,"K98ME-C7.1-TII",24000,0.6,1.05,0.5,1]

{"sheet":"Cond. Monitoring Charts","index":3,"n_rows":119,"n_cols":27,"rows_kept":119,"cut":false,"hidden":false,"merged":[[0,0,0,20]]}
["Condition Monitoring Report (Port inspection) - Graphs",null,null,null,null,null,null,null,null,null,null,null,null,null,null,null,null,null,null,null,null,null,null,null,null,null,"1.0.0.0"]
[]
[]
[]
[]
[]
[]
[]
[]
[]
[]
[]
[]
[]
[]
[]
[]
[]
[]
[]
[]
[]
[]
[]
[]
[]
[]
[]
[]
[]
[]
[]
[]
[]
[]
[]
[]
[]
[]
[]
[]
[]
[]
[]
[]
[]
[]
[]
[]
[]
[]
[]
[]
[]
[]
[]
[]
[]
[]
[]
[]
[]
[]
[]
[]
[]
[]
[]
[]
[]
[]
[]
[]
[]
[]
[]
[]
[]
[]
[]
[]
[]
[]
[]
[]
[]
[]
[]
[]
[]
[]
[]
[]
[]
[]
[]
[]
[]
[]
[]
[]
[]
[]
[]
[]
[]
[]
[]
[]
[]
[]
[]
[]
[]
[]
[]
[]
[]
[null,null,null,null,null,null,null,null,null,null,null,null,null,null,null,null,null,null,null,null,"Rel. 2014-09-22"]

{"sheet":"Inspection throug Scavenge Port","index":4,"n_rows":40,"n_cols":27,"rows_kept":40,"cut":false,"hidden":false,"merged":[[0,0,0,19],[4,9,4,12],[1,8,1,10],[1,14,1,15],[2,18,2,19],[1,18,1,19],[2,9,2,10],[2,13,2,14]]}
["Inspection through Scavenge Port",null,null,null,null,null,null,null,null,null,null,null,null,null,null,null,null,null,null,null,{"$f":"COUNTBLANK(A2:T39)","v":692},null,null,null,null,null,"1.0.0.0"]
["Vessel:",{"$f":"IF(ISBLANK('Cylinder Condition Report'!B2)=TRUE,\"\",'Cylinder Condition Report'!B2)","v":""},null,null,null,null,"IMO no.:",null,{"$f":"IF(ISBLANK('Cylinder Condition Report'!G2)=TRUE,\"\",'Cylinder Condition Report'!G2)","v":""},null,null,"Eng. builder:",null,null,{"$f":"IF(ISBLANK('Cylinder Condition Report'!J2)=TRUE,\"\",'Cylinder Condition Report'!J2)","v":""},null,"Engine no.:",null,{"$f":"IF(ISBLANK('Cylinder Condition Report'!M2)=TRUE,\"\",'Cylinder Condition Report'!M2)","v":""}]
["Number of cyl.:",null,{"$f":"IF(ISBLANK('Cylinder Condition Report'!C3)=TRUE,\"\",'Cylinder Condition Report'!C3)","v":""},"Eng. type:",null,null,{"$f":"IF(ISBLANK('Cylinder Condition Report'!F3)=TRUE,\"\",'Cylinder Condition Report'!F3)","v":""},"Eng. hrs.:",null,{"$f":"IF(ISBLANK('Cylinder Condition Report'!J3)=TRUE,\"\",'Cylinder Condition Report'!J3)","v":""},null,"Checked by:",null,{"$f":"IF(ISBLANK('Cylinder Condition Report'!P2)=TRUE,\"\",'Cylinder Condition Report'!P2)","v":""},null,"Date (yyyy-mm-dd):",null,null,{"$f":"IF(ISBLANK('Cylinder Condition Report'!M3)=TRUE,\"\",'Cylinder Condition Report'!M3)","v":""}]
["Weeks per port calls:",null,null,null,"Normal service load (% of MCR):",null,null,null,null,{"$f":"IF(ISBLANK('Cylinder Condition Report'!L4)=TRUE,\"\",'Cylinder Condition Report'!L4)","v":""},"Lub. control:",null,null,null,{"$f":"IF(ISBLANK('Cylinder Condition Report'!G5)=TRUE,\"\",'Cylinder Condition Report'!G5)","v":""},"Lubricator:",null,null,null,{"$f":"IF(ISBLANK('Cylinder Condition Report'!L5)=TRUE,\"\",'Cylinder Condition Report'!L5)","v":""}]
["Cyl. oil consump. (l/24 hrs):",null,null,{"$f":"IF(ISBLANK('Cylinder Condition Report'!J6)=TRUE,\"\",'Cylinder Condition Report'!J6)","v":""},"at load %",{"$f":"IF(ISBLANK('Cylinder Condition Report'!M6)=TRUE,\"\",'Cylinder Condition Report'!M6)","v":""},"Cyl. oil type:",null,null,{"$f":"IF(ISBLANK('Cylinder Condition Report'!F6)=TRUE,\"\",'Cylinder Condition Report'!F6)","v":""},null,null,null,"Position:",null,null,"Exh.",null,"Manoeuvre"]
[" ",null,null,null,null,null,null,null,null,null," ",null,"Cylinder No."]
[null,"Condition and Symbol",null,null,null,"Engine Part",null,null,1,2,3,4,5,6,7,8,9,10,11,12]
[null,null,null,null,null,"Piston crown"]
[null,null,null,null,null,"Topland"]
[null,null,null,null,null,"Ringland 1"]
[null,null,null,null,null,"Ringland 2"]
[null,null,null,null,null,"Ringland 3"]
[null,null,null,null,null,"Ring 1"]
[null,null,null,null,null,"Ring 2"]
[null,null,null,null,null,"Ring 3"]
[null,null,null,null,null,"Ring 4"]
[null,null,null,null,null,"Ring 1"]
[null,null,null,null,null,"Ring 2"]
[null,null,null,null,null,"Ring 3"]
[null,null,null,null,null,"Ring 4"]
[null,null,null,null,null,"Ring 1"]
[null,null,null,null,null,"Ring 2"]
[null,null,null,null,null,"Ring 3"]
[null,null,null,null,null,"Ring 4"]
[null,null,null,null,null,"Piston skirt"]
[null,null,null,null,null,"Piston rod"]
[null,null,null,null,null,"Cylinder liner abv. scav. ports"]
[null,null,null,null,null,"Cylinder liner near scav. ports"]
[null,null,null,null,null,"Ring 1"]
[null,null,null,null,null,"Ring 2"]
[null,null,null,null,null,"Ring 3"]
[null,null,null,null,null,"Ring 4"]
[null,null,null,null,null,"Piston skirt"]
[null,null,null,null,null,"Piston rod"]
[null,null,null,null,null,"Cylinder liner"]
[null,null,null,null,null,"Scavenge box"]
[null,null,null,null,null,"Scav. receiver"]
[null,null,null,null,null,"Flaps and non-return valves"]
["Hours since last overhaul"]
[null,null,null,null,null,null,null,null,null,null,null,null,null,null,null,null,null,null,null,"Rel. 2014-09-22"]